{"text_format":"1","workbook":"xlsx","n_sheets":33,"sheets":["MASTER11 MEC","MEC LICENCE10","MEC MASTER12","GC MASTER11","GC LICENCE10","GC MASTER12","EAI LICENCE10","EAI MASTER12","EAI MASTER11","MAT MASTER11","MAT MASTER12","MAT LICENCE10","DGPI LICENCE10","DGPI MASTER11","ENV MASTER12","MI LICENCE10","TA MASTER12","TA MASTER11","ENV LICENCE10","MI MASTER11","MI MASTER12","EN LICENCE10","EN MASTER11","EN MASTER12","TC S31","TC S33","TC S32","TC S34","TC S35","TC S36","TC S38","TC S39","TC S310"],"not_rendered":{"charts":0,"images":0,"macros":1,"external_links":2,"defined_names":141,"comments":0,"pivot_tables":0},"unopened":[],"bounds":{"document_bytes":16777216,"sheet_cells":100000,"rows_first":2000,"rows_last":500,"rows_between":2000,"halvings":0,"cell_chars":16384,"cell_head_chars":4096},"cells_cut":0,"cells_raw":0,"read":"whole","date_system":"1900"}

{"sheet":"MASTER11 MEC","index":0,"n_rows":36,"n_cols":18,"rows_kept":36,"cut":false,"hidden":false,"merged":[[0,9,0,13],[33,0,35,0],[3,0,8,0],[9,0,14,0],[0,0,0,1],[21,0,26,0],[15,0,20,0],[27,0,32,0]]}
["Departement:",null,null,null,null,"MECANIQUE",null,null,null,"Spécialite:const-fab-stru-chaudronnerie"]
[null,"Section:",null,null,null,"MASTER 2ème année",null,null,null,{"$f":"NOW()","v":"2017-10-19T13:25:47.140"}]
["Jour","SEANCES","MCM-16","Enseignant","Salle","MCM16","MFMP16","Enseignant","Salle","MFMP16","MSM16","Enseignant","Salle","MSM16","MOCP16","Enseignant","Salle","MOCP16"]
["Dimanche","8h 00                     9h 30",null,null,null,null,"BUREAU DES METHODES©","TOURAB","B417","BUREAU DES METHODES© TOURAB B417",null,null,null,null,"DAO-CAO(TD)","MANSER","A26","DAO-CAO(TD) MANSER A26"]
[null,"9h 40                 11h 10","TECH-SOUDAGE©","BOUTOUTAOU","C310","TECH-SOUDAGE© BOUTOUTAOU C310","BUREAU DES METHODES(TD)","TOURAB","B417","BUREAU DES METHODES(TD) TOURAB B417","ANGLAIS©","MEGHARI","B35","ANGLAIS© MEGHARI B35","DAO-CAO(TP)","MANSER","A26","DAO-CAO(TP) MANSER A26"]
[null,"11h20                 12h 50",null,null,null,null,null,null,null,null,null,null,null,null,"ANGLAIS©","MEGHARI","A12","ANGLAIS© MEGHARI A12"]
[null,"13h 00              14h 30","TURBOMACHINES©","BRAHIMI","B311","TURBOMACHINES© BRAHIMI B311","BUREAU DES METHODES(TP)","TOURAB","A15","BUREAU DES METHODES(TP) TOURAB A15","CON-MEF©","ABED-ZIANE","B38","CON-MEF© ABED-ZIANE B38"]
[null,"14h 40              16h 10","MATERIAUX(TD)","AITSAADA","B312","MATERIAUX(TD) AITSAADA B312",null,null,null,null,"CON-MEF(TD)","ABED-ZIANE","B38","CON-MEF(TD) ABED-ZIANE B38","EXPLOIT-LOG(TD)","FERHAT","A14","EXPLOIT-LOG(TD) FERHAT A14"]
[null,"16h 20              17h 50"]
["Lundi","8h 00                    9h 30","BUREAU DES METHODES©","TALHI","B313","BUREAU DES METHODES© TALHI B313","M-D-R FATIGUE©","LECHEB","B214","M-D-R FATIGUE© LECHEB B214"]
[null,"9h 40                  11h 10","BUREAU DES METHODES(TP)","TALHI","B313","BUREAU DES METHODES(TP) TALHI B313","M-D-R FATIGUE(TD)","LECHEB","B214","M-D-R FATIGUE(TD) LECHEB B214"]
[null,"11h20                12h 50",null,null,null,null,"TRIBOLOGIE/MEC CONT©","HEDEILI-F","B214","TRIBOLOGIE/MEC CONT© HEDEILI-F B214","CAL-STRUCTAO©","MESKINE","B42","CAL-STRUCTAO© MESKINE B42"]
[null,"13h 00              14h 30","M-D-R-FATIGUE©","LECHEB","A22","M-D-R-FATIGUE© LECHEB A22",null,null,null,null,"TECH-MEF©","BOUZIANE","B212","TECH-MEF© BOUZIANE B212"]
[null,"14h 40              16h 10","M-D-R-FATIGUE(TD)","LECHEB","A22","M-D-R-FATIGUE(TD) LECHEB A22",null,null,null,null,"TECH-MEF(TD)","BOUZIANE","B212","TECH-MEF(TD) BOUZIANE B212"]
[null,"16h 20              17h 50"]
["Mardi","8h 00                    9h 30","DYNAM-MACH-TOURNANTES©","NOUR","RC13","DYNAM-MACH-TOURNANTES© NOUR RC13","USINAG-SURF-GAUCHE©","BELAIDI-I","C37","USINAG-SURF-GAUCHE© BELAIDI-I C37"]
[null,"9h 40                 11h 10","DYNAM-MACH-TOURNANTES(TD)","NOUR","RC13","DYNAM-MACH-TOURNANTES(TD) NOUR RC13","USINAGE  A GRANDE VITESSE©","BELAIDI-I","C37","USINAGE  A GRANDE VITESSE© BELAIDI-I C37","CND©","IFRAH","B418","CND© IFRAH B418","CND©","IFRAH","B418","CND© IFRAH B418"]
[null,"11h20                12h 50","MATERIAUX©","AITSAADA","C310","MATERIAUX© AITSAADA C310",null,null,null,null,"CND(TD)","IFRAH","B418","CND(TD) IFRAH B418","CND(TD)","IFRAH","B418","CND(TD) IFRAH B418"]
[null,"13h 00              14h 30",null,null,null,null,"TECHNIQUE DE SOUDAGE(TP)","BOUZIANE","ATFM","TECHNIQUE DE SOUDAGE(TP) BOUZIANE ATFM","CON-MEF©","ABED-ZIANE","C32","CON-MEF© ABED-ZIANE C32","CND(TP)","LADDADA","AT16","CND(TP) LADDADA AT16"]
[null,"14h 40              16h 10","LOGICIEL-SIMUL-NUM-MEE(TP)","MECHAKRA","A26","LOGICIEL-SIMUL-NUM-MEE(TP) MECHAKRA A26","TECHNIQUE DE SOUDAGE(TP)","BOUZIANE","ATFM","TECHNIQUE DE SOUDAGE(TP) BOUZIANE ATFM",null,null,null,null,"CND(TP)","LADDADA","AT16","CND(TP) LADDADA AT16"]
[null,"16h 20              17h 50"]
["Mercredi","8h 00                    9h 30","MATER-COMPOSITES©","MECHAKRA","C37","MATER-COMPOSITES© MECHAKRA C37","DYN-MACH-TOUR©","NOUR","RC13","DYN-MACH-TOUR© NOUR RC13"]
[null,"9h 40                 11h 10","MATER-COMPOSITES(TD)","MECHAKRA","C37","MATER-COMPOSITES(TD) MECHAKRA C37","DYN-MACH-TOUR(TD)","NOUR","RC13","DYN-MACH-TOUR(TD) NOUR RC13","METH-FAB©","IFRAH","AP1","METH-FAB© IFRAH AP1","BUREAUX METH©","IFRAH","AP1","BUREAUX METH© IFRAH AP1"]
[null,"11h20                12h 50",null,null,null,null,null,null,null,null,"METH-FAB(TD)","IFRAH","AP1","METH-FAB(TD) IFRAH AP1","BUREAUX METH(TD)","IFRAH","AP1","BUREAUX METH(TD) IFRAH AP1"]
[null,"13h 00              14h 30","TURBOMACHINES(TP)","BRAHIMI","RC13","TURBOMACHINES(TP) BRAHIMI RC13","USINAG-SURF-GAUCHE(TD)","BELAIDI-I","C37","USINAG-SURF-GAUCHE(TD) BELAIDI-I C37",null,null,null,null,"HSE©","IFRAH","A16","HSE© IFRAH A16"]
[null,"14h 40              16h 10",null,null,null,null,null,null,null,null,null,null,null,null,"HSE(TD)","IFRAH","A16","HSE(TD) IFRAH A16"]
[null,"16h 20              17h 50"]
["Jeudi","8h 00                     9h 30","RECHERCHE-DOC-CON-MEM©","ALEM","C48","RECHERCHE-DOC-CON-MEM© ALEM C48","RECHERCHE-DOC-CON-MEM©","ALEM","C48","RECHERCHE-DOC-CON-MEM© ALEM C48","CALCUL SISMIQUE©","OUAKLI","B36","CALCUL SISMIQUE© OUAKLI B36","DAO-CAO©","CHALLALI","B210","DAO-CAO© CHALLALI B210"]
[null,"9h 40                  11h 10","MANAGEMENT©","GUERRACHE","C48","MANAGEMENT© GUERRACHE C48","MANAGEMENT©","GUERRACHE","C48","MANAGEMENT© GUERRACHE C48","CALCUL SISMIQUE(TD)","OUAKLI","B36","CALCUL SISMIQUE(TD) OUAKLI B36","INSTRUMENT©","MERAINANI","C37","INSTRUMENT© MERAINANI C37"]
[null,"11h20                 12h 50","CHARP-METALLIQUE©","MESKINE","C48","CHARP-METALLIQUE© MESKINE C48",null,null,null,null,null,null,null,null,"INSTRUMENT©","MERAINANI","C37","INSTRUMENT© MERAINANI C37"]
[null,"13h 00              14h 30",null,null,null,null,"MOL-ING-PLASTIC©","CHALLALI","C310","MOL-ING-PLASTIC© CHALLALI C310"]
[null,"14h 40              16h 10",null,null,null,null,"MOL-ING-PLASTIC(TP)","CHALLALI","C310","MOL-ING-PLASTIC(TP) CHALLALI C310"]
[null,"16h 20              17h 50"]
["Samedi","8h 00                     9h 30"]
[null,"9h 40                  11h 10"]
[null,"11h20                 12h 50"]

{"sheet":"MEC LICENCE10","index":1,"n_rows":36,"n_cols":18,"rows_kept":36,"cut":false,"hidden":false,"merged":[[0,0,0,5],[21,0,26,0],[27,0,32,0],[33,0,35,0],[3,0,8,0],[9,0,14,0],[15,0,20,0]]}
["Dep:G-Mécanique",null,null,null,null,null,null,null,null,"Filière:Construction Mécanique",null,null,null,"Spécialite:Construction Mécanique"]
[null,"Section:",null,null,null,"Licence 3ème année",null,null,null,{"$f":"NOW()","v":"2017-10-19T13:25:47.140"}]
["Jour","SEANCES","LCM-15/A","Enseignant","Salle","LCM-15/A","LCM-15/B","Enseignant","Salle","LCM-15/B","LCM-15/C","Enseignant","Salle","LCM-15/C","LCM-14/D","Enseignant","Salle","LCM-14/D"]
["Dimanche","8h 00                     9h 30","DESSIN(TP)","MAIZA","AT23","DESSIN(TP) MAIZA AT23",null,null,null,null,null,null,null,null,"CFAO(TP)","XX","XX","CFAO(TP) XX XX"]
[null,"9h 40                 11h 10","DESSIN(TP)","MAIZA","AT23","DESSIN(TP) MAIZA AT23",null,null,null,null,"CONSTR-MEC(TD)","BOUDIEB","A22","CONSTR-MEC(TD) BOUDIEB A22","CFAO(TP)","XX","XX","CFAO(TP) XX XX"]
[null,"11h20                 12h 50",null,null,null,null,"CONSTR-MEC(TD)","BOUDIEB","C49","CONSTR-MEC(TD) BOUDIEB C49"]
[null,"13h 00              14h 30","ASSERV ET REGULAT©","BOUMEDINE","AP3","ASSERV ET REGULAT© BOUMEDINE AP3","ASSERV ET REGULAT©","BOUMEDINE","AP3","ASSERV ET REGULAT© BOUMEDINE AP3","ASSERV ET REGULAT©","BOUMEDINE","AP3","ASSERV ET REGULAT© BOUMEDINE AP3","MEC ANALYTIQUE©","XX","XX","MEC ANALYTIQUE© XX XX"]
[null,"14h 40              16h 10","CONSTR MEC©","BOUDIEB","AP3","CONSTR MEC© BOUDIEB AP3","CONSTR MEC©","BOUDIEB","AP3","CONSTR MEC© BOUDIEB AP3","CONSTR MEC©","BOUDIEB","AP3","CONSTR MEC© BOUDIEB AP3","CONSTR MEC©","XX","XX","CONSTR MEC© XX XX"]
[null,"16h 20              17h 50"]
["Lundi","8h 00                    9h 30","ENVR ET DEVLOPP DURABLE©","MOHAMMEDI","AP3","ENVR ET DEVLOPP DURABLE© MOHAMMEDI AP3","ENVR ET DEVLOPP DURABLE©","MOHAMMEDI","AP3","ENVR ET DEVLOPP DURABLE© MOHAMMEDI AP3","ENVR ET DEVLOPP DURABLE©","MOHAMMEDI","AP3","ENVR ET DEVLOPP DURABLE© MOHAMMEDI AP3","RESIST DES MATR©","XX","XX","RESIST DES MATR© XX XX"]
[null,"9h 40                  11h 10","MEC ANALYTIQUE©","HEDEILI-F","AP3","MEC ANALYTIQUE© HEDEILI-F AP3","MEC ANALYTIQUE©","HEDEILI-F","AP3","MEC ANALYTIQUE© HEDEILI-F AP3","MEC ANALYTIQUE©","HEDEILI-F","AP3","MEC ANALYTIQUE© HEDEILI-F AP3","MEC ANALYTIQUE©","XX","XX","MEC ANALYTIQUE© XX XX"]
[null,"11h20                12h 50"]
[null,"13h 00              14h 30",null,null,null,null,"DESSIN(TP)","MAIZA","AT24","DESSIN(TP) MAIZA AT24","CFAO(TP)","HAMRANI","RC9/B","CFAO(TP) HAMRANI RC9/B","MEC ANALYTIQUE(TD)","XX","XX","MEC ANALYTIQUE(TD) XX XX"]
[null,"14h 40              16h 10",null,null,null,null,"DESSIN(TP)","MAIZA","AT24","DESSIN(TP) MAIZA AT24","CFAO(TP)","HAMRANI","RC9/B","CFAO(TP) HAMRANI RC9/B"]
[null,"16h 20              17h 50"]
["Mardi","8h 00                    9h 30","ELASTICITE©","DJOUAD","AP1","ELASTICITE© DJOUAD AP1","ELASTICITE©","DJOUAD","AP1","ELASTICITE© DJOUAD AP1","ELASTICITE©","DJOUAD","AP1","ELASTICITE© DJOUAD AP1","DESSIN(TP)","XX","XX","DESSIN(TP) XX XX"]
[null,"9h 40                 11h 10","RESIST DES MATR(TD)","CHIKH","C49","RESIST DES MATR(TD) CHIKH C49","ELASTICITE(TD)","DJOUAD","C42","ELASTICITE(TD) DJOUAD C42",null,null,null,null,"DESSIN(TP)","XX","XX","DESSIN(TP) XX XX"]
[null,"11h20                12h 50",null,null,null,null,null,null,null,null,null,null,null,null,"ELASTICITE©","XX","XX","ELASTICITE© XX XX"]
[null,"13h 00              14h 30","MAINTENANCE©","AKNOUCHE","AP1","MAINTENANCE© AKNOUCHE AP1","MAINTENANCE©","AKNOUCHE","AP1","MAINTENANCE© AKNOUCHE AP1","MAINTENANCE©","AKNOUCHE","AP1","MAINTENANCE© AKNOUCHE AP1"]
[null,"14h 40              16h 10","RESIST DES MATR©","CHIKH","AP1","RESIST DES MATR© CHIKH AP1","RESIST DES MATR©","CHIKH","AP1","RESIST DES MATR© CHIKH AP1","RESIST DES MATR©","CHIKH","AP1","RESIST DES MATR© CHIKH AP1","MAINTENANCE©","XX","XX","MAINTENANCE© XX XX"]
[null,"16h 20              17h 50"]
["Mercredi","8h 00                    9h 30","MEC ANALYTIQUE(TD)","HEDEILI-N","B36","MEC ANALYTIQUE(TD) HEDEILI-N B36","CFAO(TP)","HAMRANI","AB12","CFAO(TP) HAMRANI AB12","METROLOGIE(TP)","CHALLA","ATFMS","METROLOGIE(TP) CHALLA ATFMS"]
[null,"9h 40                 11h 10",null,null,null,null,"CFAO(TP)","HAMRANI","AB12","CFAO(TP) HAMRANI AB12","METROLOGIE(TP)","CHALLA","ATFMS","METROLOGIE(TP) CHALLA ATFMS"]
[null,"11h20                12h 50","CONSTR MEC(TD)","BOUDIEB","A21","CONSTR MEC(TD) BOUDIEB A21",null,null,null,null,"RESIST DES MATR(TD)","CHIKH","A14","RESIST DES MATR(TD) CHIKH A14"]
[null,"13h 00              14h 30","CFAO(TP)","HAMRANI","A26","CFAO(TP) HAMRANI A26","RESIST DES MATR(TD)","CHIKH","A21","RESIST DES MATR(TD) CHIKH A21","MEC ANALYTIQUE(TD)","HEDEILI-N","A13","MEC ANALYTIQUE(TD) HEDEILI-N A13","CONSTR MEC(TD)","XX","XX","CONSTR MEC(TD) XX XX"]
[null,"14h 40              16h 10","CFAO(TP)","HAMRANI","A26","CFAO(TP) HAMRANI A26","MEC ANALYTIQUE(TD)","HEDEILI-N","A21","MEC ANALYTIQUE(TD) HEDEILI-N A21",null,null,null,null,"R-D-M(TD)","XX","XX","R-D-M(TD) XX XX"]
[null,"16h 20              17h 50"]
["Jeudi","8h 00                     9h 30","MEC ANALYTIQUE©","HEDEILI-F","AP1","MEC ANALYTIQUE© HEDEILI-F AP1","MEC ANALYTIQUE©","HEDEILI-F","AP1","MEC ANALYTIQUE© HEDEILI-F AP1","MEC ANALYTIQUE©","HEDEILI-F","AP1","MEC ANALYTIQUE© HEDEILI-F AP1","ENVR ET DEVLOPP DURABLE©","XX","XX","ENVR ET DEVLOPP DURABLE© XX XX"]
[null,"9h 40                  11h 10","METROLOGIE(TP)","CHALLA","ATFMS","METROLOGIE(TP) CHALLA ATFMS",null,null,null,null,null,null,null,null,"ASSERV ET REGULAT©","XX","XX","ASSERV ET REGULAT© XX XX"]
[null,"11h20                 12h 50","METROLOGIE(TP)","CHALLA","ATFMS","METROLOGIE(TP) CHALLA ATFMS",null,null,null,null,"ELASTICITE(TD)","DJOUAD","A22","ELASTICITE(TD) DJOUAD A22"]
[null,"13h 00              14h 30",null,null,null,null,"METROLOGIE(TP)","CHALLA","ATFMS","METROLOGIE(TP) CHALLA ATFMS","DESSIN(TP)","MAIZA","AT23","DESSIN(TP) MAIZA AT23"]
[null,"14h 40              16h 10","ELASTICITE(TD)","DJOUAD","A21","ELASTICITE(TD) DJOUAD A21","METROLOGIE(TP)","CHALLA","ATFMS","METROLOGIE(TP) CHALLA ATFMS","DESSIN(TP)","MAIZA","AT23","DESSIN(TP) MAIZA AT23"]
[null,"16h 20              17h 50"]
["Samedi","8h 00                     9h 30"]
[null,"9h 40                  11h 10",null,null,null,null,null,null,null,null,null,null,null,null,"METROLOGIE(TP)","XX","XX","METROLOGIE(TP) XX XX"]
[null,"11h20                 12h 50",null,null,null,null,null,null,null,null,null,null,null,null,"ELASTICITE(TD)","XX","XX","ELASTICITE(TD) XX XX"]

{"sheet":"MEC MASTER12","index":2,"n_rows":36,"n_cols":18,"rows_kept":36,"cut":false,"hidden":false,"merged":[[33,0,35,0],[0,0,0,1],[3,0,8,0],[9,0,14,0],[15,0,20,0],[21,0,26,0],[27,0,32,0]]}
["Filière:génie  mécanique",null,null,null,null,null,null,null,null,"Spécialité:Construction-fabrication",null,null,null,"structure mecanique",null,null,null,"chaudronnerie"]
[null,"Section:",null,null,null,"Mastre 1ère année",null,null,null,{"$f":"NOW()","v":"2017-10-19T13:25:47.140"}]
["Jour","SEANCES","MCM-17","Enseignant","Salle","MCM-17","MFMP-17","Enseignant","Salle","MFMP-17","MSM-17","Enseignant","Salle","MSM-17","MOCP17","Enseignant","Salle","MOCP17"]
["Dimanche","8h 00                     9h 30","MOTEUR A COND©","MERAH","C48","MOTEUR A COND© MERAH C48","MATERIAUX©","AITSAADA","B310","MATERIAUX© AITSAADA B310","ELEMENT FINIS I©","XX","XX","ELEMENT FINIS I© XX XX"]
[null,"9h 40                 11h 10","MOTEUR A COND(TD)","MERAH","C48","MOTEUR A COND(TD) MERAH C48","MATERIAUX(TD)","AITSAADA","B310","MATERIAUX(TD) AITSAADA B310","ELEMENT FINIS I©","XX","XX","ELEMENT FINIS I© XX XX"]
[null,"11h20                 12h 50",null,null,null,null,null,null,null,null,"CHAUDRONNERIE-TUYAUTERIE I©","XX","XX","CHAUDRONNERIE-TUYAUTERIE I© XX XX","TUYAUTRIE I©","REGUEB","C43","TUYAUTRIE I© REGUEB C43"]
[null,"13h 00              14h 30","RDM(TP);MDF(TP)","BELHADEF;BAHLOUL","AT13;RC7","RDM(TP) BELHADEF AT13\nMDF(TP) BAHLOUL RC7",null,null,null,null,null,null,null,null,"CHAUDRONNERIR I©","CHEBAB","C43","CHAUDRONNERIR I© CHEBAB C43"]
[null,"14h 40              16h 10","RDM(TP);MDF(TP)","BELHADEF;BAHLOUL","AT13;RC7","RDM(TP) BELHADEF AT13\nMDF(TP) BAHLOUL RC7","MACHINES OUTILS©","BOUHABILA","C310","MACHINES OUTILS© BOUHABILA C310",null,null,null,null,"CHAUDRONNERIR I(TD)","CHEBAB","C43","CHAUDRONNERIR I(TD) CHEBAB C43"]
[null,"16h 20              17h 50"]
["Lundi","8h 00                    9h 30","CHARPENTE-METALIQUE©","MESKINE","C45","CHARPENTE-METALIQUE© MESKINE C45","COUP DES METAUX©","CHALLALI","C37","COUP DES METAUX© CHALLALI C37","CONCEPTION METALIQUE I©","XX","XX","CONCEPTION METALIQUE I© XX XX","SOUDAGE©","BOUTOUTAOU","B212","SOUDAGE© BOUTOUTAOU B212"]
[null,"9h 40                  11h 10",null,null,null,null,"COUP DES METAUX(TD)","CHALLALI","C37","COUP DES METAUX(TD) CHALLALI C37","CONCEPTION METALIQUE©","XX","XX","CONCEPTION METALIQUE© XX XX","ELEMENTS FINIS ET PROGR©","BOUTOUTAOU","B212","ELEMENTS FINIS ET PROGR© BOUTOUTAOU B212"]
[null,"11h20                12h 50","TECH-FAB-COND-AV©","BOUHABILA","C310","TECH-FAB-COND-AV© BOUHABILA C310",null,null,null,null,"CONCEPT-MET(TD)","XX","XX","CONCEPT-MET(TD) XX XX","TUYAUTRIE I(TD)","REGUEB","B212","TUYAUTRIE I(TD) REGUEB B212"]
[null,"13h 00              14h 30","MAINT-INDUST©","BENAMMAR","AP4","MAINT-INDUST© BENAMMAR AP4","MAINT-INDUST©","BENAMMAR","AP4","MAINT-INDUST© BENAMMAR AP4"]
[null,"14h 40              16h 10",null,null,null,null,"H-S-I©","REGUEB","B39","H-S-I© REGUEB B39","TECH-SOUDAGE(TD)","XX","XX","TECH-SOUDAGE(TD) XX XX","SOUDAGE(TD)","BOUTOUTAOU","B213","SOUDAGE(TD) BOUTOUTAOU B213"]
[null,"16h 20              17h 50"]
["Mardi","8h 00                    9h 30","DY-FLUIDES-APP©","MERAH","B414","DY-FLUIDES-APP© MERAH B414","M-M-C©","BENSAFIA","B313","M-M-C© BENSAFIA B313","VIBRATION DES STRUCTURES(TD)","XX","XX","VIBRATION DES STRUCTURES(TD) XX XX","PLASTICITE©","HEDEILI-N","B212","PLASTICITE© HEDEILI-N B212"]
[null,"9h 40                 11h 10","DY-FLUIDES-APP(TD)","MERAH","B312","DY-FLUIDES-APP(TD) MERAH B312","M-M-C(TD)","BENSAFIA","B313","M-M-C(TD) BENSAFIA B313",null,null,null,null,"PLASTICITE(TD)","HEDEILI-N","B212","PLASTICITE(TD) HEDEILI-N B212"]
[null,"11h20                12h 50",null,null,null,null,null,null,null,null,"ELEMENTS FINIS I(TD)","XX","XX","ELEMENTS FINIS I(TD) XX XX","M-D-R©","HACHEMANE","B212","M-D-R© HACHEMANE B212"]
[null,"13h 00              14h 30","R-D-M-A©","CHIKH","B38","R-D-M-A© CHIKH B38",null,null,null,null,"STABI-ELEM-STRUCT©","XX","XX","STABI-ELEM-STRUCT© XX XX"]
[null,"14h 40              16h 10","M-M-C©","BENSAFIA","B36","M-M-C© BENSAFIA B36"]
[null,"16h 20              17h 50"]
["Mercredi","8h 00                    9h 30","R-D-M(TD)","CHIKH","B38","R-D-M(TD) CHIKH B38","PROCEDES M-E-F©","BENDJEDDOU","C49","PROCEDES M-E-F© BENDJEDDOU C49",null,null,null,null,"ELEMENTS FINIS ET PROGR©","BOUTOUTAOU","B212","ELEMENTS FINIS ET PROGR© BOUTOUTAOU B212"]
[null,"9h 40                 11h 10","M-M-C©","BENSAFIA","B36","M-M-C© BENSAFIA B36","ANGLAIS©","MEGHARI","C49","ANGLAIS© MEGHARI C49",null,null,null,null,"ELEMENTS FINIS ET PROGR(TD) ","BOUTOUTAOU","B212","ELEMENTS FINIS ET PROGR(TD)  BOUTOUTAOU B212"]
[null,"11h20                12h 50","M-M-C(TD)","BENSAFIA","B36","M-M-C(TD) BENSAFIA B36"]
[null,"13h 00              14h 30",null,null,null,null,"FABR-MEC-METROL(TP);METROLOGIE(TP)","BELLAL;CHALLA","ATFM;ATFMS","FABR-MEC-METROL(TP) BELLAL ATFM\nMETROLOGIE(TP) CHALLA ATFMS",null,null,null,null,"M-D-R(TD) ","HACHEMANE","C43","M-D-R(TD)  HACHEMANE C43"]
[null,"14h 40              16h 10","ANGLAIS©","MEGHARI","B32","ANGLAIS© MEGHARI B32","FABR-MEC-METROL(TP);METROLOGIE(TP)","BELLAL;CHALLA","ATFM;ATFMS","FABR-MEC-METROL(TP) BELLAL ATFM\nMETROLOGIE(TP) CHALLA ATFMS",null,null,null,null,"SOUDAGE©","BOUTOUTAOU","C43","SOUDAGE© BOUTOUTAOU C43"]
[null,"16h 20              17h 50"]
["Jeudi","8h 00                     9h 30","TECH-FAB-COND-AV(TP)","BELLAL+HALFAOUI","FM","TECH-FAB-COND-AV(TP) BELLAL+HALFAOUI FM","PROCEDES M-E-F(TD)","BENDJEDDOU","A13","PROCEDES M-E-F(TD) BENDJEDDOU A13"]
[null,"9h 40                  11h 10","TECH-FAB-COND-AV(TP)","BELLAL+HALFAOUI","FM","TECH-FAB-COND-AV(TP) BELLAL+HALFAOUI FM","ROBOTIQUE-INDUST©","HEDEILI-F","A13","ROBOTIQUE-INDUST© HEDEILI-F A13","VIBRATIOIN DES STRUCTURE©","XX","XX","VIBRATIOIN DES STRUCTURE© XX XX","DYN DES STRUCTURES II©","HAMRANI","AP1","DYN DES STRUCTURES II© HAMRANI AP1"]
[null,"11h20                 12h 50",null,null,null,null,"ROBOTIQUE INDUST(TP)","HEDEILI-F","A13","ROBOTIQUE INDUST(TP) HEDEILI-F A13","TECHNOLOGIES DE SODAGE©","XX","XX","TECHNOLOGIES DE SODAGE© XX XX","DYN DES STRUCTURES II(TD)","HAMRANI","AP1","DYN DES STRUCTURES II(TD) HAMRANI AP1"]
[null,"13h 00              14h 30","AUTO-SYST-INDUST©","SEMMOUD","B42","AUTO-SYST-INDUST© SEMMOUD B42"]
[null,"14h 40              16h 10","AUTO-SYST-INDUST(TP)","SEMMOUD","B42","AUTO-SYST-INDUST(TP) SEMMOUD B42"]
[null,"16h 20              17h 50"]
["Samedi","8h 00                     9h 30",null,null,null,null,null,null,null,null,"STABI-ELEM-STRUCT(TD)","XX","XX","STABI-ELEM-STRUCT(TD) XX XX"]
[null,"9h 40                  11h 10",null,null,null,null,null,null,null,null,"CHAUD-TUYAUT©","XX","XX","CHAUD-TUYAUT© XX XX"]
[null,"11h20                 12h 50",null,null,null,null,null,null,null,null,"CHAUD-TUYAUT(TD) ","XX","XX","CHAUD-TUYAUT(TD)  XX XX"]

{"sheet":"GC MASTER11","index":3,"n_rows":36,"n_cols":18,"rows_kept":36,"cut":false,"hidden":false,"merged":[[33,0,35,0],[3,0,8,0],[9,0,14,0],[0,0,0,1],[15,0,20,0],[21,0,26,0],[27,0,32,0]]}
["Departement:",null,null,null,null,"génie civil"]
[null,"Section:",null,null,null,"Master 2ème année",null,null,null,{"$f":"NOW()","v":"2017-10-19T13:25:47.140"}]
["Jour","SEANCES","MGC16-ST","Enseignant","Salle","MGC16-ST","MGC16-GO","Enseignant","Salle","MGC16-GO","MGC16-P/A","Enseignant","Salle","MGC16-P/A","MGC16-P/B","Enseignant","Salle","MGC16-P/B"]
["Dimanche","8h 00                     9h 30",null,null,null,null,"STAB-SOL-PROB©","LAZALI","B48","STAB-SOL-PROB© LAZALI B48"]
[null,"9h 40                 11h 10","GENIE PARASISMIQUE©","SERIDI","B32","GENIE PARASISMIQUE© SERIDI B32","STABILITE-SOL-PROB(TP)","LAZALI","B48","STABILITE-SOL-PROB(TP) LAZALI B48","INGENIERIE FONDATIONS©","BERKANI","AP5","INGENIERIE FONDATIONS© BERKANI AP5","INGENIERIE FONDATIONS©","BERKANI","AP5","INGENIERIE FONDATIONS© BERKANI AP5"]
[null,"11h20                 12h 50","PLASTICITE-ENDOM©","HAMADOUCHE","B36","PLASTICITE-ENDOM© HAMADOUCHE B36","STABILITE-SOL-PROB(TP)","LAZALI","B48","STABILITE-SOL-PROB(TP) LAZALI B48","CONSTR-MET(TD)","LABDAOUI","B415","CONSTR-MET(TD) LABDAOUI B415","INGENIERIE FONDATIONS(TD)","BERKANI","B41","INGENIERIE FONDATIONS(TD) BERKANI B41"]
[null,"13h 00              14h 30","PLASTICITE-ENDOM(TD)","HAMADOUCHE","B36","PLASTICITE-ENDOM(TD) HAMADOUCHE B36"]
[null,"14h 40              16h 10"]
[null,"16h 20              17h 50"]
["Lundi","8h 00                    9h 30","GENIE PARASISMIQUE(TD)","SERIDI","B32","GENIE PARASISMIQUE(TD) SERIDI B32","SYST-INFOR-GE©","X","B48","SYST-INFOR-GE© X B48","BETON PRECONTRAIT(TD)","CHEBBOUT","B415","BETON PRECONTRAIT(TD) CHEBBOUT B415","CAL-STRUCT-ASSIST PAR ORD©","BEDDIAR","RC9/B","CAL-STRUCT-ASSIST PAR ORD© BEDDIAR RC9/B"]
[null,"9h 40                  11h 10","BETON PRECONTRAINT©","CHEBBOUT","B32","BETON PRECONTRAINT© CHEBBOUT B32","CAL-RUP-ANAL-LIM©","HAMADOUCHE","B48","CAL-RUP-ANAL-LIM© HAMADOUCHE B48","CAL-STRUCT-ASSIST PAR ORD©","BEDDIAR","RC9/B","CAL-STRUCT-ASSIST PAR ORD© BEDDIAR RC9/B","ELEMENT FINIS(TD)","MEGHOUCHE","C42","ELEMENT FINIS(TD) MEGHOUCHE C42"]
[null,"11h20                12h 50",null,null,null,null,"CAL-RUP-ANAL-LIM(TD)","HAMADOUCHE","B48","CAL-RUP-ANAL-LIM(TD) HAMADOUCHE B48","BETON PRECONTRAIT©","CHEBBOUT","B417","BETON PRECONTRAIT© CHEBBOUT B417","BETON PRECONTRAIT©","CHEBBOUT","B417","BETON PRECONTRAIT© CHEBBOUT B417"]
[null,"13h 00              14h 30","RISQUE NATURELS©","HAMZA","B38","RISQUE NATURELS© HAMZA B38"]
[null,"14h 40              16h 10","RISQUE NATURELS(TD)","HAMZA","B38","RISQUE NATURELS(TD) HAMZA B38","SYST-INFOR-GE(TP)","X","B46","SYST-INFOR-GE(TP) X B46"]
[null,"16h 20              17h 50"]
["Mardi","8h 00                    9h 30","OUVRAGE SPECIAUX©","BEDDIAR","B31","OUVRAGE SPECIAUX© BEDDIAR B31"]
[null,"9h 40                 11h 10","OUVRAGE SPECIAUX(TD)","BEDDIAR","B31","OUVRAGE SPECIAUX(TD) BEDDIAR B31"]
[null,"11h20                12h 50",null,null,null,null,"NOTION-CONSTR-CIVIL-INDUST©","BEDDAOUI","C48","NOTION-CONSTR-CIVIL-INDUST© BEDDAOUI C48"]
[null,"13h 00              14h 30",null,null,null,null,"DY-OUV-GEO©","MESSAFER","C45","DY-OUV-GEO© MESSAFER C45","CONSTR-MET©","LABDAOUI","B416","CONSTR-MET© LABDAOUI B416","CONSTR-MET©","LABDAOUI","B416","CONSTR-MET© LABDAOUI B416"]
[null,"14h 40              16h 10",null,null,null,null,"DY-OUV-GEO(TD)","MESSAFER","C45","DY-OUV-GEO(TD) MESSAFER C45","ELEMENT FINISII(TD)","KAB","B416","ELEMENT FINISII(TD) KAB B416","CONSTR-MET(TD)","LABDAOUI","B415","CONSTR-MET(TD) LABDAOUI B415"]
[null,"16h 20              17h 50"]
["Mercredi","8h 00                    9h 30","PROJET-STRUCT-BET-ARME©","DJAALALI","B32","PROJET-STRUCT-BET-ARME© DJAALALI B32","TUNNELS-OUV-SOUT©","MESSAFER","A13","TUNNELS-OUV-SOUT© MESSAFER A13","ORG DES CHANTIERS©","BERKANI","B418","ORG DES CHANTIERS© BERKANI B418","ORG DES CHANTIERS©","BERKANI","B418","ORG DES CHANTIERS© BERKANI B418"]
[null,"9h 40                 11h 10","PROJET-STRUCT-BET-ARME(TP);MODELISATION STRUCTURE(TP)","X;X","X;X","PROJET-STRUCT-BET-ARME(TP) X X\nMODELISATION STRUCTURE(TP) X X","TUNNELS-OUV-SOUT(TD)","MESSAFER","A15","TUNNELS-OUV-SOUT(TD) MESSAFER A15","ELEMENT FINIS©","KADRI","B418","ELEMENT FINIS© KADRI B418","ELEMENT FINIS©","KADRI","B418","ELEMENT FINIS© KADRI B418"]
[null,"11h20                12h 50","PROJET-STRUCT-BET-ARME(TP);MODELISATION STRUCTURE(TP)","X;X","X;X","PROJET-STRUCT-BET-ARME(TP) X X\nMODELISATION STRUCTURE(TP) X X"]
[null,"13h 00              14h 30",null,null,null,null,"PATHO-OUV-GEO©","LAZALI+BELARBI","B48","PATHO-OUV-GEO© LAZALI+BELARBI B48"]
[null,"14h 40              16h 10",null,null,null,null,"BARRAGES-EN-TERR©","MESSAFER","B48","BARRAGES-EN-TERR© MESSAFER B48"]
[null,"16h 20              17h 50"]
["Jeudi","8h 00                     9h 30","RECH-DOC-CONCEPT-MEM©","X","B44","RECH-DOC-CONCEPT-MEM© X B44","RECH-DOC-CONCEPT-MEM©","X","B44","RECH-DOC-CONCEPT-MEM© X B44",null,null,null,null,"BETON PRECONTRAIT(TD)","CHEBBOUT","B35","BETON PRECONTRAIT(TD) CHEBBOUT B35"]
[null,"9h 40                  11h 10",null,null,null,null,"GEOSTATISTIQUE©","MESSAFER","B311","GEOSTATISTIQUE© MESSAFER B311","BETON PRECONTRAIT©","CHEBBOUT","B417","BETON PRECONTRAIT© CHEBBOUT B417","BETON PRECONTRAIT©","CHEBBOUT","B417","BETON PRECONTRAIT© CHEBBOUT B417"]
[null,"11h20                 12h 50","BETON PRECONTRAINT©","CHEBBOUT","B417","BETON PRECONTRAINT© CHEBBOUT B417","GEOSTATISTIQUE(TD)","MESSAFER","B311","GEOSTATISTIQUE(TD) MESSAFER B311"]
[null,"13h 00              14h 30","BETON PRECONTRAINT(TD)","CHEBBOUT","B419","BETON PRECONTRAINT(TD) CHEBBOUT B419",null,null,null,null,"INGENIERIE FONDATIONS©","BERKANI","B213","INGENIERIE FONDATIONS© BERKANI B213","INGENIERIE FONDATIONS©","BERKANI","B213","INGENIERIE FONDATIONS© BERKANI B213"]
[null,"14h 40              16h 10",null,null,null,null,null,null,null,null,"INGENIERIE FONDATIONS(TD)","BERKANI","B213","INGENIERIE FONDATIONS(TD) BERKANI B213"]
[null,"16h 20              17h 50"]
["Samedi","8h 00                     9h 30"]
[null,"9h 40                  11h 10"]
[null,"11h20                 12h 50"]

{"sheet":"GC LICENCE10","index":4,"n_rows":36,"n_cols":18,"rows_kept":36,"cut":false,"hidden":false,"merged":[[33,0,34,0],[3,0,8,0],[9,0,14,0],[0,0,0,1],[21,0,26,0],[15,0,20,0],[27,0,32,0]]}
["Departement:",null,null,null,null,"génie civil",null,null,null,"Filière:G-civil",null,null,null,"Spécialite:G-civil",null,null,null,{"$f":"NOW()","v":"2017-10-19T13:25:47.140"}]
[{"$f":"TODAY()","v":"2017-10-19"},"Section:",null,null,null,"Licence 3ème année"]
["Jour","SEANCES","LGC-15/A","Enseignant","Salle","LGC-15/A","LGC-15/B","Enseignant","Salle","LGC-15/B","LGC-15/C","Enseignant","Salle","LGC-15/C","LGC-15/D","Enseignant","Salle","LGC-15/D"]
["Dimanche","8h 00                     9h 30"]
[null,"9h 40                 11h 10","RESISTANCE DES MATERIAUXII©","BOUDJELOUD","AP3","RESISTANCE DES MATERIAUXII© BOUDJELOUD AP3","RESISTANCE DES MATERIAUXII©","BOUDJELOUD","AP3","RESISTANCE DES MATERIAUXII© BOUDJELOUD AP3","RESISTANCE DES MATERIAUXII©","BOUDJELOUD","AP3","RESISTANCE DES MATERIAUXII© BOUDJELOUD AP3","RESISTANCE DES MATERIAUXII©","BOUDJELOUD","AP3","RESISTANCE DES MATERIAUXII© BOUDJELOUD AP3"]
[null,"11h20                 12h 50","R-D-MII(TD)","BOUDJELOUD","B31","R-D-MII(TD) BOUDJELOUD B31"]
[null,"13h 00              14h 30",null,null,null,null,"R-D-MII(TD)","BOUDJELOUD","B31","R-D-MII(TD) BOUDJELOUD B31","MDC(TP)","GHERNOUTI-H+CHAID","C08","MDC(TP) GHERNOUTI-H+CHAID C08","MDS(TP)","BERKANI+RAHLI","C05","MDS(TP) BERKANI+RAHLI C05"]
[null,"14h 40              16h 10",null,null,null,null,null,null,null,null,"MDS(TP)","BERKANI+RAHLI","C05","MDS(TP) BERKANI+RAHLI C05","MDC(TP)","GHERNOUTI-H+CHAID","C08","MDC(TP) GHERNOUTI-H+CHAID C08"]
[null,"16h 20              17h 50"]
["Lundi","8h 00                    9h 30"]
[null,"9h 40                  11h 10",null,null,null,null,"BETON ARME(TD)","GAHER","B39","BETON ARME(TD) GAHER B39",null,null,null,null,"M-D-S(TD)","SANDJAK","A11","M-D-S(TD) SANDJAK A11"]
[null,"11h20                12h 50",null,null,null,null,null,null,null,null,"M-D-S(TD)","SANDJAK","B35","M-D-S(TD) SANDJAK B35","BETON ARME(TD)","GAHER","B313","BETON ARME(TD) GAHER B313"]
[null,"13h 00              14h 30","BETON ARME©","GAHER","AP3","BETON ARME© GAHER AP3","BETON ARME©","GAHER","AP3","BETON ARME© GAHER AP3","BETON ARME©","GAHER","AP3","BETON ARME© GAHER AP3","BETON ARME©","GAHER","AP3","BETON ARME© GAHER AP3"]
[null,"14h 40              16h 10","HYDROLIQUE GEN©","GHERNAOUAT","AP3","HYDROLIQUE GEN© GHERNAOUAT AP3","HYDROLIQUE GEN©","GHERNAOUAT","AP3","HYDROLIQUE GEN© GHERNAOUAT AP3","HYDROLIQUE GEN©","GHERNAOUAT","AP3","HYDROLIQUE GEN© GHERNAOUAT AP3","HYDROLIQUE GEN©","GHERNAOUAT","AP3","HYDROLIQUE GEN© GHERNAOUAT AP3"]
[null,"16h 20              17h 50"]
["Mardi","8h 00                    9h 30"]
[null,"9h 40                 11h 10","CHARPENTE METTALIQUE©","BEDAOUI","AP2","CHARPENTE METTALIQUE© BEDAOUI AP2","CHARPENTE METTALIQUE©","BEDAOUI","AP2","CHARPENTE METTALIQUE© BEDAOUI AP2","CHARPENTE METTALIQUE©","BEDAOUI","AP2","CHARPENTE METTALIQUE© BEDAOUI AP2","CHARPENTE METTALIQUE©","BEDAOUI","AP2","CHARPENTE METTALIQUE© BEDAOUI AP2"]
[null,"11h20                12h 50","NORMES ET REGLEMENT©","X","AP2","NORMES ET REGLEMENT© X AP2","NORMES ET REGLEMENT©","X","AP2","NORMES ET REGLEMENT© X AP2","NORMES ET REGLEMENT©","X","AP2","NORMES ET REGLEMENT© X AP2","NORMES ET REGLEMENT©","X","AP2","NORMES ET REGLEMENT© X AP2"]
[null,"13h 00              14h 30",null,null,null,null,null,null,null,null,"CHARP-METALIQ(TD)","BEDAOUI","B36","CHARP-METALIQ(TD) BEDAOUI B36"]
[null,"14h 40              16h 10"]
[null,"16h 20              17h 50"]
["Mercredi","8h 00                    9h 30","[SP]DESSIN(TP)","BELARBI","B47","[SP]DESSIN(TP) BELARBI B47","[SI]DESSIN-BTP(TD)","BELARBI","B47","[SI]DESSIN-BTP(TD) BELARBI B47","R-D-MII(TD)","BOUDJELOUD","B311","R-D-MII(TD) BOUDJELOUD B311"]
[null,"9h 40                 11h 10","[SP]DESSIN(TP)","BELARBI","B47","[SP]DESSIN(TP) BELARBI B47","[SI]DESSIN-BTP(TD)","BELARBI","B47","[SI]DESSIN-BTP(TD) BELARBI B47",null,null,null,null,"R-D-MII(TD)","BOUDJELOUD","B311","R-D-MII(TD) BOUDJELOUD B311"]
[null,"11h20                12h 50"]
[null,"13h 00              14h 30","MAT DE CONSTRUCTION©","CHAID","AP3","MAT DE CONSTRUCTION© CHAID AP3","MAT DE CONSTRUCTION©","CHAID","AP3","MAT DE CONSTRUCTION© CHAID AP3","MAT DE CONSTRUCTION©","CHAID","AP3","MAT DE CONSTRUCTION© CHAID AP3","MAT DE CONSTRUCTION©","CHAID","AP3","MAT DE CONSTRUCTION© CHAID AP3"]
[null,"14h 40              16h 10","TOPOGRAPHIE©","BELARBI","AP3","TOPOGRAPHIE© BELARBI AP3","TOPOGRAPHIE©","BELARBI","AP3","TOPOGRAPHIE© BELARBI AP3","TOPOGRAPHIE©","BELARBI","AP3","TOPOGRAPHIE© BELARBI AP3","TOPOGRAPHIE©","BELARBI","AP3","TOPOGRAPHIE© BELARBI AP3"]
[null,"16h 20              17h 50"]
["Jeudi","8h 00                     9h 30","CHARP-METALIQ(TD)","BEDAOUI","B42","CHARP-METALIQ(TD) BEDAOUI B42",null,null,null,null,"[SI]DESSIN(TP)","BELARBI","AT22","[SI]DESSIN(TP) BELARBI AT22","[SP]DESSIN(TP)","BELARBI","AT22","[SP]DESSIN(TP) BELARBI AT22"]
[null,"9h 40                  11h 10","BETON ARME(TD)","GAHER","B42","BETON ARME(TD) GAHER B42","CHARP-METALIQ(TD)","BEDAOUI","B313","CHARP-METALIQ(TD) BEDAOUI B313","[SI]DESSIN(TP)","BELARBI","AT22","[SI]DESSIN(TP) BELARBI AT22","[SP]DESSIN(TP)","BELARBI","AT22","[SP]DESSIN(TP) BELARBI AT22"]
[null,"11h20                 12h 50",null,null,null,null,null,null,null,null,"BETON ARME(TD)","GAHER","B44","BETON ARME(TD) GAHER B44","CHARP-METALIQ(TD)","BEDAOUI","B419","CHARP-METALIQ(TD) BEDAOUI B419"]
[null,"13h 00              14h 30","MDC(TP)","GHERNOUTI-H+CHAID","C08","MDC(TP) GHERNOUTI-H+CHAID C08","MDS(TP)","BELARBI+KERFOUF","C08","MDS(TP) BELARBI+KERFOUF C08"]
[null,"14h 40              16h 10","MDS(TP)","BELARBI+KERFOUF","C08","MDS(TP) BELARBI+KERFOUF C08","MDC(TP)","GHERNOUTI-H+CHAID","C08","MDC(TP) GHERNOUTI-H+CHAID C08"]
[null,"16h 20              17h 50"]
["Samedi","8h 00                     9h 30","MECANIQUE DES SOLSII©","SANDJAK","AP4","MECANIQUE DES SOLSII© SANDJAK AP4","MECANIQUE DES SOLSII©","SANDJAK","AP4","MECANIQUE DES SOLSII© SANDJAK AP4","MECANIQUE DES SOLSII©","SANDJAK","AP4","MECANIQUE DES SOLSII© SANDJAK AP4","MECANIQUE DES SOLSII©","SANDJAK","AP4","MECANIQUE DES SOLSII© SANDJAK AP4"]
[null,"9h 40                  11h 10","M-D-S(TD)","SANDJAK","B415","M-D-S(TD) SANDJAK B415"]
[null,"11h20                 12h 50",null,null,null,null,"M-D-S(TD)","SANDJAK","B415","M-D-S(TD) SANDJAK B415"]

{"sheet":"GC MASTER12","index":5,"n_rows":36,"n_cols":18,"rows_kept":36,"cut":false,"hidden":false,"merged":[[33,0,35,0],[0,0,0,1],[3,0,8,0],[9,0,14,0],[15,0,20,0],[21,0,26,0],[27,0,32,0]]}
["Filière:génie civil",null,null,null,null,"Spécialité:",null,null,null,"structures-geotechnique"]
[null,"Section:",null,null,null,"Master 1ème année",null,null,null,null,null,null,null,{"$f":"NOW()","v":"2017-10-19T13:25:47.140"}]
["Jour","SEANCES","MGCP17/A","Enseignant","Salle","MGCP17/A","MGCP17/B","Enseignant","Salle","MGCP17/B","MGCP17-GE","Enseignant","Salle","MGCP17-GE","MGC17-ST","Enseignant","Salle","MGC17-ST"]
["Dimanche","8h 00                     9h 30","D-D-S©","MEZAZIGH","B419","D-D-S© MEZAZIGH B419","D-D-S©","MEZAZIGH","B419","D-D-S© MEZAZIGH B419","D-D-SI©","SERIDI","B39","D-D-SI© SERIDI B39","COMP-PROGRAMMATION(TP)","NADIR","RC9/A","COMP-PROGRAMMATION(TP) NADIR RC9/A"]
[null,"9h 40                 11h 10","M-E-F©","KADRI","B419","M-E-F© KADRI B419","M-E-F©","KADRI","B419","M-E-F© KADRI B419","ANGLAIS©","X","X","ANGLAIS© X X","STRUCTURES METALIQUE©","LABDAOUI","B39","STRUCTURES METALIQUE© LABDAOUI B39"]
[null,"11h20                 12h 50","CONCEPT-TECH-BAT©","DJAALALI","B419","CONCEPT-TECH-BAT© DJAALALI B419","CONCEPT-TECH-BAT©","DJAALALI","B419","CONCEPT-TECH-BAT© DJAALALI B419","ESSAI GEOTHECNIQUES(TP)","KERFOUF","C05","ESSAI GEOTHECNIQUES(TP) KERFOUF C05"]
[null,"13h 00              14h 30",null,null,null,null,null,null,null,null,null,null,null,null,"STRUCTURES EN B-A©","DJAALALI","B35","STRUCTURES EN B-A© DJAALALI B35"]
[null,"14h 40              16h 10",null,null,null,null,null,null,null,null,"ALEA ET RISQUE GEOT©","LAZALI","B415","ALEA ET RISQUE GEOT© LAZALI B415","STRUCTURES METALIQUE(TD)","LABDAOUI","B35","STRUCTURES METALIQUE(TD) LABDAOUI B35"]
[null,"16h 20              17h 50"]
["Lundi","8h 00                    9h 30","ELASTICITE©","ABED-ZIANE","B417","ELASTICITE© ABED-ZIANE B417","ELASTICITE©","ABED-ZIANE","B417","ELASTICITE© ABED-ZIANE B417"]
[null,"9h 40                  11h 10","ELASTICITE©","ABED-ZIANE","B417","ELASTICITE© ABED-ZIANE B417","ELASTICITE©","ABED-ZIANE","B417","ELASTICITE© ABED-ZIANE B417","D-D-SI(TD)","SERIDI","B415","D-D-SI(TD) SERIDI B415"]
[null,"11h20                12h 50"]
[null,"13h 00              14h 30","ELASTICITE(TD)","X","B419","ELASTICITE(TD) X B419","D-D-S(TD)","MEZAZIGH","B417","D-D-S(TD) MEZAZIGH B417","GEOTECH ROUTIERE©","SANDJAK","B49","GEOTECH ROUTIERE© SANDJAK B49","BATIMENT©","BEDDIAR","B31","BATIMENT© BEDDIAR B31"]
[null,"14h 40              16h 10","D-D-S(TD)","MEZAZIGH","B417","D-D-S(TD) MEZAZIGH B417","ELASTICITE(TD)","X","B419","ELASTICITE(TD) X B419","TECH-ROUTIERE(TP)","SANDJAK","X","TECH-ROUTIERE(TP) SANDJAK X","BATIMENT©","BEDDIAR","B31","BATIMENT© BEDDIAR B31"]
[null,"16h 20              17h 50"]
["Mardi","8h 00                    9h 30","M-D-S©","TOUKAL","B37","M-D-S© TOUKAL B37","M-D-S©","TOUKAL","B37","M-D-S© TOUKAL B37","M-M-C©","KADRI","B310","M-M-C© KADRI B310","ANGLAIS©","X","B42","ANGLAIS© X B42"]
[null,"9h 40                 11h 10","M-D-S-II©","KECHOUANE","B37","M-D-S-II© KECHOUANE B37","M-D-S-II©","KECHOUANE","B37","M-D-S-II© KECHOUANE B37","M-M-C©","KADRI","B310","M-M-C© KADRI B310","STRUCT METTALIQUE©","LABDAOUI","B42","STRUCT METTALIQUE© LABDAOUI B42"]
[null,"11h20                12h 50",null,null,null,null,"M-D-S(TD)","TOUKAL","B37","M-D-S(TD) TOUKAL B37","M-M-C(TD)","RAHLI","B32","M-M-C(TD) RAHLI B32"]
[null,"13h 00              14h 30","M-D-S(TD)","TOUKAL","B32","M-D-S(TD) TOUKAL B32",null,null,null,null,null,null,null,null,"D-D-S©","MEZAZIGH","B310","D-D-S© MEZAZIGH B310"]
[null,"14h 40              16h 10","M-D-S-II(TD)","KECHOUANE","B32","M-D-S-II(TD) KECHOUANE B32",null,null,null,null,null,null,null,null,"D-D-S(TD)","MEZAZIGH","B310","D-D-S(TD) MEZAZIGH B310"]
[null,"16h 20              17h 50"]
["Mercredi","8h 00                    9h 30","M-D-S©","TOUKAL","B416","M-D-S© TOUKAL B416","M-D-S©","TOUKAL","B416","M-D-S© TOUKAL B416",null,null,null,null,"METH EXPRIMENTAL(TP)","GHERNOUTI-H","B48","METH EXPRIMENTAL(TP) GHERNOUTI-H B48"]
[null,"9h 40                 11h 10","M-D-S-II©","KECHOUANE","AP4","M-D-S-II© KECHOUANE AP4","M-D-S-II©","KECHOUANE","AP4","M-D-S-II© KECHOUANE AP4","HYDROLOGIES©","BENMOUHOUB","B48","HYDROLOGIES© BENMOUHOUB B48","M-D-S©","TOUKAL","B38","M-D-S© TOUKAL B38"]
[null,"11h20                12h 50",null,null,null,null,null,null,null,null,"TALLS ET SOUTENEMENT©","HAMZA","B311","TALLS ET SOUTENEMENT© HAMZA B311","MEC DES STRUCTURE(TD)","TOUKAL","B35","MEC DES STRUCTURE(TD) TOUKAL B35"]
[null,"13h 00              14h 30","D-D-S©","MEZAZIGH","B418","D-D-S© MEZAZIGH B418","D-D-S©","MEZAZIGH","B418","D-D-S© MEZAZIGH B418","TALLS ET SOUTENEMENT(TD)","HAMZA","B311","TALLS ET SOUTENEMENT(TD) HAMZA B311"]
[null,"14h 40              16h 10",null,null,null,null,"M-D-S-II(TD)","KECHOUANE","B414","M-D-S-II(TD) KECHOUANE B414",null,null,null,null,"MATERIAUX INNOVANTES(TP)","GHERNOUTI-H","B44","MATERIAUX INNOVANTES(TP) GHERNOUTI-H B44"]
[null,"16h 20              17h 50"]
["Jeudi","8h 00                     9h 30","GESTION PROJET©","GAHER","B416","GESTION PROJET© GAHER B416","GESTION PROJET©","GAHER","B416","GESTION PROJET© GAHER B416","METH DES DIFF FINIS(TP)","ROUABHI","RC9/B","METH DES DIFF FINIS(TP) ROUABHI RC9/B","MATERIAUX INNOVANTES©","GHERNOUTI-H","B213","MATERIAUX INNOVANTES© GHERNOUTI-H B213"]
[null,"9h 40                  11h 10","CONCEPT-TECH-BAT©","DJAALALI","AP6","CONCEPT-TECH-BAT© DJAALALI AP6","CONCEPT-TECH-BAT©","DJAALALI","AP6","CONCEPT-TECH-BAT© DJAALALI AP6","METH-DIFF-FINIF©","ROUABHI","C412","METH-DIFF-FINIF© ROUABHI C412"]
[null,"11h20                 12h 50",null,null,null,null,null,null,null,null,null,null,null,null,"STRUCTURES EN B-A(TD)","DJAALALI","B213","STRUCTURES EN B-A(TD) DJAALALI B213"]
[null,"13h 00              14h 30",null,null,null,null,null,null,null,null,"FONDATION©","LAZALI","B38","FONDATION© LAZALI B38"]
[null,"14h 40              16h 10",null,null,null,null,null,null,null,null,"FONDATION(TD)","LAZALI","B38","FONDATION(TD) LAZALI B38","COMP-PROGRAMMATION(TD)","NADIR","B214","COMP-PROGRAMMATION(TD) NADIR B214"]
[null,"16h 20              17h 50"]
["Samedi","8h 00                     9h 30"]
[null,"9h 40                  11h 10"]
[null,"11h20                 12h 50"]

{"sheet":"EAI LICENCE10","index":6,"n_rows":36,"n_cols":14,"rows_kept":36,"cut":false,"hidden":false,"merged":[[0,0,0,1],[3,0,8,0],[33,0,35,0],[27,0,32,0],[21,0,26,0],[15,0,20,0],[9,0,14,0]]}
[null,null,null,null,null,null,null,null,null,"Filière:electrotech-auto-electron",null,null,null,"Spécialite:electrotech-auto-electron"]
[null,"Section:",null,null,null,"Licence 3ème année",null,null,null,{"$f":"NOW()","v":"2017-10-19T13:25:47.140"}]
["Jour","SEANCES","LELEC N-15","Enseignant","Salle","LELECN-15","LAUT-15","Enseignant","Salle","LAUT-15","LELECT-15","Enseignant","Salle","LELECT-15"]
["Dimanche","8h 00                     9h 30","[SI]SIGNAL (TP);[SP]RESEAUX LOCAUX","MASSOUT;X","B210;B210","[SI]SIGNAL (TP) MASSOUT B210\n[SP]RESEAUX LOCAUX X B210","NORMES ET CERTIFICATION©","KORSO","C42","NORMES ET CERTIFICATION© KORSO C42","THEORIE DE CHAMP©","HAMEL","B312","THEORIE DE CHAMP© HAMEL B312"]
[null,"9h 40                 11h 10","[SI]SIGNAL (TP);[SP]RESEAUX LOCAUX","MASSOUT;X","B210;B210","[SI]SIGNAL (TP) MASSOUT B210\n[SP]RESEAUX LOCAUX X B210","ANGLAIS©","YAHIAOUI","C42","ANGLAIS© YAHIAOUI C42","THEORIE DE CHAMP(TD)","HAMEL","B312","THEORIE DE CHAMP(TD) HAMEL B312"]
[null,"11h20                 12h 50",null,null,null,null,null,null,null,null,"SCHEMAS ET APPARILLAGE©","BOUDOUDA","B312","SCHEMAS ET APPARILLAGE© BOUDOUDA B312"]
[null,"13h 00              14h 30","TRAIT DE SIGNAL©","MASSOUT","B41","TRAIT DE SIGNAL© MASSOUT B41","COMMANDES SYST LINEAIRE©","HAMDAOUI","A24","COMMANDES SYST LINEAIRE© HAMDAOUI A24"]
[null,"14h 40              16h 10","TRAIT DE SIGNAL(TD) ","MASSOUT","B41","TRAIT DE SIGNAL(TD)  MASSOUT B41","COMMANDES SYST LINEAIRE(TD)","HAMDAOUI","A24","COMMANDES SYST LINEAIRE(TD) HAMDAOUI A24","SCHEMAS ET APPARILLAGE(TP)","BOUDOUDA","EEA2","SCHEMAS ET APPARILLAGE(TP) BOUDOUDA EEA2"]
[null,"16h 20              17h 50"]
["Lundi","8h 00                    9h 30",null,null,null,null,"ELECTRONIQUE DE PUISSANCES©","AHRICHE","A22","ELECTRONIQUE DE PUISSANCES© AHRICHE A22","ELECTRONIQUE DE PUISSANCES©","AHRICHE","A22","ELECTRONIQUE DE PUISSANCES© AHRICHE A22"]
[null,"9h 40                  11h 10",null,null,null,null,"ELECTRONIQUE DE PUISSANCES(TD)","AHRICHE","A22","ELECTRONIQUE DE PUISSANCES(TD) AHRICHE A22","RESEAUX ELECTRIQUE©","KOUBA","B35","RESEAUX ELECTRIQUE© KOUBA B35"]
[null,"11h20                12h 50","SYST A MICROPROCESSEURS©","MAHDI","B31","SYST A MICROPROCESSEURS© MAHDI B31"]
[null,"13h 00              14h 30","SYST A MICROPROCESSEURS(TP);FONCTION D'ELECTRONIQUE(TP)","MAHDI;BOURKACHE","B211;AT11","SYST A MICROPROCESSEURS(TP) MAHDI B211\nFONCTION D'ELECTRONIQUE(TP) BOURKACHE AT11","COMMANDES SYST LINEAIRE(TP);PROGRAMMATION EN C++(TP)","HAMDAOUI;IKHLEF","B210;AB12","COMMANDES SYST LINEAIRE(TP) HAMDAOUI B210\nPROGRAMMATION EN C++(TP) IKHLEF AB12","CONCEPTION DES SYST ELECTRONIQUE©","LARABI","B35","CONCEPTION DES SYST ELECTRONIQUE© LARABI B35"]
[null,"14h 40              16h 10","SYST A MICROPROCESSEURS(TP);FONCTION D'ELECTRONIQUE(TP)","MAHDI;BOURKACHE","B211;AT11","SYST A MICROPROCESSEURS(TP) MAHDI B211\nFONCTION D'ELECTRONIQUE(TP) BOURKACHE AT11","COMMANDES SYST LINEAIRE(TP);PROGRAMMATION EN C++(TP)","HAMDAOUI;IKHLEF","B210;AB12","COMMANDES SYST LINEAIRE(TP) HAMDAOUI B210\nPROGRAMMATION EN C++(TP) IKHLEF AB12","ELECTRONIQUE DE PUISSANCES(TD)","AHRICHE","B35","ELECTRONIQUE DE PUISSANCES(TD) AHRICHE B35"]
[null,"16h 20              17h 50"]
["Mardi","8h 00                    9h 30","PHYS DES SEMI CONDUCTEURS©","KHALFI","A22","PHYS DES SEMI CONDUCTEURS© KHALFI A22","ELECTRONIQUE DE PUISSANCES(TP)","AHRICHE","B211","ELECTRONIQUE DE PUISSANCES(TP) AHRICHE B211","SEYST ASSERVIS©","HAMDAOUI","B312","SEYST ASSERVIS© HAMDAOUI B312"]
[null,"9h 40                 11h 10","PROPAGATION D'ONDES©","KHALFI","A22","PROPAGATION D'ONDES© KHALFI A22","ELECTRONIQUE DE PUISSANCES(TP)","AHRICHE","B211","ELECTRONIQUE DE PUISSANCES(TP) AHRICHE B211","SEYST ASSERVIS(TD)","HAMDAOUI","B311","SEYST ASSERVIS(TD) HAMDAOUI B311"]
[null,"11h20                12h 50","TECH COMPOSANTES ELECTRII©","KHALFI","A22","TECH COMPOSANTES ELECTRII© KHALFI A22"]
[null,"13h 00              14h 30","FONCTION D'ELECTRONIQUE©","BOURKACHE","B419","FONCTION D'ELECTRONIQUE© BOURKACHE B419","MODEL ET IDENTIFICATION DES SYST©","BENABDALLAH","B35","MODEL ET IDENTIFICATION DES SYST© BENABDALLAH B35","ELECTRONIQUE DE PUISSANCES(TP)","AHRICHE","B211","ELECTRONIQUE DE PUISSANCES(TP) AHRICHE B211"]
[null,"14h 40              16h 10","FONCTION D'ELECTRONIQUE(TD) ","BOURKACHE","B419","FONCTION D'ELECTRONIQUE(TD)  BOURKACHE B419",null,null,null,null,"ELECTRONIQUE DE PUISSANCES(TP)","AHRICHE","B211","ELECTRONIQUE DE PUISSANCES(TP) AHRICHE B211"]
[null,"16h 20              17h 50"]
["Mercredi","8h 00                    9h 30","RESAUX INFORMATIQUES©","KEBOUR","B46","RESAUX INFORMATIQUES© KEBOUR B46","MICRO PROCESSEUR ET MICRO CONTROL©","SMAANI","A21","MICRO PROCESSEUR ET MICRO CONTROL© SMAANI A21","RESEAUX ELECTRIQUE©","KOUBA","B419","RESEAUX ELECTRIQUE© KOUBA B419"]
[null,"9h 40                 11h 10","RESAUX INFORMATIQUES(TD)","KEBOUR","B46","RESAUX INFORMATIQUES(TD) KEBOUR B46","PROGRAMMATION EN C++©","NEKAA","A21","PROGRAMMATION EN C++© NEKAA A21","RESEAUX ELECTRIQUE(TD)","KOUBA","B419","RESEAUX ELECTRIQUE(TD) KOUBA B419"]
[null,"11h20                12h 50",null,null,null,null,null,null,null,null,"RESEAUX ELECTRIQUE(TP)","KOUBA","RC9/B","RESEAUX ELECTRIQUE(TP) KOUBA RC9/B"]
[null,"13h 00              14h 30","SYST A MICROPROCESSEURS©","MAHDI","B36","SYST A MICROPROCESSEURS© MAHDI B36","MODEL ET IDENTIFICATION DES SYST(TP);MICRO PROCESSEUR ET MICRO CONTROL(TP)","BENABDALLAH;SMAANI","B210;B211","MODEL ET IDENTIFICATION DES SYST(TP) BENABDALLAH B210\nMICRO PROCESSEUR ET MICRO CONTROL(TP) SMAANI B211","RESEAUX ELECTRIQUE(TP)","KOUBA","RC9/B","RESEAUX ELECTRIQUE(TP) KOUBA RC9/B"]
[null,"14h 40              16h 10","SYST A MICROPROCESSEURS(TD) ","MAHDI","B36","SYST A MICROPROCESSEURS(TD)  MAHDI B36","MODEL ET IDENTIFICATION DES SYST(TP);MICRO PROCESSEUR ET MICRO CONTROL(TP)","BENABDALLAH;SMAANI","B210;B211","MODEL ET IDENTIFICATION DES SYST(TP) BENABDALLAH B210\nMICRO PROCESSEUR ET MICRO CONTROL(TP) SMAANI B211"]
[null,"16h 20              17h 50"]
["Jeudi","8h 00                     9h 30",null,null,null,null,"MICRO PROCESSEUR ET MICRO CONTROL©","SMAANI","A23","MICRO PROCESSEUR ET MICRO CONTROL© SMAANI A23","SEYST ASSERVIS (TP)","HAMDAOUI","AB12","SEYST ASSERVIS (TP) HAMDAOUI AB12"]
[null,"9h 40                  11h 10",null,null,null,null,"MICRO PROCESSEUR ET MICRO CONTROL(TD)","SMAANI","A22","MICRO PROCESSEUR ET MICRO CONTROL(TD) SMAANI A22","SEYST ASSERVIS (TP)","HAMDAOUI","AB12","SEYST ASSERVIS (TP) HAMDAOUI AB12"]
[null,"11h20                 12h 50","TRAVAUX AVANT PROJET©","AKROUM","B42","TRAVAUX AVANT PROJET© AKROUM B42",null,null,null,null,"LOGICIEL DE SIMULATION©","HAROUN","A12","LOGICIEL DE SIMULATION© HAROUN A12"]
[null,"13h 00              14h 30","TRAVAUX AVANT PROJET(TP)","AKROUM","B211","TRAVAUX AVANT PROJET(TP) AKROUM B211","ENNERGIE RENOUVELABLES©","HAROUN","A14","ENNERGIE RENOUVELABLES© HAROUN A14","CAPTEURS ET INSTRIMENTATION©","BOUMEDINE","B417","CAPTEURS ET INSTRIMENTATION© BOUMEDINE B417"]
[null,"14h 40              16h 10",null,null,null,null,null,null,null,null,"CAPTEURS(TP)","BOUMEDINE","B417","CAPTEURS(TP) BOUMEDINE B417"]
[null,"16h 20              17h 50"]
["Samedi","8h 00                     9h 30"]
[null,"9h 40                  11h 10"]
[null,"11h20                 12h 50"]

{"sheet":"EAI MASTER12","index":7,"n_rows":36,"n_cols":14,"rows_kept":36,"cut":false,"hidden":false,"merged":[[33,0,35,0],[0,0,0,1],[3,0,8,0],[9,0,14,0],[15,0,20,0],[21,0,26,0],[27,0,32,0]]}
["Filière:Automatique",null,null,null,null,"Filière:electronique-electrotechnique",null,null,null,"Spécialité:Automatique et informatique-",null,null,null,"Spécialité:machines electriques"]
[null,"Section:",null,null,null,"Master 1ère année",null,null,null,"Spécialité:electronique systemes embarques",null,null,null,{"$f":"NOW()","v":"2017-10-19T13:25:47.140"}]
["Jour","SEANCES","MAI-I7","Enseignant","Salle","MAI-I7","MESE17","Enseignant","Salle","MESE17","MME17","Enseignant","Salle","MME17"]
["Dimanche","8h 00                     9h 30","SYST LINEAIRES MULTI©","KHELOUAT","B47","SYST LINEAIRES MULTI© KHELOUAT B47","SYST ASSERVISSEMENT NUMERIQUES©","IDIR","B42","SYST ASSERVISSEMENT NUMERIQUES© IDIR B42","RES-TRANS-DIS-EN-ELECT©","AIBECHE","B311","RES-TRANS-DIS-EN-ELECT© AIBECHE B311"]
[null,"9h 40                 11h 10","SYST LINEAIRES MULTI(TD) ","KHELOUAT","B47","SYST LINEAIRES MULTI(TD)  KHELOUAT B47","SYST ASSERVISSEMENT NUMERIQUES(TD)","IDIR","B42","SYST ASSERVISSEMENT NUMERIQUES(TD) IDIR B42","RES-TRANS-DIS-EN-ELECT(TD) ","AIBECHE","B311","RES-TRANS-DIS-EN-ELECT(TD)  AIBECHE B311"]
[null,"11h20                 12h 50",null,null,null,null,"PROGRAMMATION ORIENTE OBJET ©","NEKAA","A22","PROGRAMMATION ORIENTE OBJET © NEKAA A22"]
[null,"13h 00              14h 30","OPTIMISATION©","IDIR","B39","OPTIMISATION© IDIR B39","PROGRAMMATION ORIENTE OBJET (TP) ","NEKAA","A27","PROGRAMMATION ORIENTE OBJET (TP)  NEKAA A27","U-PROCESS ET U-CONTROLEURS(TP)","HOCINE","B211","U-PROCESS ET U-CONTROLEURS(TP) HOCINE B211"]
[null,"14h 40              16h 10","OPTIMISATION(TD) ","IDIR","B39","OPTIMISATION(TD)  IDIR B39","PROGRAMMATION ORIENTE OBJET (TP) ","NEKAA","A27","PROGRAMMATION ORIENTE OBJET (TP)  NEKAA A27","U-PROCESS ET U-CONTROLEURS(TP)","HOCINE","B211","U-PROCESS ET U-CONTROLEURS(TP) HOCINE B211"]
[null,"16h 20              17h 50"]
["Lundi","8h 00                    9h 30","OPTIMISATION(TP) ","IDIR","AB12","OPTIMISATION(TP)  IDIR AB12","COM-WIFI©","BOURKACHE","A24","COM-WIFI© BOURKACHE A24","ELECT-PUISS-AVAC©","BOUDOUDA","B47","ELECT-PUISS-AVAC© BOUDOUDA B47"]
[null,"9h 40                  11h 10","OPTIMISATION(TP) ","IDIR","AB12","OPTIMISATION(TP)  IDIR AB12","ELECTRONIQUE NUMERIQUE AVANCEES FGPA(TP)","HANTABLI","A27","ELECTRONIQUE NUMERIQUE AVANCEES FGPA(TP) HANTABLI A27","ELECT-PUISS-AVAC(TD) ","BOUDOUDA","B47","ELECT-PUISS-AVAC(TD)  BOUDOUDA B47"]
[null,"11h20                12h 50",null,null,null,null,"ELECTRONIQUE NUMERIQUE AVANCEES FGPA(TP)","HANTABLI","A27","ELECTRONIQUE NUMERIQUE AVANCEES FGPA(TP) HANTABLI A27"]
[null,"13h 00              14h 30","RESEAUX ET PROTOCOLES-COMM©","RIAHLA","A16","RESEAUX ET PROTOCOLES-COMM© RIAHLA A16","[SI]TRAIT SIGNAL AVANCEE(TP);[SP]SYST ASSERVISSEMENT NUMERIQUES AVANCEE (TP) ","GUERBAI;IDIR","A27;A27","[SI]TRAIT SIGNAL AVANCEE(TP) GUERBAI A27\n[SP]SYST ASSERVISSEMENT NUMERIQUES AVANCEE (TP)  IDIR A27","METH-NUM-APPL-OPT©","ACHELI","B416","METH-NUM-APPL-OPT© ACHELI B416"]
[null,"14h 40              16h 10","RESEAUX ET PROTOCOLES-COMM(TP) ","RIAHLA","A16","RESEAUX ET PROTOCOLES-COMM(TP)  RIAHLA A16","[SI]TRAIT SIGNAL AVANCEE(TP);[SP]SYST ASSERVISSEMENT NUMERIQUES AVANCEE (TP) ","GUERBAI;IDIR","A27;A27","[SI]TRAIT SIGNAL AVANCEE(TP) GUERBAI A27\n[SP]SYST ASSERVISSEMENT NUMERIQUES AVANCEE (TP)  IDIR A27","METH-NUM-APPL-OPT(TD) ","ACHELI","B416","METH-NUM-APPL-OPT(TD)  ACHELI B416"]
[null,"16h 20              17h 50"]
["Mardi","8h 00                    9h 30","ASSO-CONV-MACH©","ABDESLAME","B41","ASSO-CONV-MACH© ABDESLAME B41","CONCEPT SYSTEM A MICROPROCESSEUR©","SAADSOUD","B417","CONCEPT SYSTEM A MICROPROCESSEUR© SAADSOUD B417","METH-NUM-APPL-OPT(TP);RES-TRANS-DIS-EN-ELECT(TP)","IKHLEF;AIBECHE","RC9/A;B210","METH-NUM-APPL-OPT(TP) IKHLEF RC9/A\nRES-TRANS-DIS-EN-ELECT(TP) AIBECHE B210"]
[null,"9h 40                 11h 10","ASSO-CONV-MACH(TD) ","ABDESLAME","B41","ASSO-CONV-MACH(TD)  ABDESLAME B41","CONCEPT SYSTEM A MICROPROCESSEUR(TD)","SAADSOUD","B413","CONCEPT SYSTEM A MICROPROCESSEUR(TD) SAADSOUD B413","METH-NUM-APPL-OPT(TP);RES-TRANS-DIS-EN-ELECT(TP)","IKHLEF;AIBECHE","RC9/A;B210","METH-NUM-APPL-OPT(TP) IKHLEF RC9/A\nRES-TRANS-DIS-EN-ELECT(TP) AIBECHE B210"]
[null,"11h20                12h 50"]
[null,"13h 00              14h 30","SYST LINEAIRES MULTI(TP) ;ASSOC-CONV-MACH(TP) ","KHELOUAT;ABDESLAME","A27;AB12","SYST LINEAIRES MULTI(TP)  KHELOUAT A27\nASSOC-CONV-MACH(TP)  ABDESLAME AB12","ELECTR-NUM-AVANCEE FPGA©","SMAANI","B44","ELECTR-NUM-AVANCEE FPGA© SMAANI B44","ENERGIES RENOUVLABLE©","TAZROUT","B31","ENERGIES RENOUVLABLE© TAZROUT B31"]
[null,"14h 40              16h 10","SYST LINEAIRES MULTI(TP) ;ASSOC-CONV-MACH(TP) ","KHELOUAT;ABDESLAME","A27;AB12","SYST LINEAIRES MULTI(TP)  KHELOUAT A27\nASSOC-CONV-MACH(TP)  ABDESLAME AB12","ELECTR-NUM-AVANCEE FPGA(TD)","SMAANI","B44","ELECTR-NUM-AVANCEE FPGA(TD) SMAANI B44"]
[null,"16h 20              17h 50"]
["Mercredi","8h 00                    9h 30","TRAIT SIGNAL©","MASSOUT","C48","TRAIT SIGNAL© MASSOUT C48","CONCEP A MICROPRO©","SAADSOUD","B42","CONCEP A MICROPRO© SAADSOUD B42","MACH-ELECT-APPRO©","HAMEL","A12","MACH-ELECT-APPRO© HAMEL A12"]
[null,"9h 40                 11h 10","TRAIT SIGNAL(TP) ","MASSOUT","C48","TRAIT SIGNAL(TP)  MASSOUT C48","CONCEPT SYSTEM A MICROPROCESSEUR(TP)","SAADSOUD","B42","CONCEPT SYSTEM A MICROPROCESSEUR(TP) SAADSOUD B42","MACH-ELECT-APPRO(TD) ","HAMEL","A12","MACH-ELECT-APPRO(TD)  HAMEL A12"]
[null,"11h20                12h 50","TRAIT SIGNAL(TP) ","MASSOUT","C48","TRAIT SIGNAL(TP)  MASSOUT C48"]
[null,"13h 00              14h 30",null,null,null,null,"TRAIT SIGNAL AVANCEE©","GUERBAI","B42","TRAIT SIGNAL AVANCEE© GUERBAI B42","MACH ELECT(TP)","HAMEL+BOUZIDA","EEA2","MACH ELECT(TP) HAMEL+BOUZIDA EEA2"]
[null,"14h 40              16h 10",null,null,null,null,"TRAIT SIGNAL AVANCEE(TD)","GUERBAI","B42","TRAIT SIGNAL AVANCEE(TD) GUERBAI B42","MACH ELECT(TP)","HAMEL+BOUZIDA","EEA2","MACH ELECT(TP) HAMEL+BOUZIDA EEA2"]
[null,"16h 20              17h 50"]
["Jeudi","8h 00                     9h 30","ANGLAIS TECH TERMINO©","YAHIAOUI","AP3","ANGLAIS TECH TERMINO© YAHIAOUI AP3","ANGLAIS TECH ET TERM©","YAHIAOUI","AP3","ANGLAIS TECH ET TERM© YAHIAOUI AP3","ANGLAIS TECH ET TERM©","YAHIAOUI","AP3","ANGLAIS TECH ET TERM© YAHIAOUI AP3"]
[null,"9h 40                  11h 10","TRAIT SIGNAL(TD) ","MASSOUT","B416","TRAIT SIGNAL(TD)  MASSOUT B416",null,null,null,null,"U-PROCESS ET U-CONTROLEURS©","HOCINE","A24","U-PROCESS ET U-CONTROLEURS© HOCINE A24"]
[null,"11h20                 12h 50","ACTION-INDUSTERIELLE©","FELLAG","AP3","ACTION-INDUSTERIELLE© FELLAG AP3","ACTION-INDUSTERIELLE©","FELLAG","AP3","ACTION-INDUSTERIELLE© FELLAG AP3","ACTION-INDUSTERIELLE©","FELLAG","AP3","ACTION-INDUSTERIELLE© FELLAG AP3"]
[null,"13h 00              14h 30","GESTION DE LA MAINTENANCE©","HAMDAOUI","A22","GESTION DE LA MAINTENANCE© HAMDAOUI A22",null,null,null,null,"ELECTRO-PUISS(TP) ","BOUDOUDA","A26","ELECTRO-PUISS(TP)  BOUDOUDA A26"]
[null,"14h 40              16h 10",null,null,null,null,null,null,null,null,"ELECTRO-PUISS(TP) ","BOUDOUDA","A26","ELECTRO-PUISS(TP)  BOUDOUDA A26"]
[null,"16h 20              17h 50"]
["Samedi","8h 00                     9h 30"]
[null,"9h 40                  11h 10"]
[null,"11h20                 12h 50"]

{"sheet":"EAI MASTER11","index":8,"n_rows":36,"n_cols":14,"rows_kept":36,"cut":false,"hidden":false,"merged":[[0,5,0,13],[33,0,35,0],[3,0,8,0],[9,0,14,0],[0,0,0,1],[15,0,20,0],[21,0,26,0],[27,0,32,0]]}
["Spécialite:",null,null,null,null,"Automatique  informatique-electronique  systemes embarques-machines electrique"]
["Departement:","Section:",null,null,null,"Master 2ème année",null,null,null,{"$f":"NOW()","v":"2017-10-19T13:25:47.140"}]
["Jour","SEANCES","MAI-I6","Enseignant","Salle","MAI-I6","MESE-16","Enseignant","Salle","MESE-16","MME-16","Enseignant","Salle","MME-16"]
["Dimanche","8h 00                     9h 30","COMMAND AVANCEE©","BENABDALLAH","B31","COMMAND AVANCEE© BENABDALLAH B31","AUTOMATE PROGRAMABLLE©","NAFAA","A11","AUTOMATE PROGRAMABLLE© NAFAA A11","COMM-MACH-ELECT(TP)","ABDESLAME","A27","COMM-MACH-ELECT(TP) ABDESLAME A27"]
[null,"9h 40                 11h 10","COMMAND AVANCEE(TD)","BENABDALLAH","B31","COMMAND AVANCEE(TD) BENABDALLAH B31","AUTOMATE PROGRAMABLLE(TD)","NAFAA","A11","AUTOMATE PROGRAMABLLE(TD) NAFAA A11","COMM-MACH-ELECT(TP)","ABDESLAME","A27","COMM-MACH-ELECT(TP) ABDESLAME A27"]
[null,"11h20                 12h 50"]
[null,"13h 00              14h 30","COMMAND AVANCEE(TP);ROBOTIQUE(TP)","BENABDALLAH;NAFAA","RC9/B;A26","COMMAND AVANCEE(TP) BENABDALLAH RC9/B\nROBOTIQUE(TP) NAFAA A26","SYSTEMES TEMPS REEL©","AKROUM","B32","SYSTEMES TEMPS REEL© AKROUM B32","MACHINES ELECT-SPECIAL©","GROUNI","B44","MACHINES ELECT-SPECIAL© GROUNI B44"]
[null,"14h 40              16h 10","COMMAND AVANCEE(TP);ROBOTIQUE(TP)","BENABDALLAH;NAFAA","RC9/B;A26","COMMAND AVANCEE(TP) BENABDALLAH RC9/B\nROBOTIQUE(TP) NAFAA A26","SYSTEMES TEMPS REEL(TD)","AKROUM","B31","SYSTEMES TEMPS REEL(TD) AKROUM B31","MACHINES ELECT-SPECIAL(TD)","GROUNI","B44","MACHINES ELECT-SPECIAL(TD) GROUNI B44"]
[null,"16h 20              17h 50"]
["Lundi","8h 00                    9h 30","ROBOTIQUE©","NAFAA","C48","ROBOTIQUE© NAFAA C48","[SI]SYSTEMES TEMPS REEL(TP);[SP]SYST EMBARQUES(TP)","AKROUM;HAROUNE-F","B211;B210","[SI]SYSTEMES TEMPS REEL(TP) AKROUM B211\n[SP]SYST EMBARQUES(TP) HAROUNE-F B210","COMMAND-MACH-ELECT©","ABDESLAME","A25","COMMAND-MACH-ELECT© ABDESLAME A25"]
[null,"9h 40                  11h 10","ROBOTIQUE(TD)","NAFAA","C48","ROBOTIQUE(TD) NAFAA C48","[SI]SYSTEMES TEMPS REEL(TP);[SP]SYST EMBARQUES(TP)","AKROUM;HAROUNE-F","B211;B210","[SI]SYSTEMES TEMPS REEL(TP) AKROUM B211\n[SP]SYST EMBARQUES(TP) HAROUNE-F B210","COMMAND-MACH-ELECT(TD)","ABDESLAME","A25","COMMAND-MACH-ELECT(TD) ABDESLAME A25"]
[null,"11h20                12h 50","FPGA ET PROG VHDL(TP)","GUERBAI","B210","FPGA ET PROG VHDL(TP) GUERBAI B210"]
[null,"13h 00              14h 30",null,null,null,null,"AUTOM PROGRA(TP)","NAFAA","AT15","AUTOM PROGRA(TP) NAFAA AT15","QUALITE-ENERG©","AHRICHE","A14","QUALITE-ENERG© AHRICHE A14"]
[null,"14h 40              16h 10",null,null,null,null,"AUTOM PROGRA(TP)","NAFAA","AT15","AUTOM PROGRA(TP) NAFAA AT15"]
[null,"16h 20              17h 50"]
["Mardi","8h 00                    9h 30","SYST A EVENEMENT DISCRETS©","KHELOUAT","B47","SYST A EVENEMENT DISCRETS© KHELOUAT B47","SYSTEMES EMBARQUE©","HAROUNE-F","B38","SYSTEMES EMBARQUE© HAROUNE-F B38","CONCEP-ASSI-ORD©","BOUZIDA","B39","CONCEP-ASSI-ORD© BOUZIDA B39"]
[null,"9h 40                 11h 10","SYST A EVENEMENT DISCRETS(TD)","KHELOUAT","B47","SYST A EVENEMENT DISCRETS(TD) KHELOUAT B47","SYSTEMES EMBARQUE(TD)","HAROUNE-F","B38","SYSTEMES EMBARQUE(TD) HAROUNE-F B38","REG-TYRAN-MACH©","BOUZIDA","B39","REG-TYRAN-MACH© BOUZIDA B39"]
[null,"11h20                12h 50","COMMAND AVANCEE©","BENABDALLAH","B47","COMMAND AVANCEE© BENABDALLAH B47","ROBOTIQUE","RAHMOUNE-EL","B36","ROBOTIQUE RAHMOUNE-EL B36"]
[null,"13h 00              14h 30",null,null,null,null,null,null,null,null,"CONCEP-ASS-ORD(TP)","BOUZIDA","A26","CONCEP-ASS-ORD(TP) BOUZIDA A26"]
[null,"14h 40              16h 10",null,null,null,null,null,null,null,null,"REG-TRANS-MACH(TD)","BOUZIDA","A24","REG-TRANS-MACH(TD) BOUZIDA A24"]
[null,"16h 20              17h 50"]
["Mercredi","8h 00                    9h 30","DEV-SITE-WEB©","NEKAA","B313","DEV-SITE-WEB© NEKAA B313","LANGAGE JAVA©","HARRAR","C412","LANGAGE JAVA© HARRAR C412","REG-TRANS-MACH(TP)","BOUZIDA","B210","REG-TRANS-MACH(TP) BOUZIDA B210"]
[null,"9h 40                 11h 10","FPGA ET PROGRAMATION©","GUERBAI","B313","FPGA ET PROGRAMATION© GUERBAI B313","LANGAGE JAVA(TP)","HARRAR","RC9/B","LANGAGE JAVA(TP) HARRAR RC9/B","IDENT-DIAG-MACH©","AIBECHE","A16","IDENT-DIAG-MACH© AIBECHE A16"]
[null,"11h20                12h 50","FPGA ET PROGRAMATION(TD)","GUERBAI","B313","FPGA ET PROGRAMATION(TD) GUERBAI B313",null,null,null,null,"IDENT-DIAG-MACH-ELECT(TP)","AIBECHE","A26","IDENT-DIAG-MACH-ELECT(TP) AIBECHE A26"]
[null,"13h 00              14h 30","TRAIT-IMAGE©","HARRAR","B312","TRAIT-IMAGE© HARRAR B312","CARTE A PUCES©","RAHMOUNE-EL","B310","CARTE A PUCES© RAHMOUNE-EL B310"]
[null,"14h 40              16h 10",null,null,null,null,"VISION ARTIFICIELLE(TD)","HARRAR","B310","VISION ARTIFICIELLE(TD) HARRAR B310"]
[null,"16h 20              17h 50"]
["Jeudi","8h 00                     9h 30","RECHERCHE-DOC-CONC©","GROUNI","B37","RECHERCHE-DOC-CONC© GROUNI B37","RECHERCHE-DOC-CONC©","GROUNI","B37","RECHERCHE-DOC-CONC© GROUNI B37","RECHERCHE-DOC-CONC©","GROUNI","B37","RECHERCHE-DOC-CONC© GROUNI B37"]
[null,"9h 40                  11h 10","SUPERVISION(SCADA)©","IKHLEF","B49","SUPERVISION(SCADA)© IKHLEF B49","SYSTEMES EMBARQUE©","HAROUNE-F","B48","SYSTEMES EMBARQUE© HAROUNE-F B48","ECHAUF-REF-ACT©","GROUNI","C42","ECHAUF-REF-ACT© GROUNI C42"]
[null,"11h20                 12h 50","SUPERVISION(SCADA)(TP)","IKHLEF","AB12","SUPERVISION(SCADA)(TP) IKHLEF AB12"]
[null,"13h 00              14h 30","SUPERVISION(SCADA)(TP)","IKHLEF","AB12","SUPERVISION(SCADA)(TP) IKHLEF AB12","VISION ARTIFICIELLE©","HARRAR","A23","VISION ARTIFICIELLE© HARRAR A23","ECOLOGIE-IND-DEV©","FELLAG","C42","ECOLOGIE-IND-DEV© FELLAG C42"]
[null,"14h 40              16h 10",null,null,null,null,"VISION ARTIFICIELLEE(TP)","HARRAR","A27","VISION ARTIFICIELLEE(TP) HARRAR A27"]
[null,"16h 20              17h 50"]
["Samedi","8h 00                     9h 30"]
[null,"9h 40                  11h 10"]
[null,"11h20                 12h 50"]

{"sheet":"MAT MASTER11","index":9,"n_rows":36,"n_cols":18,"rows_kept":36,"cut":false,"hidden":false,"merged":[[0,0,0,1],[3,0,8,0],[33,0,35,0],[27,0,32,0],[21,0,26,0],[15,0,20,0],[9,0,14,0]]}
["Departement:",null,null,null,null,"génie matérieux",{"$f":"TODAY()","v":"2017-10-19"}]
[{"$f":"TODAY()","v":"2017-10-19"},"Section:",null,null,null,"Master 2ème année",null,null,null,{"$f":"NOW()","v":"2017-10-19T13:25:47.140"}]
["Jour","SEANCES","MMGC-16","Enseignant","Salle","MMGC-16","MGM-16","Enseignant","Salle","MGM-16","XXXXX","Enseignant","Salle","X","MMCV12","Enseignant","Salle","MMCV12"]
["Dimanche","8h 00                     9h 30","MATERIAUX COMP©","SAFI","B212","MATERIAUX COMP© SAFI B212",null,null,null,null,"XXXXX","XXX","XX","XXXXX XXX XX","PROJET ET EXPERIMENTATION(TD)","XXXXX","XXXXX","PROJET ET EXPERIMENTATION(TD) XXXXX XXXXX"]
[null,"9h 40                 11h 10","MATERIAUX RECYCLE©","CHAID","B212","MATERIAUX RECYCLE© CHAID B212",null,null,null,null,"XXXXX","XXX","XX","XXXXX XXX XX","VERRES SPECIAUX©","XXXXX","XXXXX","VERRES SPECIAUX© XXXXX XXXXX"]
[null,"11h20                 12h 50","MATERIAUX RECYCLE(TD)","CHAID","B212","MATERIAUX RECYCLE(TD) CHAID B212"]
[null,"13h 00              14h 30",null,null,null,null,"PROP-PHY-MEC-CER©","KERIMECHE","B214","PROP-PHY-MEC-CER© KERIMECHE B214","XXXXX","XXX","XX","XXXXX XXX XX","CERAMIQUE-ELECTRIQUE©","XXXXX","XXXXX","CERAMIQUE-ELECTRIQUE© XXXXX XXXXX"]
[null,"14h 40              16h 10","ELEMENTS FINIS(TP)","X","RC9/A","ELEMENTS FINIS(TP) X RC9/A","PROP-PHYSIQU-MEC(TD)","KERIMECHE","B214","PROP-PHYSIQU-MEC(TD) KERIMECHE B214","XXXXX","XXX","XX","XXXXX XXX XX"]
[null,"16h 20              17h 50"]
["Lundi","8h 00                    9h 30","PATHOLOGIE DES CONSTRUCTIONS©","RABAHI","B213","PATHOLOGIE DES CONSTRUCTIONS© RABAHI B213","CND©","ZERIZER","B31","CND© ZERIZER B31","XXXXX","XXX","XX","XXXXX XXX XX","EMAUX ET VITROCERAMIQUE©","XXXXX","XXXXX","EMAUX ET VITROCERAMIQUE© XXXXX XXXXX"]
[null,"9h 40                  11h 10",null,null,null,null,"CHOIX DES MATERIAUX©","X","B31","CHOIX DES MATERIAUX© X B31","XXXXX","XXX","XX","XXXXX XXX XX","ANGLAIS©","XXXXX","XXXXX","ANGLAIS© XXXXX XXXXX"]
[null,"11h20                12h 50",null,null,null,null,"CND(TP)","ZERIZER","B32","CND(TP) ZERIZER B32","XXXXX","XXX","XX","XXXXX XXX XX"]
[null,"13h 00              14h 30","DURABULITE DES MATERIAUX(TP)","RABAHI","B19","DURABULITE DES MATERIAUX(TP) RABAHI B19",null,null,null,null,"XXXXX","XXX","XX","XXXXX XXX XX","EMAUX-VITROCER(TP)(1/2G); TECH-CONT-CER(TP)(1/2G)","WW;WW","WW;WW","EMAUX-VITROCER(TP)(1/2G) WW WW\n TECH-CONT-CER(TP)(1/2G) WW WW"]
[null,"14h 40              16h 10","DURABULITE DES MATERIAUX(TP)","RABAHI","B19","DURABULITE DES MATERIAUX(TP) RABAHI B19","DEFAUTS 2 ET DEFORM PLASTIQUE(TD)","BENLOKRICHI","B36","DEFAUTS 2 ET DEFORM PLASTIQUE(TD) BENLOKRICHI B36",null,null,null,null,"EMAUX-VITROCER(TP)(1/2G); TECH-CONT-CER(TP)(1/2G)","WW;WW","WW;WW","EMAUX-VITROCER(TP)(1/2G) WW WW\n TECH-CONT-CER(TP)(1/2G) WW WW"]
[null,"16h 20              17h 50"]
["Mardi","8h 00                    9h 30","DURABULITE DES MATERIAUX©","BENMOUNAH","B213","DURABULITE DES MATERIAUX© BENMOUNAH B213","CHOIX DES MATERIAUX(TD)","X","B214","CHOIX DES MATERIAUX(TD) X B214","XXXXX","XXX","XX","XXXXX XXX XX","RUP-MATER-FRAGILE©","WW","WW","RUP-MATER-FRAGILE© WW WW"]
[null,"9h 40                 11h 10","DURABULITE DES MATERIAUX©","BENMOUNAH","B213","DURABULITE DES MATERIAUX© BENMOUNAH B213","MATERIAUX AU CHOIX©","CHEMANI-F","B214","MATERIAUX AU CHOIX© CHEMANI-F B214","XXXXX","XXX","XX","XXXXX XXX XX","TECH-CONT-CER-VER©","WW","WW","TECH-CONT-CER-VER© WW WW"]
[null,"11h20                12h 50",null,null,null,null,null,null,null,null,null,null,null,null,"RUP-MATER-FRAGILE(TD)","WW","WW","RUP-MATER-FRAGILE(TD) WW WW"]
[null,"13h 00              14h 30",null,null,null,null,"FATIGUE DES MATR(TD)","BENLOKRICHI","B41","FATIGUE DES MATR(TD) BENLOKRICHI B41","XXXXX","XXX","XX","XXXXX XXX XX"]
[null,"14h 40              16h 10",null,null,null,null,null,null,null,null,"XXXXX","XXX","XX","XXXXX XXX XX"]
[null,"16h 20              17h 50"]
["Mercredi","8h 00                    9h 30","MATER-COMP(TD)","SAFI","B213","MATER-COMP(TD) SAFI B213",null,null,null,null,"XXXXX","XXX","XX","XXXXX XXX XX","CERAMIQUE-THERM-MEC©","WW","WW","CERAMIQUE-THERM-MEC© WW WW"]
[null,"9h 40                 11h 10","BETONS INNOVANTS©","CHAID","B213","BETONS INNOVANTS© CHAID B213",null,null,null,null,"XXXXX","XXX","XX","XXXXX XXX XX","EQUIP-INDUST-CER-VERRE©","WW","WW","EQUIP-INDUST-CER-VERRE© WW WW"]
[null,"11h20                12h 50","BETONS INNOVANTS(TP)","BOUCHOUIKA","C08","BETONS INNOVANTS(TP) BOUCHOUIKA C08","MATERIAUX AU CHOIX©","CHEMANI-F","B31","MATERIAUX AU CHOIX© CHEMANI-F B31","XXXXX","XXX","XX","XXXXX XXX XX"]
[null,"13h 00              14h 30",null,null,null,null,"DEFAUTS 2 ET DEFORM PLASTIQUE©","BEZZAZI","B212","DEFAUTS 2 ET DEFORM PLASTIQUE© BEZZAZI B212","XXXXX","XXX","XX","XXXXX XXX XX","VERRES-SPECIAUX(TP)(1/2G);CERA-THERM(TP)(1/2G)","QQ;QQ","WW;WW","VERRES-SPECIAUX(TP)(1/2G) QQ WW\nCERA-THERM(TP)(1/2G) QQ WW"]
[null,"14h 40              16h 10",null,null,null,null,"DEFAUTS 2 ET DEFORM PLASTIQUE©","BEZZAZI","B212","DEFAUTS 2 ET DEFORM PLASTIQUE© BEZZAZI B212","XXXXX","XXX","XX","XXXXX XXX XX","VERRES-SPECIAUX(TP)(1/2G);CERA-THERM(TP)(1/2G)","QQ;QQ","WW;WW","VERRES-SPECIAUX(TP)(1/2G) QQ WW\nCERA-THERM(TP)(1/2G) QQ WW"]
[null,"16h 20              17h 50"]
["Jeudi","8h 00                     9h 30","RECHERCHE DOCUMENTAIRE ET CONCEP DE MEM©","HAMIANE","AP4","RECHERCHE DOCUMENTAIRE ET CONCEP DE MEM© HAMIANE AP4","RECHERCHE DOCUMENTAIRE ET CONCEP DE MEM©","HAMIANE","AP4","RECHERCHE DOCUMENTAIRE ET CONCEP DE MEM© HAMIANE AP4","XXXXX","XXX","XX","XXXXX XXX XX"]
[null,"9h 40                  11h 10","PLANS D'EXPERIENCES©","BENOTMANE","B214","PLANS D'EXPERIENCES© BENOTMANE B214",null,null,null,null,"XXXXX","XXX","XX","XXXXX XXX XX"]
[null,"11h20                 12h 50","ELEMENTS FINIS©","ROUABHI","B47","ELEMENTS FINIS© ROUABHI B47"]
[null,"13h 00              14h 30",null,null,null,null,"FATIGUE DES MATR©","BEZZAZI","B212","FATIGUE DES MATR© BEZZAZI B212",null,null,null,null,"CERAMIQUE-USAG-ELECT(TP)","WW","WW","CERAMIQUE-USAG-ELECT(TP) WW WW"]
[null,"14h 40              16h 10",null,null,null,null,"DEGRADATION DES POLYMERS©","BEZZAZI","B212","DEGRADATION DES POLYMERS© BEZZAZI B212",null,null,null,null," CERAMIQUE-USAG-ELECT(TP)","WW","WW"," CERAMIQUE-USAG-ELECT(TP) WW WW"]
[null,"16h 20              17h 50"]
["Samedi","8h 00                     9h 30",null,null,null,null,"METH-EXP-CONT-MAT©","X","B214","METH-EXP-CONT-MAT© X B214"]
[null,"9h 40                  11h 10","BETON PRECONTRIANT©","GHANEM","B213","BETON PRECONTRIANT© GHANEM B213","METH-EXP-CONT-MAT(TP)","X","B214","METH-EXP-CONT-MAT(TP) X B214"]
[null,"11h20                 12h 50","BETON PRECONTRIANT(TD)","GHANEM","B213","BETON PRECONTRIANT(TD) GHANEM B213"]

{"sheet":"MAT MASTER12","index":10,"n_rows":36,"n_cols":18,"rows_kept":36,"cut":false,"hidden":false,"merged":[[0,0,0,1],[3,0,8,0],[33,0,35,0],[27,0,32,0],[21,0,26,0],[15,0,20,0],[9,0,14,0]]}
[null,null,null,null,null,"Spécialité: matérieux gc-G Matérieaux"]
[{"$f":"TODAY()","v":"2017-10-19"},"Section:",null,null,null,"Master 1ère année",null,null,null,{"$f":"NOW()","v":"2017-10-19T13:25:47.140"}]
["Jour","SEANCES","MMGC-17","Enseignant","Salle","MMGC-17","MGM-17","Enseignant","Salle","MGM-17","MGPM-16","Enseignant","Salle","MGPM-16","MCV15","Enseignant","Salle","MCV15"]
["Dimanche","8h 00                     9h 30","TECH DES BETONS©","GHERNOUTI-H","C412","TECH DES BETONS© GHERNOUTI-H C412","ANGLAIS©","X","B37","ANGLAIS© X B37","CH-PHY-SILICATES©","XXX","XXX","CH-PHY-SILICATES© XXX XXX","XXX","XXX","XXX","XXX XXX XXX"]
[null,"9h 40                 11h 10","TECH DES BETONS(TD)","GHERNOUTI-H","C412","TECH DES BETONS(TD) GHERNOUTI-H C412","ELAB-CAR-MAT-CERAMIQUE©","BOUMCHEDDA","B37","ELAB-CAR-MAT-CERAMIQUE© BOUMCHEDDA B37","CH-PHY-SILICATES(TD)","XXX","XXX","CH-PHY-SILICATES(TD) XXX XXX","XXX","XXX","XXX","XXX XXX XXX"]
[null,"11h20                 12h 50"]
[null,"13h 00              14h 30","MAT DE CONSTRUCTION©","RABAHI","B37","MAT DE CONSTRUCTION© RABAHI B37","METHO DES ELEMENTS FINIS©","SETTET","B42","METHO DES ELEMENTS FINIS© SETTET B42","CLASS-STRUC-MAT©","XXX","XXX","CLASS-STRUC-MAT© XXX XXX","XXX","XXX","XXX","XXX XXX XXX"]
[null,"14h 40              16h 10","MAT DE CONSTRUCTION(TD)","RABAHI","B37","MAT DE CONSTRUCTION(TD) RABAHI B37","METH E-F(TD)","SETTET","B42","METH E-F(TD) SETTET B42","CLASS-STRUC-MAT(TD)","XXX","XXX","CLASS-STRUC-MAT(TD) XXX XXX"]
[null,"16h 20              17h 50"]
["Lundi","8h 00                    9h 30","ELASTICITE©","TAZROUT","C412","ELASTICITE© TAZROUT C412","THERMODYNM DIAG EQUIL©","KHERIBET","B418","THERMODYNM DIAG EQUIL© KHERIBET B418",null,null,null,null,"XXX","XXX","XXX","XXX XXX XXX"]
[null,"9h 40                  11h 10","TEHERMIQUE DE BAT©","SAIDI","C412","TEHERMIQUE DE BAT© SAIDI C412","THERMODYNM DIAG EQUIL(TD)","KHERIBET","B418","THERMODYNM DIAG EQUIL(TD) KHERIBET B418",null,null,null,null,"XXX","XXX","XXX","XXX XXX XXX"]
[null,"11h20                12h 50","ELASTICITE(TD)","TAZROUT","C412","ELASTICITE(TD) TAZROUT C412","ELEMENTS FINIS(TP)","MANSER","RC9/B","ELEMENTS FINIS(TP) MANSER RC9/B","THERMODYNAMIQUE APP©","XXX","XXX","THERMODYNAMIQUE APP© XXX XXX"]
[null,"13h 00              14h 30",null,null,null,null,null,null,null,null,"THERMODYNAMIQUE APP(TD)","XXX","XXX","THERMODYNAMIQUE APP(TD) XXX XXX","XXX","XXX","XXX","XXX XXX XXX"]
[null,"14h 40              16h 10",null,null,null,null,null,null,null,null,"THERMODYNAMIQUE APP©","XXX","XXX","THERMODYNAMIQUE APP© XXX XXX"]
[null,"16h 20              17h 50"]
["Mardi","8h 00                    9h 30",null,null,null,null,null,null,null,null,"CND©","XXX","XXX","CND© XXX XXX","XXX","XXX","XXX","XXX XXX XXX"]
[null,"9h 40                 11h 10","TEHERMIQUE DE BAT(TD)","LIMAM","B35","TEHERMIQUE DE BAT(TD) LIMAM B35",null,null,null,null,null,null,null,null,"XXX","XXX","XXX","XXX XXX XXX"]
[null,"11h20                12h 50","ANGLAIS©","X","B35","ANGLAIS© X B35","MANAG DES RESS TECHN©","TAZROUT","B417","MANAG DES RESS TECHN© TAZROUT B417","CRISTALLOGRAPHIE©","XXX","XXX","CRISTALLOGRAPHIE© XXX XXX"]
[null,"13h 00              14h 30",null,null,null,null,"STRUCTURE CRISTALLINES DEF PONC©","X","B418","STRUCTURE CRISTALLINES DEF PONC© X B418","CRISTALLOGRAPHIE(TD)","XXX","XXX","CRISTALLOGRAPHIE(TD) XXX XXX","XXX","XXX","XXX","XXX XXX XXX"]
[null,"14h 40              16h 10",null,null,null,null,"STRUCTURE CRISTALLINES DEF PONC(TD)","X","B418","STRUCTURE CRISTALLINES DEF PONC(TD) X B418"]
[null,"16h 20              17h 50"]
["Mercredi","8h 00                    9h 30","OUVRAGE EN BETON ARMEE©","GHANEM-A","B44","OUVRAGE EN BETON ARMEE© GHANEM-A B44","COMP-MEC-MAT-MAT©","DJEBILI","C45","COMP-MEC-MAT-MAT© DJEBILI C45","RHEOLOGIE©","XXX","XXX","RHEOLOGIE© XXX XXX"]
[null,"9h 40                 11h 10","OUVRAGE EN BETON ARMEE(TD)","GHANEM-A","B44","OUVRAGE EN BETON ARMEE(TD) GHANEM-A B44","COMP-MEC-MAT-MAT(TD)","DJEBILI","C45","COMP-MEC-MAT-MAT(TD) DJEBILI C45","CARACTERISATION DES MATR(TP)","XXX","XXX","CARACTERISATION DES MATR(TP) XXX XXX","XXX","XXX","XXX","XXX XXX XXX"]
[null,"11h20                12h 50"]
[null,"13h 00              14h 30","PHYSIQUE DES MAT(TP)","SAFI","B19","PHYSIQUE DES MAT(TP) SAFI B19","ESSAI MECANIQUE(1/2G)(TP) ","DJEBILI","B39","ESSAI MECANIQUE(1/2G)(TP)  DJEBILI B39"]
[null,"14h 40              16h 10","PHYSIQUE DES MAT(TP)","SAFI","B19","PHYSIQUE DES MAT(TP) SAFI B19","ESSAI MECANIQUE(1/2G)(TP) ","DJEBILI","B39","ESSAI MECANIQUE(1/2G)(TP)  DJEBILI B39"]
[null,"16h 20              17h 50"]
["Jeudi","8h 00                     9h 30",null,null,null,null,null,null,null,null,"INSTRUMENTATION ET REGULATION©","XXX","XXX","INSTRUMENTATION ET REGULATION© XXX XXX"]
[null,"9h 40                  11h 10","TECHN DES BETON(TP)","BOUCHOUIKA","RC9/B","TECHN DES BETON(TP) BOUCHOUIKA RC9/B","ELAB-CAR-MAT-CERAMIQUE(TP)","BOUMCHEDDA","B112","ELAB-CAR-MAT-CERAMIQUE(TP) BOUMCHEDDA B112","INSTRUMENTATION ET REGULATION(TP)","XXX","XXX","INSTRUMENTATION ET REGULATION(TP) XXX XXX","XXX","XXX","XXX","XXX XXX XXX"]
[null,"11h20                 12h 50","TECHN DES BETON(TP)","BOUCHOUIKA","RC9/B","TECHN DES BETON(TP) BOUCHOUIKA RC9/B","VALORISATION ET RECYCLAGE DES MATERIAUX©","KHERIBET","B49","VALORISATION ET RECYCLAGE DES MATERIAUX© KHERIBET B49"]
[null,"13h 00              14h 30",null,null,null,null,null,null,null,null,"METHODES ELECTROCH ANAL©","XXX","XXX","METHODES ELECTROCH ANAL© XXX XXX","XXX","XXX","XXX","XXX XXX XXX"]
[null,"14h 40              16h 10",null,null,null,null,null,null,null,null,"METHODES ELECTROCH ANAL(TP)","XXX","XXX","METHODES ELECTROCH ANAL(TP) XXX XXX","XXX","XXX","XXX","XXX XXX XXX"]
[null,"16h 20              17h 50"]
["Samedi","8h 00                     9h 30","OUVRAGE EN BETON ARMEE©","GHANEM-A","B312","OUVRAGE EN BETON ARMEE© GHANEM-A B312",null,null,null,null,null,null,null,null,"XXX","XXX","XXX","XXX XXX XXX"]
[null,"9h 40                  11h 10","LIANTS(TP)","BOUCHOUIKA","B19","LIANTS(TP) BOUCHOUIKA B19",null,null,null,null,null,null,null,null,"XXX","XXX","XXX","XXX XXX XXX"]
[null,"11h20                 12h 50","LIANTS(TP)","BOUCHOUIKA","B19","LIANTS(TP) BOUCHOUIKA B19"]

{"sheet":"MAT LICENCE10","index":11,"n_rows":36,"n_cols":18,"rows_kept":36,"cut":false,"hidden":false,"merged":[[0,0,0,1],[3,0,8,0],[33,0,35,0],[27,0,32,0],[21,0,26,0],[15,0,20,0],[9,0,14,0]]}
[null,null,null,null,null,"Filière:G-Mécanique",null,null,null,"Spécialité:G-matérieaux"]
[{"$f":"TODAY()","v":"2017-10-19"},"Section:",null,null,null,"licence 3ème année",null,null,null,{"$f":"NOW()","v":"2017-10-19T13:25:47.140"}]
["Jour","SEANCES","LGM-15/A","Enseignant","Salle","LGM-15/A","LGM-15/B","Enseignant","Salle","LGM-15/B","LGM-15/C","Enseignant","Salle","LGM-15/C","LSTM11","Enseignant","Salle","LSTM11"]
["Dimanche","8h 00                     9h 30",null,null,null,null,"METHO D'ANALYS ET CARACTERISATION(TP)","BOUMCHEDDA","B16","METHO D'ANALYS ET CARACTERISATION(TP) BOUMCHEDDA B16","XX","XX","XX","XX XX XX","METROLOGIE©","XXX","XXX","METROLOGIE© XXX XXX"]
[null,"9h 40                 11h 10","TRANSFER DE CHALEUR ET DE MASSE©","SAIDI","AP1","TRANSFER DE CHALEUR ET DE MASSE© SAIDI AP1","TRANSFER DE CHALEUR ET DE MASSE©","SAIDI","AP1","TRANSFER DE CHALEUR ET DE MASSE© SAIDI AP1","XX","XX","XX","XX XX XX","METAUX ET ALLIAGE©","XXX","XXX","METAUX ET ALLIAGE© XXX XXX"]
[null,"11h20                 12h 50","TRANSFER DE CHALEUR ET DE MASSE(TD)","X","RC13","TRANSFER DE CHALEUR ET DE MASSE(TD) X RC13",null,null,null,null,null,null,null,null,"MATH ASSIST PAR ORD©","XXX","XXX","MATH ASSIST PAR ORD© XXX XXX"]
[null,"13h 00              14h 30"]
[null,"14h 40              16h 10",null,null,null,null,null,null,null,null,null,null,null,null,"METAUX ET ALLIAGE(TD)","XXX","XXX","METAUX ET ALLIAGE(TD) XXX XXX"]
[null,"16h 20              17h 50"]
["Lundi","8h 00                    9h 30","METHO D'ANALYS ET CARACTERISATION(TP)","BOUMCHEDDA","B112","METHO D'ANALYS ET CARACTERISATION(TP) BOUMCHEDDA B112","METAUX ET ALLIAGE(TD)","DILMI","C49","METAUX ET ALLIAGE(TD) DILMI C49","XX","XX","XX","XX XX XX","LES LIANTS MINEREAUX©","XXX","XXX","LES LIANTS MINEREAUX© XXX XXX"]
[null,"9h 40                  11h 10","M-M-C(TD)","ZERIZER","A24","M-M-C(TD) ZERIZER A24","M-M-C(TD)","ZERIZER","A24","M-M-C(TD) ZERIZER A24","XX","XX","XX","XX XX XX","LES BETONS©","XXX","XXX","LES BETONS© XXX XXX"]
[null,"11h20                12h 50",null,null,null,null,null,null,null,null,null,null,null,null,"MATH ASSIST PAR ORD(TD)","XXX","XXX","MATH ASSIST PAR ORD(TD) XXX XXX"]
[null,"13h 00              14h 30","METAUX ET ALLIAGES©","DILMI","B37","METAUX ET ALLIAGES© DILMI B37","METAUX ET ALLIAGES©","DILMI","B37","METAUX ET ALLIAGES© DILMI B37","XX","XX","XX","XX XX XX"]
[null,"14h 40              16h 10","LIANTS ET BETONS©","CHAID","B37","LIANTS ET BETONS© CHAID B37","LIANTS ET BETONS©","CHAID","B37","LIANTS ET BETONS© CHAID B37","XX","XX","XX","XX XX XX"]
[null,"16h 20              17h 50"]
["Mardi","8h 00                    9h 30","MEC DES MELIEUX CONTINUS©","ZERIZER","A12","MEC DES MELIEUX CONTINUS© ZERIZER A12","MEC DES MELIEUX CONTINUS©","ZERIZER","A12","MEC DES MELIEUX CONTINUS© ZERIZER A12","XX","XX","XX","XX XX XX","POLYMERES ET MAT COMP©","XXX","XXX","POLYMERES ET MAT COMP© XXX XXX"]
[null,"9h 40                 11h 10",null,null,null,null,null,null,null,null,"XX","XX","XX","XX XX XX","LES LIANTS MINERAUX(TP)(1/2G);LES BETON(TP)((1/2G)","XXX;XXX","XXX;XXX","LES LIANTS MINERAUX(TP)(1/2G) XXX XXX\nLES BETON(TP)((1/2G) XXX XXX"]
[null,"11h20                12h 50","ASSEMBLAGES DES MATERIAUX©","BENLOKRICHI","AP1","ASSEMBLAGES DES MATERIAUX© BENLOKRICHI AP1","ASSEMBLAGES DES MATERIAUX©","BENLOKRICHI","AP1","ASSEMBLAGES DES MATERIAUX© BENLOKRICHI AP1","XX","XX","XX","XX XX XX","LES LIANTS MINERAUX(TP)(1/2G);LES BETON(TP)((1/2G)","XXX;XXX","XXX;XXX","LES LIANTS MINERAUX(TP)(1/2G) XXX XXX\nLES BETON(TP)((1/2G) XXX XXX"]
[null,"13h 00              14h 30",null,null,null,null,"CERAMIQUE ET VERRE(TD)","ABOUTALEB","B27","CERAMIQUE ET VERRE(TD) ABOUTALEB B27"]
[null,"14h 40              16h 10","CERAMIQUE ET VERRE(TP)","CHEMANI-F+ABOUTALEB","B27","CERAMIQUE ET VERRE(TP) CHEMANI-F+ABOUTALEB B27",null,null,null,null,"XX","XX","XX","XX XX XX","ANGLAIS©","XXX","XXX","ANGLAIS© XXX XXX"]
[null,"16h 20              17h 50"]
["Mercredi","8h 00                    9h 30","CERAMIQUE ET VERRE(TD)","ABOUTALEB","B27","CERAMIQUE ET VERRE(TD) ABOUTALEB B27",null,null,null,null,"XX","XX","XX","XX XX XX","VERRES©","XXX","XXX","VERRES© XXX XXX"]
[null,"9h 40                 11h 10","METAUX ET ALLIAGES(TP)","SITOUAH","AT-INIL","METAUX ET ALLIAGES(TP) SITOUAH AT-INIL","TRANSFER DE CHALEUR ET DE MASSE(TD)","X","B39","TRANSFER DE CHALEUR ET DE MASSE(TD) X B39","XX","XX","XX","XX XX XX","CERAMIQUE©","XXX","XXX","CERAMIQUE© XXX XXX"]
[null,"11h20                12h 50"]
[null,"13h 00              14h 30","CERAMIQUE ET VERRES©","ABOUTALEB","A14","CERAMIQUE ET VERRES© ABOUTALEB A14","CERAMIQUE ET VERRES©","ABOUTALEB","A14","CERAMIQUE ET VERRES© ABOUTALEB A14","XX","XX","XX","XX XX XX","POLYMERES ET MAT COMP©","XXX","XXX","POLYMERES ET MAT COMP© XXX XXX"]
[null,"14h 40              16h 10",null,null,null,null,"CERAMIQUE ET VERRE(TP)","CHEMANI-F+ABOUTALEB","B27","CERAMIQUE ET VERRE(TP) CHEMANI-F+ABOUTALEB B27",null,null,null,null,"POLYMERES ET MAT COMP©","XXX","XXX","POLYMERES ET MAT COMP© XXX XXX"]
[null,"16h 20              17h 50"]
["Jeudi","8h 00                     9h 30","METHO D'ANALYS ET CARACTERISATION©","BOUMCHEDDA","A24","METHO D'ANALYS ET CARACTERISATION© BOUMCHEDDA A24","METHO D'ANALYS ET CARACTERISATION©","BOUMCHEDDA","A24","METHO D'ANALYS ET CARACTERISATION© BOUMCHEDDA A24","XX","XX","XX","XX XX XX","CRISTALLOGRAPHIE©","XXX","XXX","CRISTALLOGRAPHIE© XXX XXX"]
[null,"9h 40                  11h 10",null,null,null,null,"ANGLAIS©","HAMICI","A21","ANGLAIS© HAMICI A21","XX","XX","XX","XX XX XX","CERAMIQUE(TP)(1/2G);VERRES(TP)(1/2G)","XXX;XXX","XXX;XXX","CERAMIQUE(TP)(1/2G) XXX XXX\nVERRES(TP)(1/2G) XXX XXX"]
[null,"11h20                 12h 50",null,null,null,null,null,null,null,null,null,null,null,null,"CERAMIQUE(TP)(1/2G);VERRES(TP)(1/2G)","XXX;XXX","XXX;XXX","CERAMIQUE(TP)(1/2G) XXX XXX\nVERRES(TP)(1/2G) XXX XXX"]
[null,"13h 00              14h 30","METAUX ET ALLIAGE(TD)","DILMI","B35","METAUX ET ALLIAGE(TD) DILMI B35","METAUX ET ALLIAGES(TP)","SITOUAH","AT-INIL","METAUX ET ALLIAGES(TP) SITOUAH AT-INIL"]
[null,"14h 40              16h 10",null,null,null,null,null,null,null,null,null,null,null,null,"METROLOGIE(TD)","XXX","XXX","METROLOGIE(TD) XXX XXX"]
[null,"16h 20              17h 50"]
["Samedi","8h 00                     9h 30","ANGLAIS©","HAMICI","C35","ANGLAIS© HAMICI C35","TRANSFER DE CHALEUR(TP)","X","B31","TRANSFER DE CHALEUR(TP) X B31"]
[null,"9h 40                  11h 10","TRANSFER DE CHALEUR ET DE MASSE(TP)","X","C45","TRANSFER DE CHALEUR ET DE MASSE(TP) X C45",null,null,null,null,"XX","XX","XX","XX XX XX"]
[null,"11h20                 12h 50","NORMALISATION©","HAMIANE","C43","NORMALISATION© HAMIANE C43","NORMALISATION©","HAMIANE","C43","NORMALISATION© HAMIANE C43","XX","XX","XX","XX XX XX"]

{"sheet":"DGPI LICENCE10","index":12,"n_rows":36,"n_cols":14,"rows_kept":36,"cut":false,"hidden":false,"merged":[[33,0,35,0],[3,0,8,0],[9,0,14,0],[0,0,0,1],[15,0,20,0],[21,0,26,0],[27,0,32,0]]}
[null,null,null,null,null,null,null,null,null,"Filière:génie des procédés",null,null,null,"Spécialite:génie des procédés"]
[{"$f":"TODAY()","v":"2017-10-19"},"Section:",null,null,null,"licence 3ème année",null,null,null,{"$f":"NOW()","v":"2017-10-19T13:25:47.140"}]
["Jour","SEANCES","LGP-15/A","Enseignant","Salle","LGP-15/A","LGP-15/B","Enseignant","Salle","LGP-15/B","LGP-15/C","Enseignant","Salle","LGP-15/C"]
["Dimanche","8h 00                     9h 30","[SP]TECH D'ANALYSE(TP)","BOUTICHE","B24","[SP]TECH D'ANALYSE(TP) BOUTICHE B24","CHIMIE PHYSIQUE5(1/2G)(TP);G.CHIMIQUE(1/2G)(TP)","MALEK;BANDOU","B26;C210","CHIMIE PHYSIQUE5(1/2G)(TP) MALEK B26\nG.CHIMIQUE(1/2G)(TP) BANDOU C210","[SI]TECH D'ANALYSE(TP)","BOUTICHE","B24","[SI]TECH D'ANALYSE(TP) BOUTICHE B24"]
[null,"9h 40                 11h 10","[SP]TECH D'ANALYSE(TP)","BOUTICHE","B24","[SP]TECH D'ANALYSE(TP) BOUTICHE B24","CHIMIE PHYSIQUE5(1/2G)(TP);G.CHIMIQUE(1/2G)(TP)","MALEK;BANDOU","B26;C210","CHIMIE PHYSIQUE5(1/2G)(TP) MALEK B26\nG.CHIMIQUE(1/2G)(TP) BANDOU C210","[SI]TECH D'ANALYSE(TP)","BOUTICHE","B24","[SI]TECH D'ANALYSE(TP) BOUTICHE B24"]
[null,"11h20                 12h 50"]
[null,"13h 00              14h 30","TECH D'ANALYSE©","GHEMATI","AP2","TECH D'ANALYSE© GHEMATI AP2","TECH D'ANALYSE©","GHEMATI","AP2","TECH D'ANALYSE© GHEMATI AP2","TECH D'ANALYSE©","GHEMATI","AP2","TECH D'ANALYSE© GHEMATI AP2"]
[null,"14h 40              16h 10","INSTRUMENTATION-CAPTEURS©","BOUAZIZ","AP2","INSTRUMENTATION-CAPTEURS© BOUAZIZ AP2","INSTRUMENTATION-CAPTEURS©","BOUAZIZ","AP2","INSTRUMENTATION-CAPTEURS© BOUAZIZ AP2","INSTRUMENTATION-CAPTEURS©","BOUAZIZ","AP2","INSTRUMENTATION-CAPTEURS© BOUAZIZ AP2"]
[null,"16h 20              17h 50"]
["Lundi","8h 00                    9h 30"]
[null,"9h 40                  11h 10","PROC DES PHARMACETIQUE©","TALANTIKIT","AP4","PROC DES PHARMACETIQUE© TALANTIKIT AP4","PROC DES PHARMACETIQUE©","TALANTIKIT","AP4","PROC DES PHARMACETIQUE© TALANTIKIT AP4","PROC DES PHARMACETIQUE©","TALANTIKIT","AP4","PROC DES PHARMACETIQUE© TALANTIKIT AP4"]
[null,"11h20                12h 50","TRANSF DE MATIERE©","ASSELAH","AP4","TRANSF DE MATIERE© ASSELAH AP4","TRANSF DE MATIERE©","ASSELAH","AP4","TRANSF DE MATIERE© ASSELAH AP4","TRANSF DE MATIERE©","ASSELAH","AP4","TRANSF DE MATIERE© ASSELAH AP4"]
[null,"13h 00              14h 30","TRANSF DE MATIERE(TD)","ASSELAH","B414","TRANSF DE MATIERE(TD) ASSELAH B414"]
[null,"14h 40              16h 10",null,null,null,null,null,null,null,null,"TRANSF DE MATIERE(TD)","ASSELAH","B415","TRANSF DE MATIERE(TD) ASSELAH B415"]
[null,"16h 20              17h 50"]
["Mardi","8h 00                    9h 30","TRANS DE QUANTITE DE MOUV©","SEKOUR","AP3","TRANS DE QUANTITE DE MOUV© SEKOUR AP3","TRANS DE QUANTITE DE MOUV©","SEKOUR","AP3","TRANS DE QUANTITE DE MOUV© SEKOUR AP3","TRANS DE QUANTITE DE MOUV©","SEKOUR","AP3","TRANS DE QUANTITE DE MOUV© SEKOUR AP3"]
[null,"9h 40                 11h 10","CINETIQUE ETCATALYSE HOMOGENE©","ASSELAH","AP3","CINETIQUE ETCATALYSE HOMOGENE© ASSELAH AP3","CINETIQUE ETCATALYSE HOMOGENE©","ASSELAH","AP3","CINETIQUE ETCATALYSE HOMOGENE© ASSELAH AP3","CINETIQUE ETCATALYSE HOMOGENE©","ASSELAH","AP3","CINETIQUE ETCATALYSE HOMOGENE© ASSELAH AP3"]
[null,"11h20                12h 50",null,null,null,null,"TRANSF DE MATIERE(TD)","ASSELAH","B415","TRANSF DE MATIERE(TD) ASSELAH B415"]
[null,"13h 00              14h 30",null,null,null,null,null,null,null,null,"CHIMIE PHYSIQUE5(1/2G)(TP);G.CHIMIQUE(1/2G)(TP)","MALEK;ZIDANI","B24;C210","CHIMIE PHYSIQUE5(1/2G)(TP) MALEK B24\nG.CHIMIQUE(1/2G)(TP) ZIDANI C210"]
[null,"14h 40              16h 10",null,null,null,null,null,null,null,null,"CHIMIE PHYSIQUE5(1/2G)(TP);G.CHIMIQUE(1/2G)(TP)","MALEK;ZIDANI","B24;C210","CHIMIE PHYSIQUE5(1/2G)(TP) MALEK B24\nG.CHIMIQUE(1/2G)(TP) ZIDANI C210"]
[null,"16h 20              17h 50"]
["Mercredi","8h 00                    9h 30","ELECTROCHIMIE©","LOUHAB","AP2","ELECTROCHIMIE© LOUHAB AP2","ELECTROCHIMIE©","LOUHAB","AP2","ELECTROCHIMIE© LOUHAB AP2","ELECTROCHIMIE©","LOUHAB","AP2","ELECTROCHIMIE© LOUHAB AP2"]
[null,"9h 40                 11h 10","POLLUTION-AIR-EAU-SOL©","BENRACHEDI","AP2","POLLUTION-AIR-EAU-SOL© BENRACHEDI AP2","POLLUTION-AIR-EAU-SOL©","BENRACHEDI","AP2","POLLUTION-AIR-EAU-SOL© BENRACHEDI AP2","POLLUTION-AIR-EAU-SOL©","BENRACHEDI","AP2","POLLUTION-AIR-EAU-SOL© BENRACHEDI AP2"]
[null,"11h20                12h 50"]
[null,"13h 00              14h 30"]
[null,"14h 40              16h 10"]
[null,"16h 20              17h 50"]
["Jeudi","8h 00                     9h 30","CHIMIE PHYSIQUE5(1/2G)(TP);G.CHIMIQUE(1/2G)(TP)","MALEK;BANDOU","B26;C210","CHIMIE PHYSIQUE5(1/2G)(TP) MALEK B26\nG.CHIMIQUE(1/2G)(TP) BANDOU C210","[SI]TECH D'ANALYSE(TP)","BOUTICHE","B24","[SI]TECH D'ANALYSE(TP) BOUTICHE B24"]
[null,"9h 40                  11h 10","CHIMIE PHYSIQUE5(1/2G)(TP);G.CHIMIQUE(1/2G)(TP)","MALEK;BANDOU","B26;C210","CHIMIE PHYSIQUE5(1/2G)(TP) MALEK B26\nG.CHIMIQUE(1/2G)(TP) BANDOU C210","[SI]TECH D'ANALYSE(TP)","BOUTICHE","B24","[SI]TECH D'ANALYSE(TP) BOUTICHE B24"]
[null,"11h20                 12h 50",null,null,null,null,null,null,null,null,"TRANSF DE CHALEUR(TD)","BOUFELLAH","B35","TRANSF DE CHALEUR(TD) BOUFELLAH B35"]
[null,"13h 00              14h 30","TRANSF DE CHALEUR©","BOUFELLAH","AP3","TRANSF DE CHALEUR© BOUFELLAH AP3","TRANSF DE CHALEUR©","BOUFELLAH","AP3","TRANSF DE CHALEUR© BOUFELLAH AP3","TRANSF DE CHALEUR©","BOUFELLAH","AP3","TRANSF DE CHALEUR© BOUFELLAH AP3"]
[null,"14h 40              16h 10","PROC AGRO ALIMENTAIRE©","BENAKMOUM","AP3","PROC AGRO ALIMENTAIRE© BENAKMOUM AP3","PROC AGRO ALIMENTAIRE©","BENAKMOUM","AP3","PROC AGRO ALIMENTAIRE© BENAKMOUM AP3","PROC AGRO ALIMENTAIRE©","BENAKMOUM","AP3","PROC AGRO ALIMENTAIRE© BENAKMOUM AP3"]
[null,"16h 20              17h 50"]
["Samedi","8h 00                     9h 30","SIMUL-PRO(TP)","X","A26","SIMUL-PRO(TP) X A26","ELECTROCHIMIE(TD)","SMAILI-TA","B212","ELECTROCHIMIE(TD) SMAILI-TA B212"]
[null,"9h 40                  11h 10","ELECTROCHIMIE(TD)","SMAILI-TA","B48","ELECTROCHIMIE(TD) SMAILI-TA B48","TRANSF DE CHALEUR(TD)","BOUFELLAH","B212","TRANSF DE CHALEUR(TD) BOUFELLAH B212","SIMUL-PRO(TP)","X","A26","SIMUL-PRO(TP) X A26"]
[null,"11h20                 12h 50","TRANSF DE CHALEUR(TD)","BOUFELLAH","B48","TRANSF DE CHALEUR(TD) BOUFELLAH B48","SIMUL-PRO(TP)","X","A26","SIMUL-PRO(TP) X A26","ELECTROCHIMIE(TD)","SMAILI-TA","B413","ELECTROCHIMIE(TD) SMAILI-TA B413"]

{"sheet":"DGPI MASTER11","index":13,"n_rows":36,"n_cols":18,"rows_kept":36,"cut":false,"hidden":false,"merged":[[0,0,0,1],[27,0,32,0],[33,0,35,0],[3,0,8,0],[9,0,14,0],[15,0,20,0],[21,0,26,0]]}
["Departement:",null,null,null,null,"génie des procédés"]
[{"$f":"TODAY()","v":"2017-10-19"},"Section:",null,null,null,"master 2ème année",null,null,null,{"$f":"NOW()","v":"2017-10-19T13:25:47.140"}]
["Jour","SEANCES","MGCH-16","Enseignant","Salle","MGCH-16","MGEV-16","Enseignant","Salle","MGEV-16","MHSI-16","Enseignant","Salle","MHSI-16","MPOLY16","Enseignant","Salle","MPOLY16"]
["Dimanche","8h 00                     9h 30","OPTIM-MOD-PROC©","X","RC14","OPTIM-MOD-PROC© X RC14","POLLUTION DU SOL©","BOUMECHHOUR","C49","POLLUTION DU SOL© BOUMECHHOUR C49"]
[null,"9h 40                 11h 10","OPTIM-MOD-PROC(TD)","X","RC14","OPTIM-MOD-PROC(TD) X RC14","POLLUTION DU SOL(TD)","BOUMECHHOUR","C49","POLLUTION DU SOL(TD) BOUMECHHOUR C49",null,null,null,null,"METH-PHYS-ANALY©","HADERBACHE","C32","METH-PHYS-ANALY© HADERBACHE C32"]
[null,"11h20                 12h 50",null,null,null,null,null,null,null,null,"MICRO-BIO-ENV©","ANNOU","B37","MICRO-BIO-ENV© ANNOU B37"]
[null,"13h 00              14h 30","CHIMIE VERTE©","HACHEMI-MS","A12","CHIMIE VERTE© HACHEMI-MS A12","REG-COM-PROC©","BOUHABILA","C310","REG-COM-PROC© BOUHABILA C310","METH-INT-ANAL-RISQUE©","ZAOUANI","B212","METH-INT-ANAL-RISQUE© ZAOUANI B212","METH-PHYS-ANALYSES(TD","HADERBACHE","B46","METH-PHYS-ANALYSES(TD HADERBACHE B46"]
[null,"14h 40              16h 10","DISTILLATION-RAFFINAGE-PETROCHIMIES(TP)","BOUTICHE","B24","DISTILLATION-RAFFINAGE-PETROCHIMIES(TP) BOUTICHE B24","REG-COM-PROC(TP)","X","X","REG-COM-PROC(TP) X X","METH-INT-ANAL-RISQUE(1/2G)(TP)","ZAOUANI","B212","METH-INT-ANAL-RISQUE(1/2G)(TP) ZAOUANI B212","METH-PHYS-ANALY(TP)","HADERBACHE","B46","METH-PHYS-ANALY(TP) HADERBACHE B46"]
[null,"16h 20              17h 50"]
["Lundi","8h 00                    9h 30","DISTILLATION©","ALIOUCHE","B310","DISTILLATION© ALIOUCHE B310","PROC-TRAIT-EFF-GAZ©","BALLOUL","B38","PROC-TRAIT-EFF-GAZ© BALLOUL B38","OUTILS D'AIDE DECISION©","ZAOUANI","B42","OUTILS D'AIDE DECISION© ZAOUANI B42","MEC-POLYMERS©","KOUINI","B311","MEC-POLYMERS© KOUINI B311"]
[null,"9h 40                  11h 10","DISTILLATION(TD)","ALIOUCHE","B310","DISTILLATION(TD) ALIOUCHE B310","PROC-TRAIT-EFF-GAZ(TD)","BALLOUL","B38","PROC-TRAIT-EFF-GAZ(TD) BALLOUL B38","OUTILS D'AIDE DECISION(TD)","ZAOUANI","B42","OUTILS D'AIDE DECISION(TD) ZAOUANI B42","MAT-COMP-INOOVANTES©","GHEMATI","B311","MAT-COMP-INOOVANTES© GHEMATI B311"]
[null,"11h20                12h 50",null,null,null,null,null,null,null,null,null,null,null,null,"POLYMERS ENVIRONNEMENT©","GHEMATI","B311","POLYMERS ENVIRONNEMENT© GHEMATI B311"]
[null,"13h 00              14h 30","INTENSI-PROC©","BENAKMOUM","A12","INTENSI-PROC© BENAKMOUM A12","G-ENVIRONNEMENT(TP)","BOUMECHHOUR","B32","G-ENVIRONNEMENT(TP) BOUMECHHOUR B32","CULTURE DE SECURITE©","ZAOUANI","B42","CULTURE DE SECURITE© ZAOUANI B42"]
[null,"14h 40              16h 10",null,null,null,null,"G-ENVIRONNEMENT(TP)","BOUMECHHOUR","B32","G-ENVIRONNEMENT(TP) BOUMECHHOUR B32",null,null,null,null,"VEILLIS ET DEGRADATION(TD)","KOUINI","B310","VEILLIS ET DEGRADATION(TD) KOUINI B310"]
[null,"16h 20              17h 50"]
["Mardi","8h 00                    9h 30",null,null,null,null,"INSTR-ANAL-STAT©","YEDDOU","RC14","INSTR-ANAL-STAT© YEDDOU RC14","AUDIT-CERI-ACCRE©","BENCHAMA","A14","AUDIT-CERI-ACCRE© BENCHAMA A14","BIO-POLYMERS©","BELLOUL","B48","BIO-POLYMERS© BELLOUL B48"]
[null,"9h 40                 11h 10",null,null,null,null,"BIOPROCEDES©","YEDDOU","RC14","BIOPROCEDES© YEDDOU RC14","SECURITE FONC(TD)","KORSO","B46","SECURITE FONC(TD) KORSO B46","BIO-POLYMERS(TD)","BELLOUL","B48","BIO-POLYMERS(TD) BELLOUL B48"]
[null,"11h20                12h 50",null,null,null,null,null,null,null,null,"MANAGEMENT ENV©","TIRECHE","B44","MANAGEMENT ENV© TIRECHE B44"]
[null,"13h 00              14h 30","RAFFINAGE PETROCHIMIE(TD)","ANGAR","RC14","RAFFINAGE PETROCHIMIE(TD) ANGAR RC14",null,null,null,null,null,null,null,null,"PROP-POLYMERS©","BOUMERDASSI","C48","PROP-POLYMERS© BOUMERDASSI C48"]
[null,"14h 40              16h 10","RAFFINAGE PETROCHIMIE(TP)","ANGAR","RC14","RAFFINAGE PETROCHIMIE(TP) ANGAR RC14",null,null,null,null,null,null,null,null,"PROP-POLYMERS(TD)","BOUMERDASSI","C48","PROP-POLYMERS(TD) BOUMERDASSI C48"]
[null,"16h 20              17h 50"]
["Mercredi","8h 00                    9h 30","PLAN D'EXPERIENCE©","BOUKHIAR","B37","PLAN D'EXPERIENCE© BOUKHIAR B37","BIOPROCEDES©","YEDDOU","B417","BIOPROCEDES© YEDDOU B417",null,null,null,null,"APPLIC-IND©","ABDELLAOUI","B413","APPLIC-IND© ABDELLAOUI B413"]
[null,"9h 40                 11h 10","ECONCEPTIONII©","LOUHAB","B37","ECONCEPTIONII© LOUHAB B37","BIOPROCEDES(TD)","YEDDOU","B417","BIOPROCEDES(TD) YEDDOU B417","MAIT-STATIS-PROCESS©","X","B214","MAIT-STATIS-PROCESS© X B214","RECY-VAL-POLY©","OUSLIMANI","B413","RECY-VAL-POLY© OUSLIMANI B413"]
[null,"11h20                12h 50",null,null,null,null,null,null,null,null,"MAIT-STATIS-PROCESS(TD)","X","RC9/A","MAIT-STATIS-PROCESS(TD) X RC9/A"]
[null,"13h 00              14h 30","PLAN D'EXPERIENCE(TP)","BOUKHIAR","B47","PLAN D'EXPERIENCE(TP) BOUKHIAR B47","PROC-MEMB-D'ESSAI©","BENRACHEDI","B417","PROC-MEMB-D'ESSAI© BENRACHEDI B417","MAINT-INDUST©","SMAILI-MI","RC14","MAINT-INDUST© SMAILI-MI RC14","VIELLIS DEGRA-POLY©","KOUINI","B413","VIELLIS DEGRA-POLY© KOUINI B413"]
[null,"14h 40              16h 10",null,null,null,null,"PROC-MEMB-D'ESSAI(TD)","BENRACHEDI","B417","PROC-MEMB-D'ESSAI(TD) BENRACHEDI B417",null,null,null,null,"MEC-POLYMERS(TP)","KOUINI","B413","MEC-POLYMERS(TP) KOUINI B413"]
[null,"16h 20              17h 50"]
["Jeudi","8h 00                     9h 30","RECH-DOC-CON©","FERNANI","AP6","RECH-DOC-CON© FERNANI AP6","RECH-DOC-CON©","FERNANI","AP6","RECH-DOC-CON© FERNANI AP6","RECH-DOC-CON©","FERNANI","AP6","RECH-DOC-CON© FERNANI AP6","RECH-DOC-CON©","FERNANI","AP6","RECH-DOC-CON© FERNANI AP6"]
[null,"9h 40                  11h 10","MILIEUX-PAREUX-DISPERSES©","BENMABROKA","B37","MILIEUX-PAREUX-DISPERSES© BENMABROKA B37","MILIEUX-PAREUX-DISPERSES©","BENMABROKA","B37","MILIEUX-PAREUX-DISPERSES© BENMABROKA B37","SECURITE FONC©","KORSO","B44","SECURITE FONC© KORSO B44","MOD-PROC©","TRACHI","A15","MOD-PROC© TRACHI A15"]
[null,"11h20                 12h 50","RAF-PETROCHI©","BENMABROKA","B37","RAF-PETROCHI© BENMABROKA B37",null,null,null,null,null,null,null,null,"MOD-PROC(TP)","TRACHI","A15","MOD-PROC(TP) TRACHI A15"]
[null,"13h 00              14h 30","MILIEUX-PAREUX-DISPERSES(TP)","X","B37","MILIEUX-PAREUX-DISPERSES(TP) X B37","GESTION DES ENTREPRISE©","KORSO","B32","GESTION DES ENTREPRISE© KORSO B32","SURETTE-FON-SYSII©","ABEDELHAK","A24","SURETTE-FON-SYSII© ABEDELHAK A24"]
[null,"14h 40              16h 10",null,null,null,null,"MILIEUX-PAREUX-DISPERSES(TP)","X","B32","MILIEUX-PAREUX-DISPERSES(TP) X B32","SURETTE-FON-SYSII(TD)","ABEDELHAK","A24","SURETTE-FON-SYSII(TD) ABEDELHAK A24"]
[null,"16h 20              17h 50"]
["Samedi","8h 00                     9h 30"]
[null,"9h 40                  11h 10"]
[null,"11h20                 12h 50"]

{"sheet":"ENV MASTER12","index":14,"n_rows":36,"n_cols":18,"rows_kept":36,"cut":false,"hidden":false,"merged":[[0,0,0,1],[33,0,35,0],[3,0,8,0],[9,0,14,0],[15,0,20,0],[27,0,32,0],[21,0,26,0]]}
["Flière:G des procedes",null,null,null,null,"Spécialite:génie chimique-",null,null,null,"Spécialite:génie des procedes de l'environnement"]
[null,"Section:",null,null,null,"master 1ère année",null,null,null,{"$f":"NOW()","v":"2017-10-19T13:25:47.140"}]
["Jour","SEANCES","MGCH-17","Enseignant","Salle","MGCH-17","MGEV-17","Enseignant","Salle","MGEV-17","MHSI-17","Enseignant","Salle","MHSI-17","MPOLY-17","Enseignant","Salle","MPOLY-17"]
["Dimanche","8h 00                     9h 30","OPERATION-UNITAIRE©","SEKOUR","A12","OPERATION-UNITAIRE© SEKOUR A12","GENIE DES REACTEURS HETROGENES©","NOURI-H","B213","GENIE DES REACTEURS HETROGENES© NOURI-H B213",null,null,null,null,"PHYSICO-CHIMIE DES MACROMOL©","X","B46","PHYSICO-CHIMIE DES MACROMOL© X B46"]
[null,"9h 40                 11h 10","OPERATION-UNITAIRE©","SEKOUR","A12","OPERATION-UNITAIRE© SEKOUR A12","CHIMIE DES MILIEUX AQUATIQUE©","HADDADOU","B213","CHIMIE DES MILIEUX AQUATIQUE© HADDADOU B213","RISQUE PYHS INDUST©","BOUGHERARA","B418","RISQUE PYHS INDUST© BOUGHERARA B418","PHYSICO-CHIMIE DES MACROMOL(TD)","X","B46","PHYSICO-CHIMIE DES MACROMOL(TD) X B46"]
[null,"11h20                 12h 50",null,null,null,null,null,null,null,null,"PREVENTION ET DETECTION DU RISQUE©","KEBBOUCHE","B213","PREVENTION ET DETECTION DU RISQUE© KEBBOUCHE B213"]
[null,"13h 00              14h 30","GENIE DE LA REACTION©","NOURI-H","B310","GENIE DE LA REACTION© NOURI-H B310","ADSORPTION TECHNIQUE©","SAHMOUNE","C32","ADSORPTION TECHNIQUE© SAHMOUNE C32","OUTILS MATH UTILISES-SURETE-FONCT©","X","B213","OUTILS MATH UTILISES-SURETE-FONCT© X B213","TRANSFERT CHALEUR ET DE MASSE©","BOUGHERARA","B414","TRANSFERT CHALEUR ET DE MASSE© BOUGHERARA B414"]
[null,"14h 40              16h 10","GENIE DE LA REACTION(1/2G)(TD)","NOURI-H","B32","GENIE DE LA REACTION(1/2G)(TD) NOURI-H B32","ADSORPTION TECHNIQUE(TP)","SAHMOUNE","C07","ADSORPTION TECHNIQUE(TP) SAHMOUNE C07",null,null,null,null,"TRANSFERT CHALEUR ET DE MASSE(TD)","BOUGHERARA","B414","TRANSFERT CHALEUR ET DE MASSE(TD) BOUGHERARA B414"]
[null,"16h 20              17h 50"]
["Lundi","8h 00                    9h 30","TRANSF-THERM-ECHANG-CHALEUR©","AISSAT","B44","TRANSF-THERM-ECHANG-CHALEUR© AISSAT B44",null,null,null,null,null,null,null,null,"CHIMIE  MACROMOLECULES©","SERRIER","B413","CHIMIE  MACROMOLECULES© SERRIER B413"]
[null,"9h 40                  11h 10","TRANSF-THERM-ECHANG-CHALEUR(TD)","AISSAT","B44","TRANSF-THERM-ECHANG-CHALEUR(TD) AISSAT B44",null,null,null,null,"DANGERS VIBR- PRESSIONS(TP)","CHETATE","B23","DANGERS VIBR- PRESSIONS(TP) CHETATE B23","THERMODYNAMIQUE ET DAIGRA©","BOUMERDASSI","B413","THERMODYNAMIQUE ET DAIGRA© BOUMERDASSI B413"]
[null,"11h20                12h 50","ANGLAIS-TECH-TERM©","REZAL","B44","ANGLAIS-TECH-TERM© REZAL B44","ASSAINISSEMENT©","AMITOUCHE","C48","ASSAINISSEMENT© AMITOUCHE C48","[SI]LAVAGE ET MANULENTION(TP)","CHETATE","B23","[SI]LAVAGE ET MANULENTION(TP) CHETATE B23","RHEOLOGIES DES POLYMERS©","BOUMERDASSI","B413","RHEOLOGIES DES POLYMERS© BOUMERDASSI B413"]
[null,"13h 00              14h 30",null,null,null,null,"ECOLOGIE APPLIQUES©","BALLOUL","C48","ECOLOGIE APPLIQUES© BALLOUL C48","ANGLAIS TECH-TER©","REZAL","B39","ANGLAIS TECH-TER© REZAL B39"]
[null,"14h 40              16h 10","THERMOD-TECH(TD)","AISSAT","B418","THERMOD-TECH(TD) AISSAT B418","ANGLAIS-TECH-TERM©","REZAL","C45","ANGLAIS-TECH-TERM© REZAL C45","DANGERS ELECTRIQUES MEC(TP)","CHETATE","B23","DANGERS ELECTRIQUES MEC(TP) CHETATE B23","[SI]RHEOLOGIES DES POLYMERS(TP)","BOUMERDASSI","B23","[SI]RHEOLOGIES DES POLYMERS(TP) BOUMERDASSI B23"]
[null,"16h 20              17h 50"]
["Mardi","8h 00                    9h 30","GENIE DE LA REACTION(1/2G)(TD)","NOURI-H","B311","GENIE DE LA REACTION(1/2G)(TD) NOURI-H B311","CHIMIE DES EAUX©","BENRACHEDI","A25","CHIMIE DES EAUX© BENRACHEDI A25","PROGRAMMATION MATLAB©","BENZAID","B36","PROGRAMMATION MATLAB© BENZAID B36","SURFACE ET INTERFACE©","ALIOUCHE","A21","SURFACE ET INTERFACE© ALIOUCHE A21"]
[null,"9h 40                 11h 10","OPERATION-UNITAIRE(TD)","SEKOUR","B417","OPERATION-UNITAIRE(TD) SEKOUR B417","GENIE DES REACTEURS HETEROGENES(TD)","NOURI-H","A25","GENIE DES REACTEURS HETEROGENES(TD) NOURI-H A25","RISQUE MAJEURS©","TIRECHE","B36","RISQUE MAJEURS© TIRECHE B36"]
[null,"11h20                12h 50",null,null,null,null,null,null,null,null,null,null,null,null,"THERMODYNAMIQUE ET DAIGRA(TD)","BOUMERDASSI","B49","THERMODYNAMIQUE ET DAIGRA(TD) BOUMERDASSI B49"]
[null,"13h 00              14h 30","TRANSF-THERM-ECHANG-CHALEUR(TP);THERMODY(TP)","BOUFELLAH;AISSAT","B26;X","TRANSF-THERM-ECHANG-CHALEUR(TP) BOUFELLAH B26\nTHERMODY(TP) AISSAT X","GENIE DE L'ENVIRONNEMENT(TP)","TALANTIKIT","C07","GENIE DE L'ENVIRONNEMENT(TP) TALANTIKIT C07","METHONUME-MATRIC-ANALY-RISQ©","HARFOUCHE","B313","METHONUME-MATRIC-ANALY-RISQ© HARFOUCHE B313","ANGLAIS-TECH-TER©","REZAL","B49","ANGLAIS-TECH-TER© REZAL B49"]
[null,"14h 40              16h 10","TRANSF-THERM-ECHANG-CHALEUR(TP);THERMODY(TP)","BOUFELLAH;AISSAT","B26;X","TRANSF-THERM-ECHANG-CHALEUR(TP) BOUFELLAH B26\nTHERMODY(TP) AISSAT X","GENIE DE L'ENVIRONNEMENT(TP)","TALANTIKIT","C07","GENIE DE L'ENVIRONNEMENT(TP) TALANTIKIT C07"]
[null,"16h 20              17h 50"]
["Mercredi","8h 00                    9h 30","TECHNOL-PROC-PROPRES©","OUSLIMANI","RC14","TECHNOL-PROC-PROPRES© OUSLIMANI RC14",null,null,null,null,"MESURE ET MAITRISE DU RISQUE©","MEGDOUD","C42","MESURE ET MAITRISE DU RISQUE© MEGDOUD C42"]
[null,"9h 40                 11h 10","OPERATION-UNITAIRE(TP);GENIE DE REACTION(TP)","SEKOUR;NOURI-H","B24;B11","OPERATION-UNITAIRE(TP) SEKOUR B24\nGENIE DE REACTION(TP) NOURI-H B11","TRAITEMENT DES EAUX POTABLE©","BOUREGHDA","B31","TRAITEMENT DES EAUX POTABLE© BOUREGHDA B31","MESURE ET MAITRISE DU RISQUE(TD)","MEGDOUD","C42","MESURE ET MAITRISE DU RISQUE(TD) MEGDOUD C42"]
[null,"11h20                12h 50","OPERATION-UNITAIRE(TP);GENIE DE REACTION(TP)","SEKOUR;NOURI-H","B24;B11","OPERATION-UNITAIRE(TP) SEKOUR B24\nGENIE DE REACTION(TP) NOURI-H B11","CHIMIE DES MILIEUX AQUATIQUE(TD)","HADDADOU","B212","CHIMIE DES MILIEUX AQUATIQUE(TD) HADDADOU B212","PROGRAMMATION MATLAB(TD)","BENZAID","B210","PROGRAMMATION MATLAB(TD) BENZAID B210","SYNTHESE ET FORMES POLY©","BELLOUL","B49","SYNTHESE ET FORMES POLY© BELLOUL B49"]
[null,"13h 00              14h 30",null,null,null,null,null,null,null,null,"METHONUME-MATRIC-ANALY-RISQ(TD)","HARFOUCHE","B31","METHONUME-MATRIC-ANALY-RISQ(TD) HARFOUCHE B31","CHIMIE  MACROMOLECULES(TD)","SERRIER","B49","CHIMIE  MACROMOLECULES(TD) SERRIER B49"]
[null,"14h 40              16h 10",null,null,null,null,"TRAITEMENT DES EAUX POTABLE(TD)","BOUREGHDA","B214","TRAITEMENT DES EAUX POTABLE(TD) BOUREGHDA B214",null,null,null,null,"SYNTHESE ET FORMES POLYTD)","BELLOUL","B49","SYNTHESE ET FORMES POLYTD) BELLOUL B49"]
[null,"16h 20              17h 50"]
["Jeudi","8h 00                     9h 30","MANAG DE L'ENVIRONNEMENT©","LOUHAB","B418","MANAG DE L'ENVIRONNEMENT© LOUHAB B418",null,null,null,null,"RISQUE PYHS INDUST©","BOUGHERARA","B31","RISQUE PYHS INDUST© BOUGHERARA B31"]
[null,"9h 40                  11h 10","THERMOD-TECH©","AISSAT","B418","THERMOD-TECH© AISSAT B418","TRAIT DES EAUX POTABLES©","BOUREGHDA","B47","TRAIT DES EAUX POTABLES© BOUREGHDA B47","RISQUE PHYS INDUST(TD)","BOUGHERARA","B31","RISQUE PHYS INDUST(TD) BOUGHERARA B31","ELECTROCHIMIE©","LOUHAB","B46","ELECTROCHIMIE© LOUHAB B46"]
[null,"11h20                 12h 50",null,null,null,null,null,null,null,null,"OUTILS MATH UTILISES-SURETE-FONCT(TD)","X","B310","OUTILS MATH UTILISES-SURETE-FONCT(TD) X B310","SYNTHESE ET FORMES POLY(TP)","BELLOUL","B48","SYNTHESE ET FORMES POLY(TP) BELLOUL B48"]
[null,"13h 00              14h 30","SIMUL EN GDP©","BENYAKHLEF","C48","SIMUL EN GDP© BENYAKHLEF C48","BIOCHIMIE©","FERNANI","B418","BIOCHIMIE© FERNANI B418",null,null,null,null,"CLASSES MAT POLYM©","BELLOUL","B48","CLASSES MAT POLYM© BELLOUL B48"]
[null,"14h 40              16h 10","SIM-GDP(TP)","BENYAKHLEF","C210","SIM-GDP(TP) BENYAKHLEF C210","BIOCHIMIE(TD)","FERNANI","B418","BIOCHIMIE(TD) FERNANI B418"]
[null,"16h 20              17h 50"]
["Samedi","8h 00                     9h 30"]
[null,"9h 40                  11h 10"]
[null,"11h20                 12h 50"]

{"sheet":"MI LICENCE10","index":15,"n_rows":36,"n_cols":22,"rows_kept":36,"cut":false,"hidden":false,"merged":[[0,21,0,22],[0,18,0,19],[0,0,0,1],[21,0,26,0],[15,0,20,0],[9,0,14,0],[3,0,8,0],[0,9,0,10],[35,10,36,10],[35,11,36,11],[35,12,36,12],[27,0,32,0],[33,0,36,0],[35,1,36,1],[35,2,36,2],[35,3,36,3],[35,4,36,4],[35,14,36,14],[35,15,36,15],[35,16,36,16],[35,17,36,17],[35,13,36,13],[35,22,36,22],[35,23,36,23],[35,24,36,24],[35,25,36,25],[35,18,36,18],[35,19,36,19],[35,20,36,20],[35,21,36,21]]}
[null,null,null,null,null,"Filière:electromecanique",null,null,null,"Spécialite:electromecanique",null,null,null,"Maint indust-Génie indust",null,null,null,null,null,null,null,"Spécialite:Maint indust"]
[{"$f":"TODAY()","v":"2017-10-19"},"Section:",null,null,null,"licence3ème année",null,null,null,{"$f":"NOW()","v":"2017-10-19T13:25:47.140"}]
["Jour","SEANCES","LEM-15/A","Enseignant","Salle","LEM-15/A","LEM-15/B","Enseignant","Salle","LEM-15/B","LMI-15","Enseignant","Salle","LMI-15","LGI-15","Enseignant","Salle","LGI-15"]
["Dimanche","8h 00                     9h 30","TRANSPHERT THERMIQUE©","SETTET","C43","TRANSPHERT THERMIQUE© SETTET C43","TRANSPHERT THERMIQUE©","SETTET","C43","TRANSPHERT THERMIQUE© SETTET C43","ELEMENTS DE MACHINES©","AGUIB","B418","ELEMENTS DE MACHINES© AGUIB B418","OPTIMISATION-MES©","OURARI","B49","OPTIMISATION-MES© OURARI B49"]
[null,"9h 40                 11h 10",null,null,null,null,null,null,null,null,"CAPTEURS ET INSTRUMENTATION©","GUERRACHE","B313","CAPTEURS ET INSTRUMENTATION© GUERRACHE B313","OPTIMISATION-MES(TD)","OURARI","B49","OPTIMISATION-MES(TD) OURARI B49"]
[null,"11h20                 12h 50",null,null,null,null,null,null,null,null,null,null,null,null,"CONCEPT-ASSIST-ORD©","BOUHABILA","C310","CONCEPT-ASSIST-ORD© BOUHABILA C310"]
[null,"13h 00              14h 30","SYSTEMES ASSERVISSEMENT©","DOUDAH","AP1","SYSTEMES ASSERVISSEMENT© DOUDAH AP1","SYSTEMES ASSERVISSEMENT©","DOUDAH","AP1","SYSTEMES ASSERVISSEMENT© DOUDAH AP1","ELEMENTS DE MACHINES(TD) ","AGUIB","B313","ELEMENTS DE MACHINES(TD)  AGUIB B313"]
[null,"14h 40              16h 10","MATERIEAUX ELECTROTECH©","GUERRACHE","AP1","MATERIEAUX ELECTROTECH© GUERRACHE AP1","MATERIEAUX ELECTROTECH©","GUERRACHE","AP1","MATERIEAUX ELECTROTECH© GUERRACHE AP1"]
[null,"16h 20              17h 50"]
["Lundi","8h 00                    9h 30","ELECTRO-PUISSANCE(TP)","BERRAZOUANE","A26","ELECTRO-PUISSANCE(TP) BERRAZOUANE A26","TRANSPHERT THERMIQUE(TD)","SETTET","B36","TRANSPHERT THERMIQUE(TD) SETTET B36","TRANSPHERT THERMIQUE©","GRINE","B419","TRANSPHERT THERMIQUE© GRINE B419","ANGLAIS©","DAOUALI","B46","ANGLAIS© DAOUALI B46"]
[null,"9h 40                  11h 10","TRANSPHERT THERMIQUE(TD)","SETTET","B36","TRANSPHERT THERMIQUE(TD) SETTET B36","ELECTRO-PUISSANCE(TP)","BERRAZOUANE","A26","ELECTRO-PUISSANCE(TP) BERRAZOUANE A26","ELECTROTECHNIQUE(TP) ","LARBANI","EEA1","ELECTROTECHNIQUE(TP)  LARBANI EEA1","CONCEPT-ASSIST-ORD(TP)","BOUHABILA","C310","CONCEPT-ASSIST-ORD(TP) BOUHABILA C310"]
[null,"11h20                12h 50",null,null,null,null,null,null,null,null,null,null,null,null,"MAIN-SUR-FON(TD)","BENAMMAR","B49","MAIN-SUR-FON(TD) BENAMMAR B49"]
[null,"13h 00              14h 30","MACHIN ELECTRIQUE©","ALEM","AP2","MACHIN ELECTRIQUE© ALEM AP2","MACHIN ELECTRIQUE©","ALEM","AP2","MACHIN ELECTRIQUE© ALEM AP2","ORG TE METH DE LA MAINT©","ADJERID","C412","ORG TE METH DE LA MAINT© ADJERID C412"]
[null,"14h 40              16h 10","SCHEMAS ET APPARILLAGE©","LARBANI","AP2","SCHEMAS ET APPARILLAGE© LARBANI AP2","SCHEMAS ET APPARILLAGE©","LARBANI","AP2","SCHEMAS ET APPARILLAGE© LARBANI AP2","ELECTROTECH FONDII(TD) ","RAHMOUNE","C412","ELECTROTECH FONDII(TD)  RAHMOUNE C412"]
[null,"16h 20              17h 50"]
["Mardi","8h 00                    9h 30","MACHIN ELECTRIQUE(TP)","LARBANI","EEA2","MACHIN ELECTRIQUE(TP) LARBANI EEA2",null,null,null,null,"METROLOGIE ET ASSEMBLABLE(TP) ","ATMANI","ATFMS","METROLOGIE ET ASSEMBLABLE(TP)  ATMANI ATFMS","AUTOMATIQUE IND©","KANTAS","B415","AUTOMATIQUE IND© KANTAS B415"]
[null,"9h 40                 11h 10","SCHEMAS ET APPARILLAGE(TP)","LARBANI","EEA1","SCHEMAS ET APPARILLAGE(TP) LARBANI EEA1",null,null,null,null,"METROLOGIE ET ASSEMBLABLE(TP) ","ATMANI","ATFMS","METROLOGIE ET ASSEMBLABLE(TP)  ATMANI ATFMS","MAIN-SUR-FON©","BENAMMAR","B414","MAIN-SUR-FON© BENAMMAR B414"]
[null,"11h20                12h 50",null,null,null,null,"SYSTEMES  ASSERVISSEMENT(TP)","GOUGAM","A26","SYSTEMES  ASSERVISSEMENT(TP) GOUGAM A26"]
[null,"13h 00              14h 30","SYSTEMES ASSERVISSEMENT(TP)","GOUGAM","RC9/B","SYSTEMES ASSERVISSEMENT(TP) GOUGAM RC9/B","SCHEMAS ET APPARILLAGE(TP)","LARBANI","EEA2","SCHEMAS ET APPARILLAGE(TP) LARBANI EEA2","ELECTRONIQUE FONDII©","MELLAL","B37","ELECTRONIQUE FONDII© MELLAL B37","MODELISATION-ENTR©","OURARI","B414","MODELISATION-ENTR© OURARI B414"]
[null,"14h 40              16h 10",null,null,null,null,"MACHIN ELECTRIQUE(TP)","LARBANI","EEA1","MACHIN ELECTRIQUE(TP) LARBANI EEA1","ELECTRONIQUE FONDII(TD) ","MELLAL","B37","ELECTRONIQUE FONDII(TD)  MELLAL B37","OPTIMISATION-MES(TP)","OURARI","B414","OPTIMISATION-MES(TP) OURARI B414"]
[null,"16h 20              17h 50"]
["Mercredi","8h 00                    9h 30","MACHIN ELECTRIQUE(TD)","ALEM","B414","MACHIN ELECTRIQUE(TD) ALEM B414","SYSTEMES ASSERVISSEMENT(TD)","DOUDAH","B415","SYSTEMES ASSERVISSEMENT(TD) DOUDAH B415","GMAO©","OURARI","C43","GMAO© OURARI C43","PROCED-ELAB-FAB©","ABAINIA","B49","PROCED-ELAB-FAB© ABAINIA B49"]
[null,"9h 40                 11h 10","SYSTEMES ASSERVISSEMENT(TD)","DOUDAH","B41","SYSTEMES ASSERVISSEMENT(TD) DOUDAH B41","MACHIN ELECTRIQUE(TD)","ALEM","B415","MACHIN ELECTRIQUE(TD) ALEM B415","GMAO(TP) ","OURARI","C43","GMAO(TP)  OURARI C43","PROCED-ELAB-FAB(TD)","ABAINIA","B49","PROCED-ELAB-FAB(TD) ABAINIA B49"]
[null,"11h20                12h 50",null,null,null,null,null,null,null,null,"ELECTRONIQUEII©","RAHMOUNE","C43","ELECTRONIQUEII© RAHMOUNE C43"]
[null,"13h 00              14h 30","CONSTR MEC©","AKNOUCHE","AP4","CONSTR MEC© AKNOUCHE AP4","CONSTR MEC©","AKNOUCHE","AP4","CONSTR MEC© AKNOUCHE AP4",null,null,null,null,"AUTOMATIQUE IND©","KANTAS","B46","AUTOMATIQUE IND© KANTAS B46"]
[null,"14h 40              16h 10","DESSIN TECHNIQUE©","BOUDIEB","AP4","DESSIN TECHNIQUE© BOUDIEB AP4","DESSIN TECHNIQUE©","BOUDIEB","AP4","DESSIN TECHNIQUE© BOUDIEB AP4",null,null,null,null,"AUTOMATIQUE IND(TD)","KANTAS","B46","AUTOMATIQUE IND(TD) KANTAS B46"]
[null,"16h 20              17h 50"]
["Jeudi","8h 00                     9h 30","ELECTRONIQUE DE PUISSANCE©","BERRAZOUANE","A12","ELECTRONIQUE DE PUISSANCE© BERRAZOUANE A12","ELECTRONIQUE DE PUISSANCE©","BERRAZOUANE","A16","ELECTRONIQUE DE PUISSANCE© BERRAZOUANE A16","ORG TE METH DE LA MAINT©","ADJERID","B212","ORG TE METH DE LA MAINT© ADJERID B212","INTRODUCTION-SYST-D'INF©","X","B414","INTRODUCTION-SYST-D'INF© X B414"]
[null,"9h 40                  11h 10","PROD D'ENERGIE ELECTRIQUE©","BAHLOUL","AP2","PROD D'ENERGIE ELECTRIQUE© BAHLOUL AP2","PROD D'ENERGIE ELECTRIQUE©","BAHLOUL","AP2","PROD D'ENERGIE ELECTRIQUE© BAHLOUL AP2","ORG-META-MACH(TD) ","ADJERID","B212","ORG-META-MACH(TD)  ADJERID B212","AUTOMATIQUE IND(TP)","KANTAS","AT15","AUTOMATIQUE IND(TP) KANTAS AT15"]
[null,"11h20                 12h 50","ELECTRONIQUE DE PUISSANCE(TD)","BERRAZOUANE","A16","ELECTRONIQUE DE PUISSANCE(TD) BERRAZOUANE A16",null,null,null,null,"ENV ET DEVELOPPEMENT DURABLE©","BAHLOUL","B212","ENV ET DEVELOPPEMENT DURABLE© BAHLOUL B212","MAIN-SUR-FON(TP)","CHEBOUBA","B210","MAIN-SUR-FON(TP) CHEBOUBA B210"]
[null,"13h 00              14h 30",null,null,null,null,"ELECTRONIQUE DE PUISSANCE(TD)","BERRAZOUANE","A16","ELECTRONIQUE DE PUISSANCE(TD) BERRAZOUANE A16","ELECTRONIQUE(TP) ","AGGAD","AT11","ELECTRONIQUE(TP)  AGGAD AT11"]
[null,"14h 40              16h 10"]
[null,"16h 20              17h 50"]
["Samedi","8h 00                     9h 30"]
[null,"9h 40                  11h 10"]
[null,"11h20                 12h 50"]

{"sheet":"TA MASTER12","index":16,"n_rows":36,"n_cols":14,"rows_kept":36,"cut":false,"hidden":false,"merged":[[0,0,0,1],[21,0,26,0],[27,0,32,0],[33,0,35,0],[3,0,8,0],[9,0,14,0],[15,0,20,0]]}
["Departement:",null,null,null,null,"TECN        ALIMENTAIRE"]
[null,"Section:",null,null,null,{"$f":"'TA MASTER11'!A2","v":"2017-10-19"}]
["Jour","SEANCES","MGA17","Enseignant","Salle","MGA17","MGIA16","Enseignant","Salle","MGIA16","IECM09","Enseignant","Salle","IECM09"]
["Dimanche","8h 00                     9h 30","BIOCH-INSTRIMENTAL(TP)(2/3G);ANALY-ALIM(TP)(2/3G)","BENMALEK;ZIDANI","B18;B15","BIOCH-INSTRIMENTAL(TP)(2/3G) BENMALEK B18\nANALY-ALIM(TP)(2/3G) ZIDANI B15",null,null,null,null,"MEC DE REP©","XXXX","XXXX","MEC DE REP© XXXX XXXX"]
[null,"9h 40                 11h 10","BIOCH-INSTRIMENTAL(TP)(2/3G);ANALY-ALIM(TP)(2/3G)","BENMALEK;ZIDANI","B18;B15","BIOCH-INSTRIMENTAL(TP)(2/3G) BENMALEK B18\nANALY-ALIM(TP)(2/3G) ZIDANI B15","CONSERVAT DES ALIMENTS©","X","X","CONSERVAT DES ALIMENTS© X X"]
[null,"11h20                 12h 50",null,null,null,null,"TECN DES CEREAL ET DERIVES©","X","X","TECN DES CEREAL ET DERIVES© X X","MDR(TD)","XXXX","XXXX","MDR(TD) XXXX XXXX"]
[null,"13h 00              14h 30","[SI]BIOCH-INS(TP)(1/3G);[SP]BIO-ANAL(TP)(1/3G) ","BENMALEK;ZIDANI","B18;B15","[SI]BIOCH-INS(TP)(1/3G) BENMALEK B18\n[SP]BIO-ANAL(TP)(1/3G)  ZIDANI B15"]
[null,"14h 40              16h 10","[SI]BIOCH-INS(TP)(1/3G);[SP]BIO-ANAL(TP)(1/3G) ","BENMALEK;ZIDANI","B18;B15","[SI]BIOCH-INS(TP)(1/3G) BENMALEK B18\n[SP]BIO-ANAL(TP)(1/3G)  ZIDANI B15","ECO-GESTION©","X","X","ECO-GESTION© X X"]
[null,"16h 20              17h 50"]
["Lundi","8h 00                    9h 30",null,null,null,null,null,null,null,null,"METHODES FMS©","XXXX","XXXX","METHODES FMS© XXXX XXXX"]
[null,"9h 40                  11h 10","BIOCHIMIE  DES ALIMENTS ET CHMIE©","NOUANI","A15","BIOCHIMIE  DES ALIMENTS ET CHMIE© NOUANI A15","BIOCH-ALIM(TP)(1/4G);ANALY-DES CERALTP)(1/4G)","XX;XX","XX;XX","BIOCH-ALIM(TP)(1/4G) XX XX\nANALY-DES CERALTP)(1/4G) XX XX","METHODES FMS(TD)","XXXX","XXXX","METHODES FMS(TD) XXXX XXXX"]
[null,"11h20                12h 50","BIOCHIMIE  DES ALIMENTS ET CHMIE©","NOUANI","A16","BIOCHIMIE  DES ALIMENTS ET CHMIE© NOUANI A16","BIOCH-ALIM(TP)(1/4G);ANALY-DES CERALTP)(1/4G)","XX;XX","XX;XX","BIOCH-ALIM(TP)(1/4G) XX XX\nANALY-DES CERALTP)(1/4G) XX XX","CND©","XXXX","XXXX","CND© XXXX XXXX"]
[null,"13h 00              14h 30"]
[null,"14h 40              16h 10",null,null,null,null,"TECN DES CEREAL ET DERIVES©","X","X","TECN DES CEREAL ET DERIVES© X X"]
[null,"16h 20              17h 50"]
["Mardi","8h 00                    9h 30","OPER-UNIT-DU GENIE ALIMENTAIRE1©","BELARBI-TA","C43","OPER-UNIT-DU GENIE ALIMENTAIRE1© BELARBI-TA C43","OPER-UNIT-IAA1©","X","X","OPER-UNIT-IAA1© X X"]
[null,"9h 40                 11h 10","OPER-UNIT-DU GENIE ALIMENTAIRE1(TD)","BELARBI-TA","C43","OPER-UNIT-DU GENIE ALIMENTAIRE1(TD) BELARBI-TA C43","OPER-UNIT-IAA1©","X","X","OPER-UNIT-IAA1© X X","METHODES FMS©","XXXX","XXXX","METHODES FMS© XXXX XXXX"]
[null,"11h20                12h 50",null,null,null,null,"TRAIT DES EAUX©","X","X","TRAIT DES EAUX© X X"]
[null,"13h 00              14h 30","RHEOLOGIE DES SYSTEMES ALIMENTAIRES©","BENAMARA-TA","AP2","RHEOLOGIE DES SYSTEMES ALIMENTAIRES© BENAMARA-TA AP2",null,null,null,null,"CONCEP-METALIQ©","XXXX","XXXX","CONCEP-METALIQ© XXXX XXXX"]
[null,"14h 40              16h 10","RHEOLOGE DES SYSTEMES ALIMENTAIRES©","BENAMARA-TA","AP2","RHEOLOGE DES SYSTEMES ALIMENTAIRES© BENAMARA-TA AP2",null,null,null,null,"CONCEP-METALIQ(TD)","XXXX","XXXX","CONCEP-METALIQ(TD) XXXX XXXX"]
[null,"16h 20              17h 50"]
["Mercredi","8h 00                    9h 30",null,null,null,null,"ANGLAIS©","X","X","ANGLAIS© X X","TECH-SP©","XXXX","XXXX","TECH-SP© XXXX XXXX"]
[null,"9h 40                 11h 10","PROCESS DE-TRANSF DES ALIMENTS©","NOUANI","C412","PROCESS DE-TRANSF DES ALIMENTS© NOUANI C412","BIOCHIMIE ALIMENT©","X","X","BIOCHIMIE ALIMENT© X X","TECH-SP(TD)","XXXX","XXXX","TECH-SP(TD) XXXX XXXX"]
[null,"11h20                12h 50","PROCESS DE-TRANSF-DES ALIMENTS(TD)","NOUANI","C412","PROCESS DE-TRANSF-DES ALIMENTS(TD) NOUANI C412","BIOCHIMIE ALIMENT©","X","X","BIOCHIMIE ALIMENT© X X","MANAGEMENT©","XXXX","XXXX","MANAGEMENT© XXXX XXXX"]
[null,"13h 00              14h 30","OPER-UNIT-DU GENIE ALIMENTAIRE1©","BELARBI-TA","C49","OPER-UNIT-DU GENIE ALIMENTAIRE1© BELARBI-TA C49"]
[null,"14h 40              16h 10",null,null,null,null,null,null,null,null,"RECHERCHE OPERATIONNEL(TD)","XXXX","XXXX","RECHERCHE OPERATIONNEL(TD) XXXX XXXX"]
[null,"16h 20              17h 50"]
["Jeudi","8h 00                     9h 30","TECHNIQUE ET TERMINOLOGIE©","HAMICI","C43","TECHNIQUE ET TERMINOLOGIE© HAMICI C43","METHODOLOGIE RECHERCHE©","X","X","METHODOLOGIE RECHERCHE© X X","RECHERCHE OPERATIONNEL©","XXXX","XXXX","RECHERCHE OPERATIONNEL© XXXX XXXX"]
[null,"9h 40                  11h 10","SECURITE SANITAIRE DES ALIMENTS©","MEGDOUD","C43","SECURITE SANITAIRE DES ALIMENTS© MEGDOUD C43","METHODOLOGIE RECHERCHE©","X","X","METHODOLOGIE RECHERCHE© X X","CND©","XXXX","XXXX","CND© XXXX XXXX"]
[null,"11h20                 12h 50","SECURITE SANITAIRE DES ALIMENTS(TD)","MEGDOUD","C43","SECURITE SANITAIRE DES ALIMENTS(TD) MEGDOUD C43",null,null,null,null,"MANAGEMENT(TD)","XXXX","XXXX","MANAGEMENT(TD) XXXX XXXX"]
[null,"13h 00              14h 30","STATISTIQUES APPLIQUE©","LECHEB-TA","B36","STATISTIQUES APPLIQUE© LECHEB-TA B36"]
[null,"14h 40              16h 10"]
[null,"16h 20              17h 50"]
["Samedi","8h 00                     9h 30"]
[null,"9h 40                  11h 10"]
[null,"11h20                 12h 50"]

{"sheet":"TA MASTER11","index":17,"n_rows":36,"n_cols":15,"rows_kept":36,"cut":false,"hidden":false,"merged":[[0,14,0,16],[0,0,0,1],[3,0,8,0],[33,0,35,0],[27,0,32,0],[21,0,26,0],[15,0,20,0],[9,0,14,0]]}
["Departement:",null,null,null,null,"technologie alimentaire",null,null,null,null,null,null,null,null,{"$f":"NOW()","v":"2017-10-19T13:25:47.140"}]
[{"$f":"TODAY()","v":"2017-10-19"},"Section:",null,null,null,"Master 2ème année"]
["Jour","SEANCES","MGA16","Enseignant","Salle","MGA16","MSBLA15","Enseignant","Salle","MSBLA15","MGIA15","Enseignant","Salle","MGIA15"]
["Dimanche","8h 00                     9h 30","COND-PROD-IND-AGRO©","ABDELLAOUI","B41","COND-PROD-IND-AGRO© ABDELLAOUI B41",null,null,null,null,"MICROBIOLOGIE INDUSTR ET BIOTECHNOLOGIE©","XX","XX","MICROBIOLOGIE INDUSTR ET BIOTECHNOLOGIE© XX XX"]
[null,"9h 40                 11h 10","COND-PROD-IND-AGRO(TD) ","ABDELLAOUI","B41","COND-PROD-IND-AGRO(TD)  ABDELLAOUI B41","PRODUITS LAITIERES©","XX","XX","PRODUITS LAITIERES© XX XX","NUTRITION ET TOXICOLOGIE©","XX","XX","NUTRITION ET TOXICOLOGIE© XX XX"]
[null,"11h20                 12h 50",null,null,null,null,"ANGLAIS©","XX","XX","ANGLAIS© XX XX","NUTRITION ET TXICOLOGIE©","XX","XX","NUTRITION ET TXICOLOGIE© XX XX"]
[null,"13h 00              14h 30","PROCEDES-CONSERV-ALIM©","TRACHI","B417","PROCEDES-CONSERV-ALIM© TRACHI B417","MICROBIOLOGIE DU LAIT©","XX","XX","MICROBIOLOGIE DU LAIT© XX XX"]
[null,"14h 40              16h 10","PROC-CONSER-ALIM(TD) ","TRACHI","B417","PROC-CONSER-ALIM(TD)  TRACHI B417","CHIMIE DU LAIT©","XX","XX","CHIMIE DU LAIT© XX XX","ANGLAIS©","XX","XX","ANGLAIS© XX XX"]
[null,"16h 20              17h 50"]
["Lundi","8h 00                    9h 30","TRAIT-EAUX-DECHETS-VALO©","ZIDANI","AP2","TRAIT-EAUX-DECHETS-VALO© ZIDANI AP2",null,null,null,null,"ALIM-FONC-PROD-NOUVEAUX©","XX","XX","ALIM-FONC-PROD-NOUVEAUX© XX XX"]
[null,"9h 40                  11h 10","INTER-ATMOSPH-EMB-ALIM©","IDIR-TA","AP2","INTER-ATMOSPH-EMB-ALIM© IDIR-TA AP2","CHIMIE DE LAIT©","XX","XX","CHIMIE DE LAIT© XX XX","ALIM-FONC-PROD-NOUVEAUX©","XX","XX","ALIM-FONC-PROD-NOUVEAUX© XX XX"]
[null,"11h20                12h 50","INTER-ATMOSPH-EMB-ALIM(TD) ","IDIR-TA","AP2","INTER-ATMOSPH-EMB-ALIM(TD)  IDIR-TA AP2","S-H-L©","XX","XX","S-H-L© XX XX"]
[null,"13h 00              14h 30",null,null,null,null,null,null,null,null,"XX","XX","XX","XX XX XX"]
[null,"14h 40              16h 10",null,null,null,null,null,null,null,null,"XX","XX","XX","XX XX XX"]
[null,"16h 20              17h 50"]
["Mardi","8h 00                    9h 30","PHYSICO-CHIMIE DES ALIM(TP) ","LARID+YELLES","C28","PHYSICO-CHIMIE DES ALIM(TP)  LARID+YELLES C28","TECHN ET BIOTRANSFORMATION DE LAIT(TP)","XX","XX","TECHN ET BIOTRANSFORMATION DE LAIT(TP) XX XX","CONDITIONNEMENT-EMBALLAGE©","XX","XX","CONDITIONNEMENT-EMBALLAGE© XX XX"]
[null,"9h 40                 11h 10","PHYSICO-CHIMIE DES ALIM(TP) ","LARID+YELLES","C212","PHYSICO-CHIMIE DES ALIM(TP)  LARID+YELLES C212","TECHN ET BIOTRANSFORMATION DE LAIT(TP)","XX","XX","TECHN ET BIOTRANSFORMATION DE LAIT(TP) XX XX","TECH DES CORPS GRAS©","XX","XX","TECH DES CORPS GRAS© XX XX"]
[null,"11h20                12h 50",null,null,null,null,"EQUIP DU LAITIERES©","XX","XX","EQUIP DU LAITIERES© XX XX","COND-EMB©","XX","XX","COND-EMB© XX XX"]
[null,"13h 00              14h 30","PLANTS D'EXPERIENCES©","BOUKHIAR","B212","PLANTS D'EXPERIENCES© BOUKHIAR B212"]
[null,"14h 40              16h 10","PLANTS D'EXPERIENCES(TD)","BOUKHIAR","B212","PLANTS D'EXPERIENCES(TD) BOUKHIAR B212",null,null,null,null,"TECH DES CORPS GRAS©","XX","XX","TECH DES CORPS GRAS© XX XX"]
[null,"16h 20              17h 50"]
["Mercredi","8h 00                    9h 30","PHYSICO-CHIMIE DES ALIM(TP) ","LARID+YELLES","C28","PHYSICO-CHIMIE DES ALIM(TP)  LARID+YELLES C28","EQUIP  LAITIERE©","XX","XX","EQUIP  LAITIERE© XX XX","TECH DE LAIT ET DERIVES©","XX","XX","TECH DE LAIT ET DERIVES© XX XX"]
[null,"9h 40                 11h 10","PHYSICO-CHIMIE DES ALIM(TP) ","LARID+YELLES","C212","PHYSICO-CHIMIE DES ALIM(TP)  LARID+YELLES C212","PRODUIT LAITIERS©","XX","XX","PRODUIT LAITIERS© XX XX","TECH DE LAIT ET DERIVES©","XX","XX","TECH DE LAIT ET DERIVES© XX XX"]
[null,"11h20                12h 50",null,null,null,null,"SECURITE ET HYGIEN DE LAIT©","XX","XX","SECURITE ET HYGIEN DE LAIT© XX XX"]
[null,"13h 00              14h 30","APLICATION-PROJET-COURS©","HADERBACHE","B213","APLICATION-PROJET-COURS© HADERBACHE B213",null,null,null,null,"QUAL SANI ALIM TRACAB©","XX","XX","QUAL SANI ALIM TRACAB© XX XX"]
[null,"14h 40              16h 10","APLICATION-PROJET-COURS(TP) ","HADERBACHE","B213","APLICATION-PROJET-COURS(TP)  HADERBACHE B213",null,null,null,null,"QUAL SANI ALIM TRACAB©","XX","XX","QUAL SANI ALIM TRACAB© XX XX"]
[null,"16h 20              17h 50"]
["Jeudi","8h 00                     9h 30","RECH-DOC-CONCEP-MEM©","FERNANI","AP6","RECH-DOC-CONCEP-MEM© FERNANI AP6","CHIMIE DE LAIT(TP)","XX","XX","CHIMIE DE LAIT(TP) XX XX","MICROBIOLOGIE INDUSTR ET BIOTECHNOLOGIE©","XX","XX","MICROBIOLOGIE INDUSTR ET BIOTECHNOLOGIE© XX XX"]
[null,"9h 40                  11h 10","PLANIFI-POLITIQUE-ALIM©","BENAKMOUM","AP4","PLANIFI-POLITIQUE-ALIM© BENAKMOUM AP4","CHIMIE DE LAIT(TP)","XX","XX","CHIMIE DE LAIT(TP) XX XX","XX","XX","XX","XX XX XX"]
[null,"11h20                 12h 50","ALIM-FON-PRO-NOUV©","BENAMARA-TA","AP4","ALIM-FON-PRO-NOUV© BENAMARA-TA AP4","MICROBIOLOGIE DU LAIT©","XX","XX","MICROBIOLOGIE DU LAIT© XX XX","XX","XX","XX","XX XX XX"]
[null,"13h 00              14h 30"]
[null,"14h 40              16h 10"]
[null,"16h 20              17h 50"]
["Samedi","8h 00                     9h 30"]
[null,"9h 40                  11h 10"]
[null,"11h20                 12h 50"]

{"sheet":"ENV LICENCE10","index":18,"n_rows":36,"n_cols":19,"rows_kept":36,"cut":false,"hidden":false,"merged":[[0,18,0,20],[0,0,0,1],[27,0,32,0],[33,0,35,0],[3,0,8,0],[9,0,14,0],[15,0,20,0],[21,0,26,0]]}
[null,null,null,null,null,"Filière:Hygiène et securite industrielle",null,null,null,null,null,null,null,"Spécialité:Hygiène et securite industrielle",null,null,null,null,{"$f":"NOW()","v":"2017-10-19T13:25:47.140"}]
[{"$f":"TODAY()","v":"2017-10-19"},"Section:",null,null,null,"licence 3ème année"]
["Jour","SEANCES","LHSI-15","Enseignant","Salle","LHSI-15","LHSI-15/B","Enseignant","Salle","LHSI-15/B","LHSI-14/C","Enseignant","Salle","LHSI-14/C"]
["Dimanche","8h 00                     9h 30",null,null,null,null,"SECURITE INCEDIE©","XXX","XXX","SECURITE INCEDIE© XXX XXX"]
[null,"9h 40                 11h 10","SECURITE INCEDIE©","KEBBOUCHE","B36","SECURITE INCEDIE© KEBBOUCHE B36","TOXICOLOGIE INDUST©","XXX","XXX","TOXICOLOGIE INDUST© XXX XXX","SECURITE INCEDIE(TD) ","XX","XX","SECURITE INCEDIE(TD)  XX XX"]
[null,"11h20                 12h 50",null,null,null,null,"SECURITE INST EQUIP INDUST©","XXX","XXX","SECURITE INST EQUIP INDUST© XXX XXX"]
[null,"13h 00              14h 30","TOXICOLOGIE INDUST©","ANNOU","RC14","TOXICOLOGIE INDUST© ANNOU RC14",null,null,null,null,"SECURITE INST EQUIP INDUST©","XX","XX","SECURITE INST EQUIP INDUST© XX XX"]
[null,"14h 40              16h 10","TOXICOLOGIE INDUST(TD) ","ANNOU","RC14","TOXICOLOGIE INDUST(TD)  ANNOU RC14","SECURITE INCEDIE(TD) ","XXX","XXX","SECURITE INCEDIE(TD)  XXX XXX","TOXICOLOGIE INDUST©","XX","XX","TOXICOLOGIE INDUST© XX XX"]
[null,"16h 20              17h 50"]
["Lundi","8h 00                    9h 30","SECURITE INCEDIE© ","KEBBOUCHE","RC14","SECURITE INCEDIE©  KEBBOUCHE RC14","TOXICOLOGIE INDUST(TD) ","XXX","XXX","TOXICOLOGIE INDUST(TD)  XXX XXX","SECURITE INCEDIE©","XX","XX","SECURITE INCEDIE© XX XX"]
[null,"9h 40                  11h 10","SECURITE INCEDIE(TD) ","KEBBOUCHE","RC14","SECURITE INCEDIE(TD)  KEBBOUCHE RC14","SECURITE INCEDIE©","XXX","XXX","SECURITE INCEDIE© XXX XXX","SECURITE INCEDIE©","XX","XX","SECURITE INCEDIE© XX XX"]
[null,"11h20                12h 50","ACAUSTIQUE INDUST©","BENKABOU","RC14","ACAUSTIQUE INDUST© BENKABOU RC14"]
[null,"13h 00              14h 30",null,null,null,null,"SYST MANAGEMENT©","XXX","XXX","SYST MANAGEMENT© XXX XXX","SYST MANAGEMENT©","XX","XX","SYST MANAGEMENT© XX XX"]
[null,"14h 40              16h 10",null,null,null,null,"NOTION D'ECOLOGIES©","XXX","XXX","NOTION D'ECOLOGIES© XXX XXX","TOXICOLOGIE INDUST(TD) ","XX","XX","TOXICOLOGIE INDUST(TD)  XX XX"]
[null,"16h 20              17h 50"]
["Mardi","8h 00                    9h 30","ANALYS DES DONNEES OUTILS STAT©","LECHEB-TA","C49","ANALYS DES DONNEES OUTILS STAT© LECHEB-TA C49",null,null,null,null,"SECURITE INST EQUIP INDUST(TD) ","XX","XX","SECURITE INST EQUIP INDUST(TD)  XX XX"]
[null,"9h 40                 11h 10","ETUDE DE CAS EN HSI©","BALLOUL","A12","ETUDE DE CAS EN HSI© BALLOUL A12","ETUDE DE CAS EN HSI©","XXX","XXX","ETUDE DE CAS EN HSI© XXX XXX","ACAUSTIQUE INDUST©","XX","XX","ACAUSTIQUE INDUST© XX XX"]
[null,"11h20                12h 50","NOTION D'ECOLOGIES©","BALLOUL","A12","NOTION D'ECOLOGIES© BALLOUL A12","PROTECTION ENVIRONNEMENT©","XXX","XXX","PROTECTION ENVIRONNEMENT© XXX XXX","PROTECTION ENVIRONNEMENT©","XX","XX","PROTECTION ENVIRONNEMENT© XX XX"]
[null,"13h 00              14h 30"]
[null,"14h 40              16h 10","DEVELOPPEMENT DURABLE©","BALLOUL","C43","DEVELOPPEMENT DURABLE© BALLOUL C43","SECURITE INST EQUIP INDUST©","XXX","XXX","SECURITE INST EQUIP INDUST© XXX XXX","NOTION D'ECOLOGIES©","XX","XX","NOTION D'ECOLOGIES© XX XX"]
[null,"16h 20              17h 50"]
["Mercredi","8h 00                    9h 30","METHO QUALIT D'ANALYS©","TIRECHE","B312","METHO QUALIT D'ANALYS© TIRECHE B312","SECURITE INST EQUIP INDUST(TD) ","XXX","XXX","SECURITE INST EQUIP INDUST(TD)  XXX XXX"]
[null,"9h 40                 11h 10","[SI]METHO QUALIT D'ANALYS(TD)","TIRECHE","B312","[SI]METHO QUALIT D'ANALYS(TD) TIRECHE B312","METHO QUALIT D'ANALYS© ","XXX","XXX","METHO QUALIT D'ANALYS©  XXX XXX"]
[null,"11h20                12h 50","PROTECTION ENVIRONNEMENT©","ABDELLAOUI","B312","PROTECTION ENVIRONNEMENT© ABDELLAOUI B312","METHO QUALIT D'ANALYS(TD)","XXX","XXX","METHO QUALIT D'ANALYS(TD) XXX XXX"]
[null,"13h 00              14h 30",null,null,null,null,null,null,null,null,"SECURITE INST EQUIP INDUST©","XX","XX","SECURITE INST EQUIP INDUST© XX XX"]
[null,"14h 40              16h 10","SYST MANAGEMENT©","HADDADOU","A12","SYST MANAGEMENT© HADDADOU A12",null,null,null,null,"METHO QUALIT D'ANALYS(TD) ","XX","XX","METHO QUALIT D'ANALYS(TD)  XX XX"]
[null,"16h 20              17h 50"]
["Jeudi","8h 00                     9h 30",null,null,null,null,"DEVELOPPEMENT DURABLE©","XXX","XXX","DEVELOPPEMENT DURABLE© XXX XXX","METHO QUALIT D'ANALYS©","XX","XX","METHO QUALIT D'ANALYS© XX XX"]
[null,"9h 40                  11h 10",null,null,null,null,"ACAUSTIQUE INDUST©","XXX","XXX","ACAUSTIQUE INDUST© XXX XXX","ETUDE DE CAS EN HSI©","XX","XX","ETUDE DE CAS EN HSI© XX XX"]
[null,"11h20                 12h 50",null,null,null,null,"ANALYS DES DONNEES OUTILS STAT©","XXX","XXX","ANALYS DES DONNEES OUTILS STAT© XXX XXX"]
[null,"13h 00              14h 30",null,null,null,null,null,null,null,null,"ANALYS DES DONNEES OUTILS STAT©","XX","XX","ANALYS DES DONNEES OUTILS STAT© XX XX"]
[null,"14h 40              16h 10",null,null,null,null,null,null,null,null,"DEVELOPPEMENT DURABLE©","XX","XX","DEVELOPPEMENT DURABLE© XX XX"]
[null,"16h 20              17h 50"]
["Samedi","8h 00                     9h 30","SECURITE INST EQUIP INDUST©","BENYAKHLEF","B37","SECURITE INST EQUIP INDUST© BENYAKHLEF B37"]
[null,"9h 40                  11h 10","SECURITE INST EQUIP INDUST©","BENYAKHLEF","B37","SECURITE INST EQUIP INDUST© BENYAKHLEF B37"]
[null,"11h20                 12h 50","SECURITE INST EQUIP INDUST(TD) ","BENYAKHLEF","B37","SECURITE INST EQUIP INDUST(TD)  BENYAKHLEF B37"]

{"sheet":"MI MASTER11","index":19,"n_rows":36,"n_cols":14,"rows_kept":36,"cut":false,"hidden":false,"merged":[[1,9,1,13],[0,0,0,1],[3,0,8,0],[33,0,35,0],[27,0,32,0],[21,0,26,0],[15,0,20,0],[9,0,14,0]]}
["Departement:",null,null,null,null,"G-MECANIQUE",null,null,null,{"$f":"NOW()","v":"2017-10-19T13:25:47.140"}]
[null,"Section:",null,null,null,"Master 2ème année",null,null,null,"Filière:electromécanique-mécatronique-maint  indust"]
["Jour","SEANCES","MEM16","Enseignant","Salle","MEM16","MMTR16","Enseignant","Salle","MMTR16","MMI16","Enseignant","Salle","MMI16"]
["Dimanche","8h 00                     9h 30","MOD-SIM-SYST-ELECTRO©","RATNI","A16","MOD-SIM-SYST-ELECTRO© RATNI A16",null,null,null,null,"ACOUSTIQUE-APP©","NOUR","RC13","ACOUSTIQUE-APP© NOUR RC13"]
[null,"9h 40                 11h 10","MOD-SIM-SYST-ELECTRO(TD)","RATNI","A16","MOD-SIM-SYST-ELECTRO(TD) RATNI A16","CONCEPT-FAB-ASSI-PAR-ORD CFAO(TP)","BOUHABILA","C37","CONCEPT-FAB-ASSI-PAR-ORD CFAO(TP) BOUHABILA C37","ACOUSTIQUE-APP","NOUR","RC13","ACOUSTIQUE-APP NOUR RC13"]
[null,"11h20                 12h 50",null,null,null,null,"SYSTEMES EMBARQUES©","TOUATI","B417","SYSTEMES EMBARQUES© TOUATI B417","INSTRUMENTATION©","MERAINANI","RC14","INSTRUMENTATION© MERAINANI RC14"]
[null,"13h 00              14h 30","TECH-COMM-REG(TP)","DAHOU","B210","TECH-COMM-REG(TP) DAHOU B210"]
[null,"14h 40              16h 10","TECH-COMM-REG(TP)","DAHOU","B210","TECH-COMM-REG(TP) DAHOU B210"]
[null,"16h 20              17h 50"]
["Lundi","8h 00                    9h 30","TECH-COMM-AVAN©","MELLAL","RC13","TECH-COMM-AVAN© MELLAL RC13","MOD-DIAG-SYS-MEC©","BENAZOUZ","B312","MOD-DIAG-SYS-MEC© BENAZOUZ B312","TRIBO-LUB-SYST-MEC©","ATMANI","A14","TRIBO-LUB-SYST-MEC© ATMANI A14"]
[null,"9h 40                  11h 10","TECH-COMM-AVAN(TD)","MELLAL","RC13","TECH-COMM-AVAN(TD) MELLAL RC13","MOD-DIAG-SYS-MEC©","BENAZOUZ","B312","MOD-DIAG-SYS-MEC© BENAZOUZ B312","TRIBO-LUB-SYST-MEC©","ATMANI","A14","TRIBO-LUB-SYST-MEC© ATMANI A14"]
[null,"11h20                12h 50"]
[null,"13h 00              14h 30","MICROP-API©","YAHIAOUI","C42","MICROP-API© YAHIAOUI C42","REGULATION-INDUST©","MELLAL","B44","REGULATION-INDUST© MELLAL B44","TECH-DET-DEFAI©","LECHEB+CHELLIL","RC13","TECH-DET-DEFAI© LECHEB+CHELLIL RC13"]
[null,"14h 40              16h 10","MICROP-API(TD)","YAHIAOUI","C42","MICROP-API(TD) YAHIAOUI C42","SYSTEMES EMBARQUES(TD)","TOUATI","B44","SYSTEMES EMBARQUES(TD) TOUATI B44","TECH-DET-DEFAI(TD)","LECHEB+CHELLIL","RC13","TECH-DET-DEFAI(TD) LECHEB+CHELLIL RC13"]
[null,"16h 20              17h 50"]
["Mardi","8h 00                    9h 30","CONCEPT-FAB©","MECHAKRA","ATFM","CONCEPT-FAB© MECHAKRA ATFM",null,null,null,null,"MEC-RUP-ENDO©","LECHEB","A16","MEC-RUP-ENDO© LECHEB A16"]
[null,"9h 40                 11h 10","CONCEPT-FAB(TP)","MECHAKRA","ATFM","CONCEPT-FAB(TP) MECHAKRA ATFM","REGULATION-INDUST(TD)","MELLAL","B44","REGULATION-INDUST(TD) MELLAL B44","MEC-RUP-ENDO(TD)","LECHEB","A16","MEC-RUP-ENDO(TD) LECHEB A16"]
[null,"11h20                12h 50","CONCEPT-FAB(TP)","MECHAKRA","ATFM","CONCEPT-FAB(TP) MECHAKRA ATFM","SYSTEMES EMBARQUES(TP)","BOUNAB","AT11","SYSTEMES EMBARQUES(TP) BOUNAB AT11"]
[null,"13h 00              14h 30",null,null,null,null,null,null,null,null,"TRIBO-LUB-SYST-MEC(TD)","ATMANI","A12","TRIBO-LUB-SYST-MEC(TD) ATMANI A12"]
[null,"14h 40              16h 10","MOD-SIM-SYST-ELECTRO©","RATNI","C42","MOD-SIM-SYST-ELECTRO© RATNI C42",null,null,null,null,"CND©","X","A12","CND© X A12"]
[null,"16h 20              17h 50"]
["Mercredi","8h 00                    9h 30","ORG-GEST-MAINT©","SMAILI-MI","A11","ORG-GEST-MAINT© SMAILI-MI A11","CONCEPT-FAB-ASSI-PAR-ORD CFAO©","BELAIDI-I","C310","CONCEPT-FAB-ASSI-PAR-ORD CFAO© BELAIDI-I C310","AUTOMATISMES©","GAHLOUZ","A14","AUTOMATISMES© GAHLOUZ A14"]
[null,"9h 40                 11h 10","ORG-GEST-MAINT(TD)","SMAILI-MI","A11","ORG-GEST-MAINT(TD) SMAILI-MI A11","TECH-FOND-ELEM-MEC©","GAHLOUZ","B32","TECH-FOND-ELEM-MEC© GAHLOUZ B32","DIAGNO-VIBRAT©","CHELLIL","A14","DIAGNO-VIBRAT© CHELLIL A14"]
[null,"11h20                12h 50",null,null,null,null,"TECH-FOND-ELEM-MEC(TD)","GAHLOUZ","B32","TECH-FOND-ELEM-MEC(TD) GAHLOUZ B32"]
[null,"13h 00              14h 30","MICROP-API(TP);MOD-SIM-SYST-ELECTRO(TP)","DAHOU;RATNI","AT15;AB12","MICROP-API(TP) DAHOU AT15\nMOD-SIM-SYST-ELECTRO(TP) RATNI AB12","MOD-DIAG-SYS-MEC(TD)","BENAZOUZ","B44","MOD-DIAG-SYS-MEC(TD) BENAZOUZ B44","DAIGNO-VIBRAT(TP) ;TECH-DET-DEFAI(TP) ","CHELLIL;X","AT12;A15","DAIGNO-VIBRAT(TP)  CHELLIL AT12\nTECH-DET-DEFAI(TP)  X A15"]
[null,"14h 40              16h 10","MICROP-API(TP);MOD-SIM-SYST-ELECTRO(TP)","DAHOU;RATNI","AT15;AB12","MICROP-API(TP) DAHOU AT15\nMOD-SIM-SYST-ELECTRO(TP) RATNI AB12",null,null,null,null,"DIAGNO-VIBRAT(TP) ;TECH-DET-DEFAI(TP) ","CHELLIL;X","AT12;A15","DIAGNO-VIBRAT(TP)  CHELLIL AT12\nTECH-DET-DEFAI(TP)  X A15"]
[null,"16h 20              17h 50"]
["Jeudi","8h 00                     9h 30","RECH-DOC-CONC-MEM©","ALEM","A22","RECH-DOC-CONC-MEM© ALEM A22","METHOD-RECHERCHE©","ALEM","A22","METHOD-RECHERCHE© ALEM A22","RECH-DOC-CONCEPT-MEM©","ALEM","A22","RECH-DOC-CONCEPT-MEM© ALEM A22"]
[null,"9h 40                  11h 10","TRAIT DE SIGNAL©","DJEDDID","A12","TRAIT DE SIGNAL© DJEDDID A12","FIABILITE©","BENAMMAR","A23","FIABILITE© BENAMMAR A23"]
[null,"11h20                 12h 50","FIABILITE©","BENAMMAR","A11","FIABILITE© BENAMMAR A11","SURETE DE FONCTIONNEL©","ADJERID","B46","SURETE DE FONCTIONNEL© ADJERID B46","AUTOMATISMES(TP) ","GAHLOUZ","AT15","AUTOMATISMES(TP)  GAHLOUZ AT15"]
[null,"13h 00              14h 30",null,null,null,null,"MOD-DIAG-SYST-MEC(TP)","BENAZOUZ","AT11","MOD-DIAG-SYST-MEC(TP) BENAZOUZ AT11"]
[null,"14h 40              16h 10",null,null,null,null,"MOD-DIAG-SYST-MEC(TP)","BENAZOUZ","AT11","MOD-DIAG-SYST-MEC(TP) BENAZOUZ AT11"]
[null,"16h 20              17h 50"]
["Samedi","8h 00                     9h 30"]
[null,"9h 40                  11h 10"]
[null,"11h20                 12h 50"]

{"sheet":"MI MASTER12","index":20,"n_rows":36,"n_cols":18,"rows_kept":36,"cut":false,"hidden":false,"merged":[[0,5,0,9],[0,0,0,1],[21,0,26,0],[27,0,32,0],[33,0,35,0],[3,0,8,0],[9,0,14,0],[15,0,20,0]]}
["Filière:electromécanique",null,null,null,null,"Spécialite:electromeca-mecatron-maint industr",null,null,null,null,null,null,null,{"$f":"NOW()","v":"2017-10-19T13:25:47.140"}]
[null,"Section:",null,null,null,"Master 1ère année"]
["Jour","SEANCES","MEM-17/A","Enseignant","Salle","MEM-17/A","MEM-17/B","Enseignant","Salle","MEM-17/B","MMTR-17","Enseignant","Salle","MMTR-17","MMI-17","Enseignant","Salle","MMI-17"]
["Dimanche","8h 00                     9h 30","MOD-SIM-MACH-ELEC©","RAHMOUNE","AP1","MOD-SIM-MACH-ELEC© RAHMOUNE AP1","MOD-SIM-MACH-ELEC©","RAHMOUNE","AP1","MOD-SIM-MACH-ELEC© RAHMOUNE AP1","ELECT-APP©","BENAZOUZ","A14","ELECT-APP© BENAZOUZ A14","STRATEGIES-MAINT©","SMAILI-MI","B416","STRATEGIES-MAINT© SMAILI-MI B416"]
[null,"9h 40                 11h 10",null,null,null,null,"ELECTRO-PUISSANCE-IND(TP)","DAHOU","AB12","ELECTRO-PUISSANCE-IND(TP) DAHOU AB12","ELECTRO-APP(TD)","BENAZOUZ","A14","ELECTRO-APP(TD) BENAZOUZ A14","STRATEGIES-MAINT(TD)","SMAILI-MI","B416","STRATEGIES-MAINT(TD) SMAILI-MI B416"]
[null,"11h20                 12h 50","MOD-SIM-MACH-ELEC(TD)","RAHMOUNE","A27","MOD-SIM-MACH-ELEC(TD) RAHMOUNE A27",null,null,null,null,"ELEC-APP(TP)","BENAZOUZ","AT11","ELEC-APP(TP) BENAZOUZ AT11"]
[null,"13h 00              14h 30","ELECTRO-PUISSANCE-IND©","TOUATI","AP5","ELECTRO-PUISSANCE-IND© TOUATI AP5","ELECTRO-PUISSANCE-IND©","TOUATI","AP5","ELECTRO-PUISSANCE-IND© TOUATI AP5",null,null,null,null,"THERMODY-APP©","BOUSHAKI","B416","THERMODY-APP© BOUSHAKI B416"]
[null,"14h 40              16h 10","ELECTRO-PUISSANCE-IND(TD)","TOUATI","B418","ELECTRO-PUISSANCE-IND(TD) TOUATI B418",null,null,null,null,"ANGLAIS©","MEGHARI","B310","ANGLAIS© MEGHARI B310","THERMODY-APP(TD)","BOUSHAKI","B416","THERMODY-APP(TD) BOUSHAKI B416"]
[null,"16h 20              17h 50"]
["Lundi","8h 00                    9h 30","MOD-SIMUL-MACH(TP)","LOUNICI-H","A27","MOD-SIMUL-MACH(TP) LOUNICI-H A27","MACH-HYD-PNEMA(TP)","BAHLOUL","RC7","MACH-HYD-PNEMA(TP) BAHLOUL RC7","PRO-FAB-MOCN©","BOUHABILA","C310","PRO-FAB-MOCN© BOUHABILA C310","DYNAM-STRUCT©","CHELLIL","A12","DYNAM-STRUCT© CHELLIL A12"]
[null,"9h 40                  11h 10","MACH-HYD-PNEMA(TP)","BAHLOUL","RC7","MACH-HYD-PNEMA(TP) BAHLOUL RC7",null,null,null,null,"CONCEP-MEC©","GUEDIFA","A16","CONCEP-MEC© GUEDIFA A16","DYNAM-STRUCT©","CHELLIL","A12","DYNAM-STRUCT© CHELLIL A12"]
[null,"11h20                12h 50",null,null,null,null,"ELECTRO-PUISSANCE-IND(TD)","TOUATI","B213","ELECTRO-PUISSANCE-IND(TD) TOUATI B213"]
[null,"13h 00              14h 30","MACH-HYD-PNEMAT©","GUEDIFA","AP1","MACH-HYD-PNEMAT© GUEDIFA AP1","MACH-HYD-PNEMAT©","GUEDIFA","AP1","MACH-HYD-PNEMAT© GUEDIFA AP1","CAPTEURS ACTIONN©","TOUATI","B313","CAPTEURS ACTIONN© TOUATI B313","DYNAM-STRUCT(TP)","CHELLIL","AT12","DYNAM-STRUCT(TP) CHELLIL AT12"]
[null,"14h 40              16h 10","MACH-HYD-PNEMAT(TD)","GUEDIFA","A14","MACH-HYD-PNEMAT(TD) GUEDIFA A14","RES-ELEC(TP)","BERRAZOUANE","B214","RES-ELEC(TP) BERRAZOUANE B214","TRIBOLOGIE©","ATMANI","B313","TRIBOLOGIE© ATMANI B313","DYNAM-STRUCT(TP)","CHELLIL","AT12","DYNAM-STRUCT(TP) CHELLIL AT12"]
[null,"16h 20              17h 50"]
["Mardi","8h 00                    9h 30","MEC-INDUST-TRANS-PUISS©","AGUIB","A24","MEC-INDUST-TRANS-PUISS© AGUIB A24","MEC-INDUST-TRANS-PUISS©","AGUIB","A24","MEC-INDUST-TRANS-PUISS© AGUIB A24","CONCEP-MEC(TP)","GUEDIFA","RC9/B","CONCEP-MEC(TP) GUEDIFA RC9/B","MATERIAUX©","AITSAADA","B416","MATERIAUX© AITSAADA B416"]
[null,"9h 40                 11h 10","RESEAUX-ELECT-INDUST©","BERRAZOUANE","A24","RESEAUX-ELECT-INDUST© BERRAZOUANE A24","RESEAUX-ELECT-INDUST©","BERRAZOUANE","A24","RESEAUX-ELECT-INDUST© BERRAZOUANE A24","CONCEP-MEC(TP)","GUEDIFA","RC9/B","CONCEP-MEC(TP) GUEDIFA RC9/B","MATERIAUX(TD)","AITSAADA","B416","MATERIAUX(TD) AITSAADA B416"]
[null,"11h20                12h 50","MEC-INDUST-TRANS-PUISS(TD)","AGUIB","A24","MEC-INDUST-TRANS-PUISS(TD) AGUIB A24","MACH-HYD-PNEMAT(TD)","GUEDIFA","B213","MACH-HYD-PNEMAT(TD) GUEDIFA B213"]
[null,"13h 00              14h 30",null,null,null,null,null,null,null,null,"CAPTEURS ACTIONN(TD)","TOUATI","A22","CAPTEURS ACTIONN(TD) TOUATI A22","MEC-MILIEU-CONT©","BENDERADJI","B417","MEC-MILIEU-CONT© BENDERADJI B417"]
[null,"14h 40              16h 10","MACH-HYD-PNEV(TP)","BAHLOUL","RC7","MACH-HYD-PNEV(TP) BAHLOUL RC7","MEC-INDUST-TRANS-PUISS(TD)","AGUIB","MER","MEC-INDUST-TRANS-PUISS(TD) AGUIB MER","CAPT-ACTIONN(TP)","TOUATI","AT15","CAPT-ACTIONN(TP) TOUATI AT15","MEC-MILIEU-CONT(TD)","BENDERADJI","B417","MEC-MILIEU-CONT(TD) BENDERADJI B417"]
[null,"16h 20              17h 50"]
["Mercredi","8h 00                    9h 30","ELECTRO-PUISSANCE-IND(TP)","DAHOU","RC9/A","ELECTRO-PUISSANCE-IND(TP) DAHOU RC9/A",null,null,null,null,"TRAIT SIGNAL©","DJEDDID","A16","TRAIT SIGNAL© DJEDDID A16"]
[null,"9h 40                 11h 10",null,null,null,null,null,null,null,null,"ELEC-APP(TP);AUTOMATISMES(TP)","BENAZOUZ;BOUNAB","AT21;AT15","ELEC-APP(TP) BENAZOUZ AT21\nAUTOMATISMES(TP) BOUNAB AT15","TRAIT-SIGNAL©","DJEDDID","B416","TRAIT-SIGNAL© DJEDDID B416"]
[null,"11h20                12h 50","CAPTEUR-INSTRUMENT©","MERAINANI","AP3","CAPTEUR-INSTRUMENT© MERAINANI AP3","CAPTEUR-INSTRUMENT©","MERAINANI","AP3","CAPTEUR-INSTRUMENT© MERAINANI AP3","AUTOMATISMES(TP)","BOUNAB","AT15","AUTOMATISMES(TP) BOUNAB AT15","MEC-TRANSF-MOUV-GAM©","X","B416","MEC-TRANSF-MOUV-GAM© X B416"]
[null,"13h 00              14h 30",null,null,null,null,"MOD-SIMUL-MACH(TP)","LOUNICI-H","A27","MOD-SIMUL-MACH(TP) LOUNICI-H A27"]
[null,"14h 40              16h 10",null,null,null,null,null,null,null,null,"TRAIT-SIGNAL(TD)","DJEDDID","A22","TRAIT-SIGNAL(TD) DJEDDID A22"]
[null,"16h 20              17h 50"]
["Jeudi","8h 00                     9h 30","ANGLAIS©","MEGHARI","A12","ANGLAIS© MEGHARI A12","ANGLAIS©","MEGHARI","A12","ANGLAIS© MEGHARI A12","AUTOMATISMES©","GAHLOUZ","RC14","AUTOMATISMES© GAHLOUZ RC14","TRAIT-SIGN(TP)","DJEDDID","A27","TRAIT-SIGN(TP) DJEDDID A27"]
[null,"9h 40                  11h 10","RES-ELEC(TP)","BERRAZOUANE","A16","RES-ELEC(TP) BERRAZOUANE A16",null,null,null,null,"AUTOMATISMES(TD)","GAHLOUZ","RC14","AUTOMATISMES(TD) GAHLOUZ RC14","RISQUES-IND-TECH©","MELLAL","B312","RISQUES-IND-TECH© MELLAL B312"]
[null,"11h20                 12h 50",null,null,null,null,null,null,null,null,"TRAIT SIGNAL(TP)","DJEDDID","AT21","TRAIT SIGNAL(TP) DJEDDID AT21","ANGLAIS©","MEGHARI","B36","ANGLAIS© MEGHARI B36"]
[null,"13h 00              14h 30","FROID-COND-AIR©","BAHLOUL","AP4","FROID-COND-AIR© BAHLOUL AP4","FROID-COND-AIR©","BAHLOUL","AP4","FROID-COND-AIR© BAHLOUL AP4",null,null,null,null,"METHO-STAT©","ADICHE","B416","METHO-STAT© ADICHE B416"]
[null,"14h 40              16h 10","MEC-IND-TRAS(TP)","AGUIB","MER","MEC-IND-TRAS(TP) AGUIB MER","MOD-SIM-MACH-ELEC(TD)","RAHMOUNE","RC9/A","MOD-SIM-MACH-ELEC(TD) RAHMOUNE RC9/A"]
[null,"16h 20              17h 50"]
["Samedi","8h 00                     9h 30"]
[null,"9h 40                  11h 10"]
[null,"11h20                 12h 50"]

{"sheet":"EN LICENCE10","index":21,"n_rows":36,"n_cols":18,"rows_kept":36,"cut":false,"hidden":false,"merged":[[27,0,32,0],[33,0,35,0],[0,0,0,1],[3,0,8,0],[9,0,14,0],[15,0,20,0],[21,0,26,0]]}
["Departement:",null,null,null,null,null,null,null,null,"Filière:G-mec",null,null,null,"Spécialite:energetique"]
[null,"Section:",null,null,null,"LICENCE 3ème année",null,null,null,{"$f":"NOW()","v":"2017-10-19T13:25:47.140"}]
["Jour","SEANCES","LEN-15/A","Enseignant","Salle","LEN-15/A","LEN-15/B","Enseignant","Salle","LEN-15/B","LEN-15/C","Enseignant","Salle","LEN-15/C","LMF13-B","Enseignant","Salle","LMF13-B"]
["Dimanche","8h 00                     9h 30","REGULATION ASSERV©","DOUDAH","A24","REGULATION ASSERV© DOUDAH A24","REGULATION ASSERV©","DOUDAH","A24","REGULATION ASSERV© DOUDAH A24","REGULATION ASSERV©","DOUDAH","A24","REGULATION ASSERV© DOUDAH A24"]
[null,"9h 40                 11h 10","MEC DES FLUIDES©","MANSOURI-K","A24","MEC DES FLUIDES© MANSOURI-K A24","MEC DES FLUIDES©","MANSOURI-K","A24","MEC DES FLUIDES© MANSOURI-K A24","MEC DES FLUIDES©","MANSOURI-K","A24","MEC DES FLUIDES© MANSOURI-K A24"]
[null,"11h20                 12h 50",null,null,null,null,"CONVERSION D'ENERGIE(TD)","MANSOURI-L","A25","CONVERSION D'ENERGIE(TD) MANSOURI-L A25"]
[null,"13h 00              14h 30","TURBOMACHINES(TD)","BRACHEMI","A25","TURBOMACHINES(TD) BRACHEMI A25",null,null,null,null,"TRANSF DE CHALEUR(TD)","HIMRANE","A23","TRANSF DE CHALEUR(TD) HIMRANE A23","THERMODYNAMIQUE©","XX","XX","THERMODYNAMIQUE© XX XX"]
[null,"14h 40              16h 10","CONVERSION D'ENERGIE(TD)","MANSOURI-L","A25","CONVERSION D'ENERGIE(TD) MANSOURI-L A25","TURBOMACHINES(TD)","BRACHEMI","A21","TURBOMACHINES(TD) BRACHEMI A21",null,null,null,null,"MDF©","XX","XX","MDF© XX XX"]
[null,"16h 20              17h 50"]
["Lundi","8h 00                    9h 30","TRANSF DE CHALEUR(TD)","HIMRANE","B211","TRANSF DE CHALEUR(TD) HIMRANE B211","MESURES ET INSTR(TD)","LADJANI","B37","MESURES ET INSTR(TD) LADJANI B37","TURBOMACHINES(TD)","AKKOUCHE","B39","TURBOMACHINES(TD) AKKOUCHE B39","THERMIQUE©","XX","XX","THERMIQUE© XX XX"]
[null,"9h 40                  11h 10","ELEM DE MACHINES©","AKNOUCHE","AP1","ELEM DE MACHINES© AKNOUCHE AP1","ELEM DE MACHINES©","AKNOUCHE","AP1","ELEM DE MACHINES© AKNOUCHE AP1","ELEM DE MACHINES©","AKNOUCHE","AP1","ELEM DE MACHINES© AKNOUCHE AP1","DESSIN-TECH(TP)","XX","XX","DESSIN-TECH(TP) XX XX"]
[null,"11h20                12h 50","MESURES ET INSTR(TD)","LADJANI","A22","MESURES ET INSTR(TD) LADJANI A22","MEC DES FLUIDES(TD)","GRINE","A15","MEC DES FLUIDES(TD) GRINE A15"]
[null,"13h 00              14h 30",null,null,null,null,null,null,null,null,"MESURES ET INSTR(TD)","LADJANI","A24","MESURES ET INSTR(TD) LADJANI A24","THERMIQUE(TP)","XX","XX","THERMIQUE(TP) XX XX"]
[null,"14h 40              16h 10","MEC DES FLUIDES(TD)","GRINE","A11","MEC DES FLUIDES(TD) GRINE A11","TRANSF DE CHALEUR(TD)","HIMRANE","RC14","TRANSF DE CHALEUR(TD) HIMRANE RC14","CONVERSION D'ENERGIE(TD)","MANSOURI-L","A21","CONVERSION D'ENERGIE(TD) MANSOURI-L A21","THERMIQUE(TP)","XX","XX","THERMIQUE(TP) XX XX"]
[null,"16h 20              17h 50"]
["Mardi","8h 00                    9h 30","[SI]CONVERSION D'ENERGIE(TP)","OUCHIKH","RC5","[SI]CONVERSION D'ENERGIE(TP) OUCHIKH RC5","TRANSF DE CHALEUR(TP)","BAHLOUL","C35","TRANSF DE CHALEUR(TP) BAHLOUL C35","[SP]TURBOMACHINES(TP)","DOUMANE","RC5","[SP]TURBOMACHINES(TP) DOUMANE RC5","THERMIQUE©","XX","XX","THERMIQUE© XX XX"]
[null,"9h 40                 11h 10","[SI]CONVERSION D'ENERGIE(TP)","OUCHIKH","RC5","[SI]CONVERSION D'ENERGIE(TP) OUCHIKH RC5","TRANSF DE CHALEUR(TP)","BAHLOUL","C35","TRANSF DE CHALEUR(TP) BAHLOUL C35","[SP]TURBOMACHINES(TP)","DOUMANE","RC5","[SP]TURBOMACHINES(TP) DOUMANE RC5","THERMIQUE(TD)","XX","XX","THERMIQUE(TD) XX XX"]
[null,"11h20                12h 50","TRANSF DE CHALEUR©","HIMRANE","AP5","TRANSF DE CHALEUR© HIMRANE AP5","TRANSF DE CHALEUR©","HIMRANE","AP5","TRANSF DE CHALEUR© HIMRANE AP5","TRANSF DE CHALEUR©","HIMRANE","AP5","TRANSF DE CHALEUR© HIMRANE AP5"]
[null,"13h 00              14h 30","ENV ET DEVELOPPENT©","BAHLOUL","AP3","ENV ET DEVELOPPENT© BAHLOUL AP3","ENV ET DEVELOPPENT©","BAHLOUL","AP3","ENV ET DEVELOPPENT© BAHLOUL AP3","ENV ET DEVELOPPENT©","BAHLOUL","AP3","ENV ET DEVELOPPENT© BAHLOUL AP3","THERMODYNAMIQUE(TP)","XX","XX","THERMODYNAMIQUE(TP) XX XX"]
[null,"14h 40              16h 10",null,null,null,null,null,null,null,null,"MEC DES FLUIDES(TD)","GRINE","B49","MEC DES FLUIDES(TD) GRINE B49","THERMODYNAMIQUE(TP)","XX","XX","THERMODYNAMIQUE(TP) XX XX"]
[null,"16h 20              17h 50"]
["Mercredi","8h 00                    9h 30","TURBOMACHINES©","AKKOUCHE","A24","TURBOMACHINES© AKKOUCHE A24","TURBOMACHINES©","AKKOUCHE","A24","TURBOMACHINES© AKKOUCHE A24","TURBOMACHINES©","AKKOUCHE","A24","TURBOMACHINES© AKKOUCHE A24","MANAGEMENT©","XX","XX","MANAGEMENT© XX XX"]
[null,"9h 40                 11h 10","MEC DES FLUIDES©","MANSOURI-K","A24","MEC DES FLUIDES© MANSOURI-K A24","MEC DES FLUIDES©","MANSOURI-K","A24","MEC DES FLUIDES© MANSOURI-K A24","MEC DES FLUIDES©","MANSOURI-K","A24","MEC DES FLUIDES© MANSOURI-K A24","THERMODYNAMIQUE©","XX","XX","THERMODYNAMIQUE© XX XX"]
[null,"11h20                12h 50",null,null,null,null,null,null,null,null,null,null,null,null,"THERMODYNAMIQUE(TD)","XX","XX","THERMODYNAMIQUE(TD) XX XX"]
[null,"13h 00              14h 30","[SP]TURBOMACHINES(TP)","DOUMANE","RC5","[SP]TURBOMACHINES(TP) DOUMANE RC5","[SP]TURBOMACHINES(TP)","DOUMANE","RC5","[SP]TURBOMACHINES(TP) DOUMANE RC5","[SP]TURBOMACHINES(TP)","DAHMANI","C35","[SP]TURBOMACHINES(TP) DAHMANI C35"]
[null,"14h 40              16h 10","[SP]TURBOMACHINES(TP)","DOUMANE","RC5","[SP]TURBOMACHINES(TP) DOUMANE RC5","[SP]TURBOMACHINES(TP)","DOUMANE","RC5","[SP]TURBOMACHINES(TP) DOUMANE RC5","[SP]TURBOMACHINES(TP)","DAHMANI","C35","[SP]TURBOMACHINES(TP) DAHMANI C35","RDM(TD)","XX","XX","RDM(TD) XX XX"]
[null,"16h 20              17h 50"]
["Jeudi","8h 00                     9h 30","MESURES ET INSTR©","LADJANI","B417","MESURES ET INSTR© LADJANI B417","MESURES ET INSTR©","LADJANI","B417","MESURES ET INSTR© LADJANI B417","MESURES ET INSTR©","LADJANI","B417","MESURES ET INSTR© LADJANI B417","RDM©","XX","XX","RDM© XX XX"]
[null,"9h 40                  11h 10","TRANSF DE CHALEUR(TP)","DAHMANI","C35","TRANSF DE CHALEUR(TP) DAHMANI C35","[SP]CONVERSION D'ENERGIE(TP)","OUCHIKH","RC5","[SP]CONVERSION D'ENERGIE(TP) OUCHIKH RC5","[SI]CONVERSION D'ENERGIE(TP)","OUCHIKH","RC5","[SI]CONVERSION D'ENERGIE(TP) OUCHIKH RC5","MDF©","XX","XX","MDF© XX XX"]
[null,"11h20                 12h 50","TRANSF DE CHALEUR(TP)","DAHMANI","C35","TRANSF DE CHALEUR(TP) DAHMANI C35","[SP]CONVERSION D'ENERGIE(TP)","OUCHIKH","RC5","[SP]CONVERSION D'ENERGIE(TP) OUCHIKH RC5","[SI]CONVERSION D'ENERGIE(TP)","OUCHIKH","RC5","[SI]CONVERSION D'ENERGIE(TP) OUCHIKH RC5"]
[null,"13h 00              14h 30","CONVERSION D'ENERGIE©","BOUSHAKI","AP1","CONVERSION D'ENERGIE© BOUSHAKI AP1","CONVERSION D'ENERGIE©","BOUSHAKI","AP1","CONVERSION D'ENERGIE© BOUSHAKI AP1","CONVERSION D'ENERGIE©","BOUSHAKI","AP1","CONVERSION D'ENERGIE© BOUSHAKI AP1","MDF(TD)","XX","XX","MDF(TD) XX XX"]
[null,"14h 40              16h 10"]
[null,"16h 20              17h 50"]
["Samedi","8h 00                     9h 30"]
[null,"9h 40                  11h 10",null,null,null,null,null,null,null,null,null,null,null,null,"MANAGEMENT©","XX","XX","MANAGEMENT© XX XX"]
[null,"11h20                 12h 50",null,null,null,null,null,null,null,null,null,null,null,null,"THERMODYNAMIQUE©","XX","XX","THERMODYNAMIQUE© XX XX"]

{"sheet":"EN MASTER11","index":22,"n_rows":36,"n_cols":18,"rows_kept":36,"cut":false,"hidden":false,"merged":[[0,3,0,9],[0,0,0,1],[21,0,26,0],[27,0,32,0],[33,0,35,0],[3,0,8,0],[9,0,14,0],[15,0,20,0]]}
["Departement:Mécanique",null,"G.Mécanique","Spécialité:Energie ren-instal-energ-turb-energetique"]
[null,"Section:",null,null,null,"Master 2ème année",null,null,null,{"$f":"NOW()","v":"2017-10-19T13:25:47.140"}]
["Jour","SEANCES","MER16","Enseignant","Salle","MER16","MIE16","Enseignant","Salle","MIE16","MEN16","Enseignant","Salle","MEN16","xxxx","Enseignant","Salle","xxxx"]
["Dimanche","8h 00                     9h 30","EFFI-ENERG-THER-B©","KHALDI","A23","EFFI-ENERG-THER-B© KHALDI A23","MOTEURS A COMBUSTION©","LOUNICI","A22","MOTEURS A COMBUSTION© LOUNICI A22","MOTEURS A COMBUSTION©","LOUNICI","A22","MOTEURS A COMBUSTION© LOUNICI A22","DEVEL-DURA-GEST-ENV©","xxxx","xxx","DEVEL-DURA-GEST-ENV© xxxx xxx"]
[null,"9h 40                 11h 10","SOL-PHOTO-APPLIC©","DOUMANE","A23","SOL-PHOTO-APPLIC© DOUMANE A23","MEC DE PROPULSION(TD)","BRAHIMI","B414","MEC DE PROPULSION(TD) BRAHIMI B414","OPTIMISATION(TP)","NADIR","A21","OPTIMISATION(TP) NADIR A21","DEVEL-DURA-GEST-ENV©","xxx","xxx","DEVEL-DURA-GEST-ENV© xxx xxx"]
[null,"11h20                 12h 50"]
[null,"13h 00              14h 30","FROID-CLIM-SOLAIRE(TP)","MANSOURI-L","RC5","FROID-CLIM-SOLAIRE(TP) MANSOURI-L RC5","OPTIMISATION(TP)","NADIR","A11","OPTIMISATION(TP) NADIR A11","MOTEURS-COMB-INT-APP(TD)","LOUNICI","A16","MOTEURS-COMB-INT-APP(TD) LOUNICI A16","MACH-FRIGO(TP)(1/2G)","xxx","xxx","MACH-FRIGO(TP)(1/2G) xxx xxx"]
[null,"14h 40              16h 10","ECHANGEURS DE CHALEUR©","HIMRANE","A15","ECHANGEURS DE CHALEUR© HIMRANE A15","RHEOLOGIE(TD)","YAHIAOUI-GM","A16","RHEOLOGIE(TD) YAHIAOUI-GM A16",null,null,null,null,"MACH-FRIGO(TP)(1/2G)","xxx","xxx","MACH-FRIGO(TP)(1/2G) xxx xxx"]
[null,"16h 20              17h 50"]
["Lundi","8h 00                    9h 30","MAIN-SYST-ENERG-REN©","HEDEILI-F","A23","MAIN-SYST-ENERG-REN© HEDEILI-F A23","RHEOLOGIE©","YAHIAOUI-GM","B49","RHEOLOGIE© YAHIAOUI-GM B49","CRYOGENIE©","MANSOURI-L","A21","CRYOGENIE© MANSOURI-L A21"]
[null,"9h 40                  11h 10","F-T-M-D-S©","GUERRACHE","A23","F-T-M-D-S© GUERRACHE A23","AERODYNAMIQUE(TP)","BRACHEMI","RC5","AERODYNAMIQUE(TP) BRACHEMI RC5","CRYOGENIE(TD)","MANSOURI-L","A21","CRYOGENIE(TD) MANSOURI-L A21","MANAG-COND-PROC-INDUST(TD)","xxx","xxx","MANAG-COND-PROC-INDUST(TD) xxx xxx"]
[null,"11h20                12h 50",null,null,null,null,null,null,null,null,null,null,null,null,"MOD-SYS-ENERG(TP)","xxx","xxx","MOD-SYS-ENERG(TP) xxx xxx"]
[null,"13h 00              14h 30","EFFI-ENERG-THER-B(TD)","KHALDI","A25","EFFI-ENERG-THER-B(TD) KHALDI A25","CFD  ET LOGICIELES©","HACHEMI","B213","CFD  ET LOGICIELES© HACHEMI B213","CFD ET LOGICIELES©","HACHEMI","B213","CFD ET LOGICIELES© HACHEMI B213"]
[null,"14h 40              16h 10","MANAG-PROJET-ENERG©","MESKINE","A12","MANAG-PROJET-ENERG© MESKINE A12","MANAG-PROJET-ENERG©","MESKINE","A12","MANAG-PROJET-ENERG© MESKINE A12","MANAG-PROJET-ENERG©","MESKINE","A12","MANAG-PROJET-ENERG© MESKINE A12"]
[null,"16h 20              17h 50"]
["Mardi","8h 00                    9h 30","PILES-COMB-PROD-HYD©","OUALI","A23","PILES-COMB-PROD-HYD© OUALI A23","HERODYNAMIQUE©","BRACHEMI","A15","HERODYNAMIQUE© BRACHEMI A15","ECHANGEUR DE CHALEUR©","HIMRANE","A11","ECHANGEUR DE CHALEUR© HIMRANE A11"]
[null,"9h 40                 11h 10",null,null,null,null,"HERODYNAMIQUE(TD)","BRACHEMI","A15","HERODYNAMIQUE(TD) BRACHEMI A15","ECHANGEUR DE CHALEUR(TD)","AKKOUCHE","A11","ECHANGEUR DE CHALEUR(TD) AKKOUCHE A11","SYSTEMES ENERGETIQUE AVANCEE©","xxx","xxx","SYSTEMES ENERGETIQUE AVANCEE© xxx xxx"]
[null,"11h20                12h 50","PILES-COMPROD-HYD(TD)","OUALI","A16","PILES-COMPROD-HYD(TD) OUALI A16",null,null,null,null,"ECHANGEUR DE CHALEUR(TP)","AKKOUCHE","RC5","ECHANGEUR DE CHALEUR(TP) AKKOUCHE RC5","VAL-DECH-TRAIT-EFFLU©","xxx","xxx","VAL-DECH-TRAIT-EFFLU© xxx xxx"]
[null,"13h 00              14h 30","ETUDE-TECH-ECO©","MOHAMMEDI","C49","ETUDE-TECH-ECO© MOHAMMEDI C49","MOTEURS-COMB-INT-APP©","LOUNICI","A14","MOTEURS-COMB-INT-APP© LOUNICI A14","MOTEURS-COMB-INT-APP©","LOUNICI","A14","MOTEURS-COMB-INT-APP© LOUNICI A14"]
[null,"14h 40              16h 10","ETUDE-TECH-ECO(TP)","MOHAMMEDI","RC9/B","ETUDE-TECH-ECO(TP) MOHAMMEDI RC9/B","MOTEURS-COMB-INT-APP(TD)","LOUNICI","A21","MOTEURS-COMB-INT-APP(TD) LOUNICI A21"]
[null,"16h 20              17h 50"]
["Mercredi","8h 00                    9h 30","SOL-PHOTO-APPLIC(TD)","DOUMANE","A23","SOL-PHOTO-APPLIC(TD) DOUMANE A23","MEC DE PROPULSION©","BRAHIMI","A22","MEC DE PROPULSION© BRAHIMI A22","MEC DE PROPULSION©","BRAHIMI","A22","MEC DE PROPULSION© BRAHIMI A22","SYSTEMES ENERGETIQUE AVANCEE©","xxx","xxx","SYSTEMES ENERGETIQUE AVANCEE© xxx xxx"]
[null,"9h 40                 11h 10",null,null,null,null,null,null,null,null,"MEC-PROPULSION(TD)","BRAHIMI","A23","MEC-PROPULSION(TD) BRAHIMI A23","VAL-DECH-TRAIT-EFFLU©","xxx","xxx","VAL-DECH-TRAIT-EFFLU© xxx xxx"]
[null,"11h20                12h 50","RECHERCHE-DOC-CONCEP-MÉMOIRE©","ALEM","A22","RECHERCHE-DOC-CONCEP-MÉMOIRE© ALEM A22","RECHERCHE-DOC-CONCEP-MÉMOIRE©","ALEM","A22","RECHERCHE-DOC-CONCEP-MÉMOIRE© ALEM A22","RECHERCHE-DOC-CONCEP-MÉMOIRE©","ALEM","A22","RECHERCHE-DOC-CONCEP-MÉMOIRE© ALEM A22","MOD-SYS-ENERG(TD)","xxx","xxx","MOD-SYS-ENERG(TD) xxx xxx"]
[null,"13h 00              14h 30"]
[null,"14h 40              16h 10"]
[null,"16h 20              17h 50"]
["Jeudi","8h 00                     9h 30",null,null,null,null,"FIABILITE©","BENAMMAR","A15","FIABILITE© BENAMMAR A15"]
[null,"9h 40                  11h 10","LOG-SIM-ENERG-REN(TP)","HACHEMI","A27","LOG-SIM-ENERG-REN(TP) HACHEMI A27","OPTIMISATION©","NADIR","A14","OPTIMISATION© NADIR A14","OPTIMISATION©","NADIR","A14","OPTIMISATION© NADIR A14","MOD-SYS-ENERG©","xxx","xxx","MOD-SYS-ENERG© xxx xxx"]
[null,"11h20                 12h 50",null,null,null,null,"[SI]CFD  ET LOGICIELES(TP)","GUEMMADI","A27","[SI]CFD  ET LOGICIELES(TP) GUEMMADI A27","[SP]CFD ET LOGICIELES(TP)","GUEMMADI","A27","[SP]CFD ET LOGICIELES(TP) GUEMMADI A27","ELECTRI-ELECTRO-AUTOMATIQUE©","xxx","xxx","ELECTRI-ELECTRO-AUTOMATIQUE© xxx xxx"]
[null,"13h 00              14h 30","AUDIT ENERGETIQUE©","MESKINE","AP2","AUDIT ENERGETIQUE© MESKINE AP2","AUDIT ENERGETIQUE©","MESKINE","AP2","AUDIT ENERGETIQUE© MESKINE AP2","AUDIT ENERGETIQUE©","MESKINE","AP2","AUDIT ENERGETIQUE© MESKINE AP2","MANAG-COND-PROC-INDUST(TD)","xxx","xxx","MANAG-COND-PROC-INDUST(TD) xxx xxx"]
[null,"14h 40              16h 10","F-T-M-D-S(TD)","GUERRACHE","A25","F-T-M-D-S(TD) GUERRACHE A25"]
[null,"16h 20              17h 50"]
["Samedi","8h 00                     9h 30"]
[null,"9h 40                  11h 10"]
[null,"11h20                 12h 50"]

{"sheet":"EN MASTER12","index":23,"n_rows":36,"n_cols":18,"rows_kept":36,"cut":false,"hidden":false,"merged":[[33,0,35,0],[0,0,0,1],[3,0,8,0],[9,0,14,0],[15,0,20,0],[21,0,26,0],[27,0,32,0]]}
["Filère:G Mécanique",null,null,null,null,"Spécialitè:Enérgie renouvlable en mec",null,null,null,"Instalation énergétique et turbomachine",null,null,null,"énergétique"]
[null,"Section:",null,null,null,"master 1ère année",null,null,null,{"$f":"NOW()","v":"2017-10-19T13:25:47.140"}]
["Jour","SEANCES","MER17","Enseignant","Salle","MER17","MIE17","Enseignant","Salle","MIE17","MEN17","Enseignant","Salle","MEN17","MTC16","Enseignant","Salle","MTC16"]
["Dimanche","8h 00                     9h 30",null,null,null,null,"M-D-F APP©","MANSOURI-K","B44","M-D-F APP© MANSOURI-K B44","M-D-F APP©","MANSOURI-K","B44","M-D-F APP© MANSOURI-K B44","THERMIQUE(TD)","XX","XX","THERMIQUE(TD) XX XX"]
[null,"9h 40                 11h 10","REGLEMENT-NORMES©","KORSO","A13","REGLEMENT-NORMES© KORSO A13","INSTA-ENERG(TP);METH NUM(TP)","OUALI;GUEMMADI","RC5;RC9/A","INSTA-ENERG(TP) OUALI RC5\nMETH NUM(TP) GUEMMADI RC9/A","M-D-F APP(TD)","KHALDI","A25","M-D-F APP(TD) KHALDI A25","METHODES NUMERIQUE©","XX","XX","METHODES NUMERIQUE© XX XX"]
[null,"11h20                 12h 50",null,null,null,null,"INSTA-ENERG(TP);METH NUM(TP)","OUALI;GUEMMADI","RC5;RC9/A","INSTA-ENERG(TP) OUALI RC5\nMETH NUM(TP) GUEMMADI RC9/A","METH NUM(TD)","HACHEMI","A14","METH NUM(TD) HACHEMI A14"]
[null,"13h 00              14h 30","ENERGIE-RENOUV-ENJ-EN©","DOUMANE","A13","ENERGIE-RENOUV-ENJ-EN© DOUMANE A13",null,null,null,null,null,null,null,null,"PROGRAMMATION(TP)","XX","XX","PROGRAMMATION(TP) XX XX"]
[null,"14h 40              16h 10","METHOD NUM©","NADIR","A13","METHOD NUM© NADIR A13","MDF(TD)","KHALDI","A11","MDF(TD) KHALDI A11",null,null,null,null,"PROGRAMMATION(TP)","XX","XX","PROGRAMMATION(TP) XX XX"]
[null,"16h 20              17h 50"]
["Lundi","8h 00                    9h 30","M D F©","DAIMALLAH","A15","M D F© DAIMALLAH A15","INSTALLATION ENERG I©","BRAHIMI","B416","INSTALLATION ENERG I© BRAHIMI B416","MACHINES THERM©","LOUNICI","A13","MACHINES THERM© LOUNICI A13"]
[null,"9h 40                  11h 10",null,null,null,null,"INSTALLATION ENERG I(TD)","BRAHIMI","B416","INSTALLATION ENERG I(TD) BRAHIMI B416","MACHINES THERM(TD)","LOUNICI","A13","MACHINES THERM(TD) LOUNICI A13","M-D-F©","XX","XX","M-D-F© XX XX"]
[null,"11h20                12h 50","THERMODYNAMIQUE APP©","BOUSHAKI","A23","THERMODYNAMIQUE APP© BOUSHAKI A23","M D F©","MANSOURI-K","AP1","M D F© MANSOURI-K AP1","M D F©","MANSOURI-K","AP1","M D F© MANSOURI-K AP1"]
[null,"13h 00              14h 30","NOTIONS D'AERODY-TURB©","BRAHIMI","A23","NOTIONS D'AERODY-TURB© BRAHIMI A23",null,null,null,null,null,null,null,null,"AEROTHERMOCHIMIE-COMBUTION(TD)","XX","XX","AEROTHERMOCHIMIE-COMBUTION(TD) XX XX"]
[null,"14h 40              16h 10",null,null,null,null,"ELECTRONIQUE©","X","A24","ELECTRONIQUE© X A24","ELECTRONIQUE©","X","A24","ELECTRONIQUE© X A24","AEROTHERMOCHIMIE-COMBUTION©","XX","XX","AEROTHERMOCHIMIE-COMBUTION© XX XX"]
[null,"16h 20              17h 50"]
["Mardi","8h 00                    9h 30","M-D-F APP©","DAIMALLAH","A13","M-D-F APP© DAIMALLAH A13","TRANSF-CHALEUR-MASSE©©","GRINE","B418","TRANSF-CHALEUR-MASSE©© GRINE B418","TRANSF-CHALEUR-MASSE©","GRINE","B418","TRANSF-CHALEUR-MASSE© GRINE B418","M-D-F(TD)","XX","XX","M-D-F(TD) XX XX"]
[null,"9h 40                 11h 10","M-D-F (TD)","DAIMALLAH","A13","M-D-F (TD) DAIMALLAH A13","TRANSF-CHALEUR-MASSE(TD)","GRINE","A23","TRANSF-CHALEUR-MASSE(TD) GRINE A23",null,null,null,null,"THERMIQUE©","XX","XX","THERMIQUE© XX XX"]
[null,"11h20                12h 50",null,null,null,null,null,null,null,null,"TRANSF-CHALEUR-MASSE(TD) ","GRINE","A23","TRANSF-CHALEUR-MASSE(TD)  GRINE A23","ANGLAIS E-E-O(TD)","XX","XX","ANGLAIS E-E-O(TD) XX XX"]
[null,"13h 00              14h 30",null,null,null,null,"[SP]INSTRUMENTATION ET MESURES(TP)","LADJANI","C35","[SP]INSTRUMENTATION ET MESURES(TP) LADJANI C35","[SI]INSTRUMENTATION ET MESURES(TP)","LADJANI","C35","[SI]INSTRUMENTATION ET MESURES(TP) LADJANI C35"]
[null,"14h 40              16h 10",null,null,null,null,"[SP]INSTRUMENTATION ET MESURES(TP)","LADJANI","C35","[SP]INSTRUMENTATION ET MESURES(TP) LADJANI C35","[SI]INSTRUMENTATION ET MESURES(TP)","LADJANI","C35","[SI]INSTRUMENTATION ET MESURES(TP) LADJANI C35"]
[null,"16h 20              17h 50"]
["Mercredi","8h 00                    9h 30","GIS  RENOUV METEO©","DAHMANI","A25","GIS  RENOUV METEO© DAHMANI A25","METHO-NUM(TD)","HACHEMI","A15","METHO-NUM(TD) HACHEMI A15","METH NUMERIQUE(TP) ;MACHINES THERMIQUE(TP)","GUEMMADI;OUALI","A26;RC5","METH NUMERIQUE(TP)  GUEMMADI A26\nMACHINES THERMIQUE(TP) OUALI RC5"]
[null,"9h 40                 11h 10","GIS  RENOUV METEO(TD)","DAHMANI","A25","GIS  RENOUV METEO(TD) DAHMANI A25",null,null,null,null,"METH NUMERIQUE(TP) ;MACHINES THERMIQUE(TP)","GUEMMADI;OUALI","A26;RC5","METH NUMERIQUE(TP)  GUEMMADI A26\nMACHINES THERMIQUE(TP) OUALI RC5","THERMODYNAMIQUE©","XX","XX","THERMODYNAMIQUE© XX XX"]
[null,"11h20                12h 50","ANGLAIS©","LAZAZI","A12","ANGLAIS© LAZAZI A12","ANGLAIS©","LAZAZI","A12","ANGLAIS© LAZAZI A12","ANGLAIS©","LAZAZI","A12","ANGLAIS© LAZAZI A12","ANGLAIS E-E-O©","XX","XX","ANGLAIS E-E-O© XX XX"]
[null,"13h 00              14h 30",null,null,null,null,"METHOD NUM©","HACHEMI","A12","METHOD NUM© HACHEMI A12","METHOD NUM©","HACHEMI","A12","METHOD NUM© HACHEMI A12"]
[null,"14h 40              16h 10",null,null,null,null,null,null,null,null,null,null,null,null,"THERMODYNAMIQUE(TD)","XX","XX","THERMODYNAMIQUE(TD) XX XX"]
[null,"16h 20              17h 50"]
["Jeudi","8h 00                     9h 30","METHOD NUM(TD)","NADIR","A25","METHOD NUM(TD) NADIR A25","ELECTROTECHNIQUE©","X","B419","ELECTROTECHNIQUE© X B419","ELECTROTECHNIQUE©","X","B419","ELECTROTECHNIQUE© X B419","METHODES NUMERIQUE(TD)","XX","XX","METHODES NUMERIQUE(TD) XX XX"]
[null,"9h 40                  11h 10","THERMODYNAMIQUE APP(TD)","BOUSHAKI","A25","THERMODYNAMIQUE APP(TD) BOUSHAKI A25","INSTRUMENTATION ET MESURES©","LADJANI","B417","INSTRUMENTATION ET MESURES© LADJANI B417","INSTRUMENTATION ET MESURES©","LADJANI","B417","INSTRUMENTATION ET MESURES© LADJANI B417","ENERGIES RENOUVLABLES©","XX","XX","ENERGIES RENOUVLABLES© XX XX"]
[null,"11h20                 12h 50"]
[null,"13h 00              14h 30","METHOD NUM(TP);GIS  RENOUV METEO(TP)","GUEMMADI;DAHMANI","B210;RC5","METHOD NUM(TP) GUEMMADI B210\nGIS  RENOUV METEO(TP) DAHMANI RC5","[SI]MDF(TP)","KHALDI","RC7","[SI]MDF(TP) KHALDI RC7","[SP]MDF(TP)","KHALDI","RC7","[SP]MDF(TP) KHALDI RC7","ENERGIES RENOUVLABLES(TD)","XX","xx","ENERGIES RENOUVLABLES(TD) XX xx"]
[null,"14h 40              16h 10","METHOD NUM(TP);GIS  RENOUV METEO(TP)","GUEMMADI;DAHMANI","B210;RC5","METHOD NUM(TP) GUEMMADI B210\nGIS  RENOUV METEO(TP) DAHMANI RC5","[SI]MDF(TP)","KHALDI","RC7","[SI]MDF(TP) KHALDI RC7","[SP]MDF(TP)","KHALDI","RC7","[SP]MDF(TP) KHALDI RC7"]
[null,"16h 20              17h 50"]
["Samedi","8h 00                     9h 30"]
[null,"9h 40                  11h 10"]
[null,"11h20                 12h 50"]

{"sheet":"TC S31","index":24,"n_rows":36,"n_cols":18,"rows_kept":36,"cut":false,"hidden":false,"merged":[[27,0,32,0],[33,0,35,0],[0,0,0,1],[1,0,1,1],[3,0,8,0],[9,0,14,0],[15,0,20,0],[21,0,26,0]]}
["Filière:",null,null,null,null,"electronique",null,null,null,"automatique",null,null,null,"electrotechnique",null,null,null,{"$f":"TODAY()","v":"2017-10-19"}]
["Section:",null,null,null,null,"Licence 2ème année",null,null,null,{"$f":"NOW()","v":"2017-10-19T13:25:47.140"}]
["Jour","SEANCES","LELN-16","Enseignant","Salle","LELN-16","LAUTO-16","Enseignant","Salle","LAUTO-16","LELET-16/A","Enseignant","Salle","LELET-16/A","LELET-16/B","Enseignant","Salle","LELET-16/B"]
["Dimanche","8h 00                     9h 30","ANGLAIS©","YAHIAOUI","AP2","ANGLAIS© YAHIAOUI AP2","ANGLAIS©","YAHIAOUI","AP2","ANGLAIS© YAHIAOUI AP2","ANGLAIS©","YAHIAOUI","AP2","ANGLAIS© YAHIAOUI AP2","ANGLAIS©","YAHIAOUI","AP2","ANGLAIS© YAHIAOUI AP2"]
[null,"9h 40                 11h 10","ENERGIE ET ENVIRONNEMENT©","BOUMERIDJA","AP4","ENERGIE ET ENVIRONNEMENT© BOUMERIDJA AP4","ENERGIE ET ENVIRONNEMENT©","BOUMERIDJA","AP4","ENERGIE ET ENVIRONNEMENT© BOUMERIDJA AP4","ENERGIE ET ENVIRONNEMENT©","BOUMERIDJA","AP4","ENERGIE ET ENVIRONNEMENT© BOUMERIDJA AP4","ENERGIE ET ENVIRONNEMENT©","BOUMERIDJA","AP4","ENERGIE ET ENVIRONNEMENT© BOUMERIDJA AP4"]
[null,"11h20                 12h 50","ELECTRONIQUE FOND©","YAKHLEF","AP4","ELECTRONIQUE FOND© YAKHLEF AP4","ELECTRONIQUE FOND©","YAKHLEF","AP4","ELECTRONIQUE FOND© YAKHLEF AP4","ELECTRONIQUE FOND©","YAKHLEF","AP4","ELECTRONIQUE FOND© YAKHLEF AP4","ELECTRONIQUE FOND©","MOUATSI","AP4","ELECTRONIQUE FOND© MOUATSI AP4"]
[null,"13h 00              14h 30",null,null,null,null,"ELECTROTECH(TP);ELECTRNOIQUE(TP)","HAMEL;X","C315;B211","ELECTROTECH(TP) HAMEL C315\nELECTRNOIQUE(TP) X B211",null,null,null,null,"ELECTRONIQUE(TD)","MOUATSI","C48","ELECTRONIQUE(TD) MOUATSI C48"]
[null,"14h 40              16h 10","ELECTRONIQUE(TD)","MOUATSI","C48","ELECTRONIQUE(TD) MOUATSI C48",null,null,null,null,"PROBAT-STAT(TD)","X","C45","PROBAT-STAT(TD) X C45"]
[null,"16h 20              17h 50"]
["Lundi","8h 00                    9h 30",null,null,null,null,null,null,null,null,null,null,null,null,"ELECTROTECH-FOND(TD)","MZIOU","C42","ELECTROTECH-FOND(TD) MZIOU C42"]
[null,"9h 40                  11h 10","ELECTROTECH(TP);ELECTRNOIQUE(TP)","HAMEL;MOUATSI","C315;B211","ELECTROTECH(TP) HAMEL C315\nELECTRNOIQUE(TP) MOUATSI B211",null,null,null,null,"ELECTROTECH-FOND(TD)","MZIOU","B37","ELECTROTECH-FOND(TD) MZIOU B37"]
[null,"11h20                12h 50",null,null,null,null,"ELECTRONIQUE(TD)","MOUATSI","C32","ELECTRONIQUE(TD) MOUATSI C32",null,null,null,null,"ONDES ET VIBR(TD)","GOUGAM","C45","ONDES ET VIBR(TD) GOUGAM C45"]
[null,"13h 00              14h 30","PROBAT ET STAT©","KABRI","AP6","PROBAT ET STAT© KABRI AP6","PROBAT ET STAT©","KABRI","AP6","PROBAT ET STAT© KABRI AP6","PROBAT ET STAT©","KABRI","AP6","PROBAT ET STAT© KABRI AP6","PROBAT ET STAT©","KABRI","AP6","PROBAT ET STAT© KABRI AP6"]
[null,"14h 40              16h 10","ETAT DE  L'ART  DE G-ELECT©","SAADSOUD","AP6","ETAT DE  L'ART  DE G-ELECT© SAADSOUD AP6","ETAT DE  L'ART  DE G-ELECT©","SAADSOUD","AP6","ETAT DE  L'ART  DE G-ELECT© SAADSOUD AP6","ETAT DE  L'ART  DE G-ELECT©","SAADSOUD","AP6","ETAT DE  L'ART  DE G-ELECT© SAADSOUD AP6","ETAT DE  L'ART  DE G-ELECT©","SAADSOUD","AP6","ETAT DE  L'ART  DE G-ELECT© SAADSOUD AP6"]
[null,"16h 20              17h 50"]
["Mardi","8h 00                    9h 30","INFORMATIQUE(TP)","BELHABCHIA","A26","INFORMATIQUE(TP) BELHABCHIA A26",null,null,null,null,"ELECTRONIQUE(TD)","MOUATSI","B32","ELECTRONIQUE(TD) MOUATSI B32"]
[null,"9h 40                 11h 10",null,null,null,null,null,null,null,null,"OND ET VIB(TP)","X","B32","OND ET VIB(TP) X B32","ONDES ET VIBR(TP)","X","B49","ONDES ET VIBR(TP) X B49"]
[null,"11h20                12h 50","MATHEMATIQUE(TD)","X","B39","MATHEMATIQUE(TD) X B39"]
[null,"13h 00              14h 30","MATHEMATIQUE©","AZZAL","AP4","MATHEMATIQUE© AZZAL AP4","MATHEMATIQUE©","AZZAL","AP4","MATHEMATIQUE© AZZAL AP4","MATHEMATIQUE©","AZZAL","AP4","MATHEMATIQUE© AZZAL AP4","MATHEMATIQUE©","AZZAL","AP4","MATHEMATIQUE© AZZAL AP4"]
[null,"14h 40              16h 10",null,null,null,null,"MATHEMATIQUE(TD)","X","B31","MATHEMATIQUE(TD) X B31","ONDES ET VIBR(TD)","GOUGAM","C49","ONDES ET VIBR(TD) GOUGAM C49"]
[null,"16h 20              17h 50"]
["Mercredi","8h 00                    9h 30","ELEC-TECH-FOND©","MZIOU","AP3","ELEC-TECH-FOND© MZIOU AP3","ELEC-TECH-FOND©","MZIOU","AP3","ELEC-TECH-FOND© MZIOU AP3","ELEC-TECH-FOND©","MZIOU","AP3","ELEC-TECH-FOND© MZIOU AP3","ELEC-TECH-FOND©","MZIOU","AP3","ELEC-TECH-FOND© MZIOU AP3"]
[null,"9h 40                 11h 10","ONDES ET VIBR©","RAHMOUNE","AP3","ONDES ET VIBR© RAHMOUNE AP3","ONDES ET VIBR©","RAHMOUNE","AP3","ONDES ET VIBR© RAHMOUNE AP3","ONDES ET VIBR©","RAHMOUNE","AP3","ONDES ET VIBR© RAHMOUNE AP3","ONDES ET VIBR©","RAHMOUNE","AP3","ONDES ET VIBR© RAHMOUNE AP3"]
[null,"11h20                12h 50","ELECTROTECH-FOND(TD)","LARABI","C42","ELECTROTECH-FOND(TD) LARABI C42","ONDES ET VIBR(TD)","LOUNICI-H","C45","ONDES ET VIBR(TD) LOUNICI-H C45"]
[null,"13h 00              14h 30",null,null,null,null,null,null,null,null,"INFORMATIQUE(TP)","BELHABCHIA","RC9/A","INFORMATIQUE(TP) BELHABCHIA RC9/A","PROBAT-STAT(TD)","X","B32","PROBAT-STAT(TD) X B32"]
[null,"14h 40              16h 10","ONDES ET VIBR(TD)","LOUNICI-H","B311","ONDES ET VIBR(TD) LOUNICI-H B311","ELECTROTECH-FOND(TD)","LARABI","B31","ELECTROTECH-FOND(TD) LARABI B31","MATHEMATIQUE(TD)","X","A14","MATHEMATIQUE(TD) X A14","INFORMATIQUE(TP)","BELHABCHIA","A27","INFORMATIQUE(TP) BELHABCHIA A27"]
[null,"16h 20              17h 50"]
["Jeudi","8h 00                     9h 30","MATHEMATIQUE©","AZZAL","AP4","MATHEMATIQUE© AZZAL AP4","MATHEMATIQUE©","AZZAL","AP4","MATHEMATIQUE© AZZAL AP4","MATHEMATIQUE©","AZZAL","AP4","MATHEMATIQUE© AZZAL AP4","MATHEMATIQUE©","AZZAL","AP4","MATHEMATIQUE© AZZAL AP4"]
[null,"9h 40                  11h 10","PROBAT-STAT(TD)","X","B38","PROBAT-STAT(TD) X B38","OND ET VIB(TP)","X","X","OND ET VIB(TP) X X","ELECTROTECH(TP);ELECTRNOIQUE(TP)","HAMEL;X","C315;B211","ELECTROTECH(TP) HAMEL C315\nELECTRNOIQUE(TP) X B211","MATHEMATIQUE(TD)","X","B419","MATHEMATIQUE(TD) X B419"]
[null,"11h20                 12h 50","OND ET VIB(TP)","X","B38","OND ET VIB(TP) X B38","PROBAT-STAT(TD)","X","B31","PROBAT-STAT(TD) X B31"]
[null,"13h 00              14h 30",null,null,null,null,"INFORMATIQUE(TP)","BELHABCHIA","RC9/B","INFORMATIQUE(TP) BELHABCHIA RC9/B",null,null,null,null,"ELECTROTECH(TP);ELECTRNOIQUE(TP)","HAMEL;X","C315;B211","ELECTROTECH(TP) HAMEL C315\nELECTRNOIQUE(TP) X B211"]
[null,"14h 40              16h 10"]
[null,"16h 20              17h 50"]
["Samedi","8h 00                     9h 30"]
[null,"9h 40                  11h 10"]
[null,"11h20                 12h 50"]

{"sheet":"TC S33","index":25,"n_rows":36,"n_cols":18,"rows_kept":36,"cut":false,"hidden":false,"merged":[[0,13,0,18],[27,0,32,0],[33,0,35,0],[0,0,0,1],[1,0,1,1],[3,0,8,0],[9,0,14,0],[15,0,20,0],[21,0,26,0]]}
["Departement:",null,"Electrique",null,null,"Filière:Telecomunication",null,null,null,"G-Biomédical"]
["Section:",null,null,null,null,"Licence 2ème année",null,null,null,null,null,null,null,{"$f":"NOW()","v":"2017-10-19T13:25:47.140"}]
["Jour","SEANCES","LTEL-16/A","Enseignant","Salle","LTEL-16/A","LTEL-16/B","Enseignant","Salle","LTEL-16/B","LBIO-16/C","Enseignant","Salle","LBIO-16","ST14","Enseignant","Salle","ST14"]
["Dimanche","8h 00                     9h 30","ANGLAIS©","YAHIAOUI","AP2","ANGLAIS© YAHIAOUI AP2","ANGLAIS©","YAHIAOUI","AP2","ANGLAIS© YAHIAOUI AP2","ANGLAIS©","YAHIAOUI","AP2","ANGLAIS© YAHIAOUI AP2"]
[null,"9h 40                 11h 10","ENERGIE ET ENVIRONNEMENT©","BOUMERIDJA","AP4","ENERGIE ET ENVIRONNEMENT© BOUMERIDJA AP4","ENERGIE ET ENVIRONNEMENT©","BOUMERIDJA","AP4","ENERGIE ET ENVIRONNEMENT© BOUMERIDJA AP4","ENERGIE ET ENVIRONNEMENT©","BOUMERIDJA","AP4","ENERGIE ET ENVIRONNEMENT© BOUMERIDJA AP4"]
[null,"11h20                 12h 50","ELECTRONIQUE FOND©","YAKHLEF","AP4","ELECTRONIQUE FOND© YAKHLEF AP4","ELECTRONIQUE FOND©","YAKHLEF","AP4","ELECTRONIQUE FOND© YAKHLEF AP4","ELECTRONIQUE FOND©","YAKHLEF","AP4","ELECTRONIQUE FOND© YAKHLEF AP4"]
[null,"13h 00              14h 30","ELECTRONIQUE(TD)","YAKHLEF","A22","ELECTRONIQUE(TD) YAKHLEF A22","OND ET VIB(TP)","OND ET VIB(TP)","X","OND ET VIB(TP) OND ET VIB(TP) X"]
[null,"14h 40              16h 10","OND ET VIB(TP)","X","A22","OND ET VIB(TP) X A22",null,null,null,null,"ELECTRONIQUE(TD)","YAKHLEF","A12","ELECTRONIQUE(TD) YAKHLEF A12"]
[null,"16h 20              17h 50"]
["Lundi","8h 00                    9h 30",null,null,null,null,null,null,null,null,"ELECTROTECH(TP);ELECTRNOIQUE(TP)","X;X","C315;B211","ELECTROTECH(TP) X C315\nELECTRNOIQUE(TP) X B211"]
[null,"9h 40                  11h 10"]
[null,"11h20                12h 50","PROBAT-STAT(TD)","X","B38","PROBAT-STAT(TD) X B38","ELECTROTECH-FOND(TD)","LARABI","B418","ELECTROTECH-FOND(TD) LARABI B418"]
[null,"13h 00              14h 30","PROBAT ET STAT©","X","AP6","PROBAT ET STAT© X AP6","PROBAT ET STAT©","X","AP6","PROBAT ET STAT© X AP6","PROBAT ET STAT©","X","AP6","PROBAT ET STAT© X AP6"]
[null,"14h 40              16h 10","ETAT DE  L'ART  DE G-ELECT©","SAADSOUD","AP6","ETAT DE  L'ART  DE G-ELECT© SAADSOUD AP6","ETAT DE  L'ART  DE G-ELECT©","SAADSOUD","AP6","ETAT DE  L'ART  DE G-ELECT© SAADSOUD AP6","ETAT DE  L'ART  DE G-ELECT©","SAADSOUD","AP6","ETAT DE  L'ART  DE G-ELECT© SAADSOUD AP6"]
[null,"16h 20              17h 50"]
["Mardi","8h 00                    9h 30",null,null,null,null,"MATHEMATIQUE(TD)","X","C48","MATHEMATIQUE(TD) X C48","OND ET VIB(TP)","X","B44","OND ET VIB(TP) X B44"]
[null,"9h 40                 11h 10","ELECTROTECH(TP);ELECTRNOIQUE(TP)","X;X","C315;B211","ELECTROTECH(TP) X C315\nELECTRNOIQUE(TP) X B211","PROBAT-STAT(TD)","X","C48","PROBAT-STAT(TD) X C48"]
[null,"11h20                12h 50",null,null,null,null,"INFORMATIQUE(TP)","BELHABCHIA","A27","INFORMATIQUE(TP) BELHABCHIA A27","ELECTROTECH-FOND(TD)","LARABI","B416","ELECTROTECH-FOND(TD) LARABI B416"]
[null,"13h 00              14h 30","MATHEMATIQUE©","AZZAL","AP4","MATHEMATIQUE© AZZAL AP4","MATHEMATIQUE©","AZZAL","AP4","MATHEMATIQUE© AZZAL AP4","MATHEMATIQUE©","AZZAL","AP4","MATHEMATIQUE© AZZAL AP4"]
[null,"14h 40              16h 10","ELECTROTECH-FOND(TD)","LARABI","B313","ELECTROTECH-FOND(TD) LARABI B313"]
[null,"16h 20              17h 50"]
["Mercredi","8h 00                    9h 30","ELEC-TECH-FOND©","MZIOU","AP3","ELEC-TECH-FOND© MZIOU AP3","ELEC-TECH-FOND©","MZIOU","AP3","ELEC-TECH-FOND© MZIOU AP3","ELEC-TECH-FOND©","MZIOU","AP3","ELEC-TECH-FOND© MZIOU AP3"]
[null,"9h 40                 11h 10","ONDES ET VIBR©","RAHMOUNE","AP3","ONDES ET VIBR© RAHMOUNE AP3","ONDES ET VIBR©","RAHMOUNE","AP3","ONDES ET VIBR© RAHMOUNE AP3","ONDES ET VIBR©","RAHMOUNE","AP3","ONDES ET VIBR© RAHMOUNE AP3"]
[null,"11h20                12h 50"]
[null,"13h 00              14h 30","ELECTRONIQUE(TD)","YAKHLEF","B313","ELECTRONIQUE(TD) YAKHLEF B313","ELECTROTECH(TP);ELECTRNOIQUE(TP)","X;X","C315;B211","ELECTROTECH(TP) X C315\nELECTRNOIQUE(TP) X B211","ONDES ET VIBR(TD)","CHEBBOUBA","B41","ONDES ET VIBR(TD) CHEBBOUBA B41"]
[null,"14h 40              16h 10","ONDES ET VIBR(TD)","CHEBBOUBA","B313","ONDES ET VIBR(TD) CHEBBOUBA B313",null,null,null,null,"ELECTRONIQUE(TD)","YAKHLEF","B41","ELECTRONIQUE(TD) YAKHLEF B41"]
[null,"16h 20              17h 50"]
["Jeudi","8h 00                     9h 30","MATHEMATIQUE©","AZZAL","AP4","MATHEMATIQUE© AZZAL AP4","MATHEMATIQUE©","AZZAL","AP4","MATHEMATIQUE© AZZAL AP4","MATHEMATIQUE©","AZZAL","AP4","MATHEMATIQUE© AZZAL AP4"]
[null,"9h 40                  11h 10","INFORMATIQUE(TP)","BELHABCHIA","B210","INFORMATIQUE(TP) BELHABCHIA B210","ELECTRONIQUE(TD)","YAKHLEF","RC13","ELECTRONIQUE(TD) YAKHLEF RC13"]
[null,"11h20                 12h 50","MATHEMATIQUE(TD)","X","B418","MATHEMATIQUE(TD) X B418","ONDES ET VIBR(TD)","CHEBBOUBA","B416","ONDES ET VIBR(TD) CHEBBOUBA B416","PROBAT-STAT(TD)","X","RC14","PROBAT-STAT(TD) X RC14"]
[null,"13h 00              14h 30",null,null,null,null,null,null,null,null,"MATHEMATIQUE(TD)","X","RC14","MATHEMATIQUE(TD) X RC14"]
[null,"14h 40              16h 10",null,null,null,null,null,null,null,null,"INFORMATIQUE(TP)","BELHABCHIA","RC9/B","INFORMATIQUE(TP) BELHABCHIA RC9/B"]
[null,"16h 20              17h 50"]
["Samedi","8h 00                     9h 30"]
[null,"9h 40                  11h 10"]
[null,"11h20                 12h 50"]

{"sheet":"TC S32","index":26,"n_rows":36,"n_cols":18,"rows_kept":36,"cut":false,"hidden":false,"merged":[[27,0,32,0],[33,0,35,0],[0,0,0,1],[1,0,1,1],[3,0,8,0],[9,0,14,0],[15,0,20,0],[21,0,26,0]]}
["Filière:Génie civil"]
["Section:",null,null,null,null,"Licence 2ème année",null,null,null,null,null,null,null,{"$f":"NOW()","v":"2017-10-19T13:25:47.140"}]
["Jour","SEANCES","LGC-16/A","Enseignant","Salle","LGC-16/A","LGC-16/B","Enseignant","Salle","LGC-16/B","LGC-16/C","Enseignant","Salle","LGC-16/C","LGC-16/D","Enseignant","Salle","LGC-16/D"]
["Dimanche","8h 00                     9h 30","MEC DES FLUIDES©","GHERNAOUAT","AP5","MEC DES FLUIDES© GHERNAOUAT AP5","MEC DES FLUIDES©","GHERNAOUAT","AP5","MEC DES FLUIDES© GHERNAOUAT AP5","MEC DES FLUIDES©","GHERNAOUAT","AP5","MEC DES FLUIDES© GHERNAOUAT AP5","MEC DES FLUIDES©","GHERNAOUAT","AP5","MEC DES FLUIDES© GHERNAOUAT AP5"]
[null,"9h 40                 11h 10","M-D-F(TD)","GHERNAOUAT","C43","M-D-F(TD) GHERNAOUAT C43","PROBAT STAT(TD)","KABRI","B415","PROBAT STAT(TD) KABRI B415"]
[null,"11h20                 12h 50","PROBAT STAT©","KABRI","AP5","PROBAT STAT© KABRI AP5","PROBAT STAT©","KABRI","AP5","PROBAT STAT© KABRI AP5","PROBAT STAT©","KABRI","AP5","PROBAT STAT© KABRI AP5","PROBAT STAT©","KABRI","AP5","PROBAT STAT© KABRI AP5"]
[null,"13h 00              14h 30",null,null,null,null,null,null,null,null,null,null,null,null,"M-D-F(TD)","GHERNAOUAT","C45","M-D-F(TD) GHERNAOUAT C45"]
[null,"14h 40              16h 10","METROLOGIE©","TOURAB","AP5","METROLOGIE© TOURAB AP5","METROLOGIE©","TOURAB","AP5","METROLOGIE© TOURAB AP5","METROLOGIE©","TOURAB","AP5","METROLOGIE© TOURAB AP5","METROLOGIE©","TOURAB","AP5","METROLOGIE© TOURAB AP5"]
[null,"16h 20              17h 50"]
["Lundi","8h 00                    9h 30","DESSIN(TP)","DERBAH","AT23","DESSIN(TP) DERBAH AT23","M-D-F(TD)","GHERNAOUAT","B414","M-D-F(TD) GHERNAOUAT B414","INFORMATIQUE(TP)","CHELAOUAOU","RC9/A","INFORMATIQUE(TP) CHELAOUAOU RC9/A"]
[null,"9h 40                  11h 10","DESSIN(TP)","DERBAH","AT23","DESSIN(TP) DERBAH AT23","INFORMATIQUE(TP)","CHELAOUAOU","RC9/A","INFORMATIQUE(TP) CHELAOUAOU RC9/A","M-D-F(TD)","GHERNAOUAT","B419","M-D-F(TD) GHERNAOUAT B419"]
[null,"11h20                12h 50","INFORMATIQUE(TP)","CHELAOUAOU","RC9/A","INFORMATIQUE(TP) CHELAOUAOU RC9/A"]
[null,"13h 00              14h 30",null,null,null,null,"DESSIN(TP)","DERBAH","AT23","DESSIN(TP) DERBAH AT23","ANGLAIS©","X","B310","ANGLAIS© X B310"]
[null,"14h 40              16h 10","ANGLAIS©","X","B312","ANGLAIS© X B312","DESSIN(TP)","DERBAH","AT23","DESSIN(TP) DERBAH AT23"]
[null,"16h 20              17h 50"]
["Mardi","8h 00                    9h 30","TECH DE BASE©","DILMI","AP2","TECH DE BASE© DILMI AP2","TECH DE BASE©","DILMI","AP2","TECH DE BASE© DILMI AP2","TECH DE BASE©","DILMI","AP2","TECH DE BASE© DILMI AP2","TECH DE BASE©","DILMI","AP2","TECH DE BASE© DILMI AP2"]
[null,"9h 40                 11h 10",null,null,null,null,null,null,null,null,"MATHEMATIQUE(TD)","MESSAOUDI","B415","MATHEMATIQUE(TD) MESSAOUDI B415","MEC RATIONNEL(TD)","X","X","MEC RATIONNEL(TD) X X"]
[null,"11h20                12h 50","MATHEMATIQUE(TD)","MESSAOUDI","B48","MATHEMATIQUE(TD) MESSAOUDI B48",null,null,null,null,"MEC RATIONNEL(TD)","X","B414","MEC RATIONNEL(TD) X B414","INFORMATIQUE(TP)","CHELAOUAOU","RC9/A","INFORMATIQUE(TP) CHELAOUAOU RC9/A"]
[null,"13h 00              14h 30","MEC RATIONNEL©","X","AP5","MEC RATIONNEL© X AP5","MEC RATIONNEL©","X","AP5","MEC RATIONNEL© X AP5","MEC RATIONNEL©","X","AP5","MEC RATIONNEL© X AP5","MEC RATIONNEL©","X","AP5","MEC RATIONNEL© X AP5"]
[null,"14h 40              16h 10",null,null,null,null,"ANGLAIS©","X","B39","ANGLAIS© X B39"]
[null,"16h 20              17h 50"]
["Mercredi","8h 00                    9h 30","MATHEMATIQUE©","MESSAOUDI","AP5","MATHEMATIQUE© MESSAOUDI AP5","MATHEMATIQUE©","MESSAOUDI","AP5","MATHEMATIQUE© MESSAOUDI AP5","MATHEMATIQUE©","MESSAOUDI","AP5","MATHEMATIQUE© MESSAOUDI AP5","MATHEMATIQUE©","MESSAOUDI","AP5","MATHEMATIQUE© MESSAOUDI AP5"]
[null,"9h 40                 11h 10",null,null,null,null,"MATHEMATIQUE(TD)","MESSAOUDI","B414","MATHEMATIQUE(TD) MESSAOUDI B414","DESSIN(TP)","DERBAH","AT24","DESSIN(TP) DERBAH AT24","ONDES ET VIBR(TD)","FEKHAR","C32","ONDES ET VIBR(TD) FEKHAR C32"]
[null,"11h20                12h 50","ONDES ET VIBR(TD)","FEKHAR","B414","ONDES ET VIBR(TD) FEKHAR B414",null,null,null,null,"DESSIN(TP)","DERBAH","AT24","DESSIN(TP) DERBAH AT24","ANGLAIS©","X","C32","ANGLAIS© X C32"]
[null,"13h 00              14h 30","VIB OND(TP)","FEKHAR","B414","VIB OND(TP) FEKHAR B414",null,null,null,null,null,null,null,null,"ONDES ET VIBR(TP)","FEKHAR","B37","ONDES ET VIBR(TP) FEKHAR B37"]
[null,"14h 40              16h 10"]
[null,"16h 20              17h 50"]
["Jeudi","8h 00                     9h 30","ONDES ET VIBR©","RAHMOUNE","AP5","ONDES ET VIBR© RAHMOUNE AP5","ONDES ET VIBR©","RAHMOUNE","AP5","ONDES ET VIBR© RAHMOUNE AP5","ONDES ET VIBR©","RAHMOUNE","AP5","ONDES ET VIBR© RAHMOUNE AP5","ONDES ET VIBR©","RAHMOUNE","AP5","ONDES ET VIBR© RAHMOUNE AP5"]
[null,"9h 40                  11h 10","PROBAT STAT(TD)","KABRI","B414","PROBAT STAT(TD) KABRI B414","MEC RATIONNEL(TD)","X","C49","MEC RATIONNEL(TD) X C49","ONDES ET VIBR(TD)","FEKHAR","B41","ONDES ET VIBR(TD) FEKHAR B41","DESSIN(TP)","DERBAH","AT23","DESSIN(TP) DERBAH AT23"]
[null,"11h20                 12h 50","MEC RATIONNEL(TD)","X","B414","MEC RATIONNEL(TD) X B414","ONDES ET VIBR(TD)","FEKHAR","C49","ONDES ET VIBR(TD) FEKHAR C49","PROBAT STAT(TD)","KABRI","B41","PROBAT STAT(TD) KABRI B41","DESSIN(TP)","DERBAH","AT23","DESSIN(TP) DERBAH AT23"]
[null,"13h 00              14h 30",null,null,null,null,"VIB OND(TP)","FEKHAR","C43","VIB OND(TP) FEKHAR C43",null,null,null,null,"PROBAT STAT(TD)","X","A11","PROBAT STAT(TD) X A11"]
[null,"14h 40              16h 10",null,null,null,null,null,null,null,null,"VIB OND(TP)","FEKHAR","C43","VIB OND(TP) FEKHAR C43"]
[null,"16h 20              17h 50"]
["Samedi","8h 00                     9h 30",null,null,null,null,null,null,null,null,null,null,null,null,"MATHEMATIQUE(TD)","MESSAOUDI","B39","MATHEMATIQUE(TD) MESSAOUDI B39"]
[null,"9h 40                  11h 10","MATHEMATIQUE©","MESSAOUDI","AP4","MATHEMATIQUE© MESSAOUDI AP4","MATHEMATIQUE©","MESSAOUDI","AP4","MATHEMATIQUE© MESSAOUDI AP4","MATHEMATIQUE©","MESSAOUDI","AP4","MATHEMATIQUE© MESSAOUDI AP4","MATHEMATIQUE©","MESSAOUDI","AP4","MATHEMATIQUE© MESSAOUDI AP4"]
[null,"11h20                 12h 50"]

{"sheet":"TC S34","index":27,"n_rows":36,"n_cols":18,"rows_kept":36,"cut":false,"hidden":false,"merged":[[27,0,32,0],[33,0,35,0],[0,0,0,1],[1,0,1,1],[3,0,8,0],[9,0,14,0],[15,0,20,0],[21,0,26,0]]}
["Filière:",null,null,null,null,"GDP",null,null,null,"Filière:G DES PROCEDES"]
["Section:",null,null,null,null,"Licence 2ème année",null,null,null,null,null,null,null,{"$f":"NOW()","v":"2017-10-19T13:25:47.140"}]
["Jour","SEANCES","LGP-16/A","Enseignant","Salle","LGP-16/A","LGP-16/B","Enseignant","Salle","LGP-16/B","LGP-16/C","Enseignant","Salle","LGP-16/C","LHSI-16","Enseignant","Salle","LHSI-16"]
["Dimanche","8h 00                     9h 30","MEC DES FLUIDES©","SAHMOUNE","AP6","MEC DES FLUIDES© SAHMOUNE AP6","MEC DES FLUIDES©","SAHMOUNE","AP6","MEC DES FLUIDES© SAHMOUNE AP6","MEC DES FLUIDES©","SAHMOUNE","AP6","MEC DES FLUIDES© SAHMOUNE AP6","MEC DES FLUIDES©","SAHMOUNE","AP6","MEC DES FLUIDES© SAHMOUNE AP6"]
[null,"9h 40                 11h 10","CHIMIE MINERALE©","BENBOUABDALLAH","AP6","CHIMIE MINERALE© BENBOUABDALLAH AP6","CHIMIE MINERALE©","BENBOUABDALLAH","AP6","CHIMIE MINERALE© BENBOUABDALLAH AP6","CHIMIE MINERALE©","BENBOUABDALLAH","AP6","CHIMIE MINERALE© BENBOUABDALLAH AP6","CHIMIE MINERALE©","BENBOUABDALLAH","AP6","CHIMIE MINERALE© BENBOUABDALLAH AP6"]
[null,"11h20                 12h 50",null,null,null,null,"CHIMIE MINERALE(TD)","BENBOUABDALLAH","C45","CHIMIE MINERALE(TD) BENBOUABDALLAH C45"]
[null,"13h 00              14h 30"]
[null,"14h 40              16h 10"]
[null,"16h 20              17h 50"]
["Lundi","8h 00                    9h 30","ONDES ET VIBR©","RAHMOUNE","AP6","ONDES ET VIBR© RAHMOUNE AP6","ONDES ET VIBR©","RAHMOUNE","AP6","ONDES ET VIBR© RAHMOUNE AP6","ONDES ET VIBR©","RAHMOUNE","AP6","ONDES ET VIBR© RAHMOUNE AP6","ONDES ET VIBR©","RAHMOUNE","AP6","ONDES ET VIBR© RAHMOUNE AP6"]
[null,"9h 40                  11h 10","CHIMIE MINERALE(TD)","BENBOUABDALLAH","C32","CHIMIE MINERALE(TD) BENBOUABDALLAH C32","DESSIN(TP)","HALFAOUI","AT22","DESSIN(TP) HALFAOUI AT22","ONDES ET VIBR(TD)","YAHIAOUI-L","C49","ONDES ET VIBR(TD) YAHIAOUI-L C49","M-D-F(TD)","AMITOUCHE","C45","M-D-F(TD) AMITOUCHE C45"]
[null,"11h20                12h 50",null,null,null,null,"DESSIN(TP)","HALFAOUI","AT22","DESSIN(TP) HALFAOUI AT22","CHIMIE MINERALE(TD)","BENBOUABDALLAH","C49","CHIMIE MINERALE(TD) BENBOUABDALLAH C49","INFORMATIQUE(TP)","HARFOUCHE","A26","INFORMATIQUE(TP) HARFOUCHE A26"]
[null,"13h 00              14h 30","VIB OND(TP)","YAHIAOUI-L","B47","VIB OND(TP) YAHIAOUI-L B47"]
[null,"14h 40              16h 10",null,null,null,null,"M-D-F(TD)","AMITOUCHE","C49","M-D-F(TD) AMITOUCHE C49",null,null,null,null,"CHIMIE MINERALE(TD)","BENBOUABDALLAH","B49","CHIMIE MINERALE(TD) BENBOUABDALLAH B49"]
[null,"16h 20              17h 50"]
["Mardi","8h 00                    9h 30","HSI-INSTAL-INDUST©","KORSO","AP4","HSI-INSTAL-INDUST© KORSO AP4","HSI-INSTAL-INDUST©","KORSO","AP4","HSI-INSTAL-INDUST© KORSO AP4","HSI-INSTAL-INDUST©","KORSO","AP4","HSI-INSTAL-INDUST© KORSO AP4","HSI-INSTAL-INDUST©","KORSO","AP4","HSI-INSTAL-INDUST© KORSO AP4"]
[null,"9h 40                 11h 10","DESSIN(TP)","HALFAOUI","AT23","DESSIN(TP) HALFAOUI AT23","INFORMATIQUE(TP)","HARFOUCHE","AB12","INFORMATIQUE(TP) HARFOUCHE AB12","ANGLAIS©","REZAL","C412","ANGLAIS© REZAL C412","ONDES ET VIBR(TD)","YAHIAOUI-L","A14","ONDES ET VIBR(TD) YAHIAOUI-L A14"]
[null,"11h20                12h 50","DESSIN(TP)","HALFAOUI","AT23","DESSIN(TP) HALFAOUI AT23",null,null,null,null,"INFORMATIQUE(TP)","HARFOUCHE","RC9/B","INFORMATIQUE(TP) HARFOUCHE RC9/B"]
[null,"13h 00              14h 30",null,null,null,null,"ONDES ET VIBR(TD)","YAHIAOUI-L","B48","ONDES ET VIBR(TD) YAHIAOUI-L B48",null,null,null,null,"DESSIN(TP)","YAMANI","AT23","DESSIN(TP) YAMANI AT23"]
[null,"14h 40              16h 10","ANGLAIS©","REZAL","B41","ANGLAIS© REZAL B41","ONDES ET VIBR(TP)","KHOUMRI","B48","ONDES ET VIBR(TP) KHOUMRI B48",null,null,null,null,"DESSIN(TP)","YAMANI","AT23","DESSIN(TP) YAMANI AT23"]
[null,"16h 20              17h 50"]
["Mercredi","8h 00                    9h 30",null,null,null,null,null,null,null,null,"PROBAT ET STAT(TD)","ZITOUNI","B31","PROBAT ET STAT(TD) ZITOUNI B31"]
[null,"9h 40                 11h 10","PROBAT ET STAT©","ZITOUNI","AP6","PROBAT ET STAT© ZITOUNI AP6","PROBAT ET STAT©","ZITOUNI","AP6","PROBAT ET STAT© ZITOUNI AP6","PROBAT ET STAT©","ZITOUNI","AP6","PROBAT ET STAT© ZITOUNI AP6","PROBAT ET STAT©","ZITOUNI","AP6","PROBAT ET STAT© ZITOUNI AP6"]
[null,"11h20                12h 50","PROBAT ET STAT(TD)","ZITOUNI","B310","PROBAT ET STAT(TD) ZITOUNI B310",null,null,null,null,null,null,null,null,"ANGLAIS©","REZAL","B39","ANGLAIS© REZAL B39"]
[null,"13h 00              14h 30",null,null,null,null,"ANGLAIS©","REZAL","B35","ANGLAIS© REZAL B35","DESSIN(TP)","HALFAOUI","AT24","DESSIN(TP) HALFAOUI AT24"]
[null,"14h 40              16h 10","INFORMATIQUE(TP)","HARFOUCHE","RC9/B","INFORMATIQUE(TP) HARFOUCHE RC9/B","PROBAT ET STAT(TD)","ZITOUNI","B312","PROBAT ET STAT(TD) ZITOUNI B312","DESSIN(TP)","HALFAOUI","AT24","DESSIN(TP) HALFAOUI AT24"]
[null,"16h 20              17h 50"]
["Jeudi","8h 00                     9h 30","REGLEMENT ET NORMES©","KORSO","AP2","REGLEMENT ET NORMES© KORSO AP2","REGLEMENT ET NORMES©","KORSO","AP2","REGLEMENT ET NORMES© KORSO AP2","REGLEMENT ET NORMES©","KORSO","AP2","REGLEMENT ET NORMES© KORSO AP2","REGLEMENT ET NORMES©","KORSO","AP2","REGLEMENT ET NORMES© KORSO AP2"]
[null,"9h 40                  11h 10","MATHEMATIQUE©","AZZOUNI","AP5","MATHEMATIQUE© AZZOUNI AP5","MATHEMATIQUE©","AZZOUNI","AP5","MATHEMATIQUE© AZZOUNI AP5","MATHEMATIQUE©","AZZOUNI","AP5","MATHEMATIQUE© AZZOUNI AP5","MATHEMATIQUE©","AZZOUNI","AP5","MATHEMATIQUE© AZZOUNI AP5"]
[null,"11h20                 12h 50",null,null,null,null,"MATHEMATIQUE(TD)","AZZOUNI","C32","MATHEMATIQUE(TD) AZZOUNI C32",null,null,null,null,"MATHEMATIQUE(TD)","X","B313","MATHEMATIQUE(TD) X B313"]
[null,"13h 00              14h 30","MATHEMATIQUE(TD)","AZZOUNI","B312","MATHEMATIQUE(TD) AZZOUNI B312",null,null,null,null,"ONDES ET VIBR(TP)","KHOUMRI","B313","ONDES ET VIBR(TP) KHOUMRI B313"]
[null,"14h 40              16h 10",null,null,null,null,null,null,null,null,null,null,null,null,"VIB OND(TP)","KHOUMRI","B313","VIB OND(TP) KHOUMRI B313"]
[null,"16h 20              17h 50"]
["Samedi","8h 00                     9h 30","ONDES ET VIBR(TD)","LADDADA","B311","ONDES ET VIBR(TD) LADDADA B311",null,null,null,null,"M-D-F(TD)","AMITOUCHE","B35","M-D-F(TD) AMITOUCHE B35"]
[null,"9h 40                  11h 10","M-D-F(TD)","AMITOUCHE","B311","M-D-F(TD) AMITOUCHE B311",null,null,null,null,"MATHEMATIQUE(TD)","AZZOUNI","B35","MATHEMATIQUE(TD) AZZOUNI B35","PROBAT ET STAT(TD)","ZITOUNI","C32","PROBAT ET STAT(TD) ZITOUNI C32"]
[null,"11h20                 12h 50","MATHEMATIQUE©","AZZOUNI","AP5","MATHEMATIQUE© AZZOUNI AP5","MATHEMATIQUE©","AZZOUNI","AP5","MATHEMATIQUE© AZZOUNI AP5","MATHEMATIQUE©","AZZOUNI","AP5","MATHEMATIQUE© AZZOUNI AP5","MATHEMATIQUE©","AZZOUNI","AP5","MATHEMATIQUE© AZZOUNI AP5"]

{"sheet":"TC S35","index":28,"n_rows":36,"n_cols":18,"rows_kept":36,"cut":false,"hidden":false,"merged":[[27,0,32,0],[33,0,35,0],[0,0,0,1],[1,0,1,1],[3,0,8,0],[9,0,14,0],[15,0,20,0],[21,0,26,0]]}
["Dep::",null,null,null,null,"G DES PROCEDES",null,null,null,"Filière:G DES PROCEDES"]
["Section:",null,null,null,null,"Licence 2ème année",null,null,null,null,null,null,null,{"$f":"NOW()","v":"2017-10-19T13:25:47.140"}]
["Jour","SEANCES","LGP-16/D","Enseignant","Salle","LGP-16/D","LGP-16/E","Enseignant","Salle","LGP-16/E","LGP-16/F","Enseignant","Salle","LGP-16/F","LGP-16/G","Enseignant","Salle","LGP-16/G"]
["Dimanche","8h 00                     9h 30"]
[null,"9h 40                 11h 10","MATHEMATIQUE©","X","AP2","MATHEMATIQUE© X AP2","MATHEMATIQUE©","X","AP2","MATHEMATIQUE© X AP2","MATHEMATIQUE©","X","AP2","MATHEMATIQUE© X AP2","MATHEMATIQUE©","X","AP2","MATHEMATIQUE© X AP2"]
[null,"11h20                 12h 50","PROBAT ET STAT©","X","AP2","PROBAT ET STAT© X AP2","PROBAT ET STAT©","X","AP2","PROBAT ET STAT© X AP2","PROBAT ET STAT©","X","AP2","PROBAT ET STAT© X AP2","PROBAT ET STAT©","X","AP2","PROBAT ET STAT© X AP2"]
[null,"13h 00              14h 30","DESSIN(TP)","X","AT23","DESSIN(TP) X AT23","CHIMIE MINERALE(TD)","BOUAZIZ","B312","CHIMIE MINERALE(TD) BOUAZIZ B312",null,null,null,null,"ONDES ET VIBR(TP)","KHOUMRI","B47","ONDES ET VIBR(TP) KHOUMRI B47"]
[null,"14h 40              16h 10","DESSIN(TP)","X","AT23","DESSIN(TP) X AT23",null,null,null,null,"ONDES ET VIBR(TP)","KHOUMRI","B48","ONDES ET VIBR(TP) KHOUMRI B48","CHIMIE MINERALE(TD)","BOUAZIZ","B47","CHIMIE MINERALE(TD) BOUAZIZ B47"]
[null,"16h 20              17h 50"]
["Lundi","8h 00                    9h 30","MEC DES FLUIDES©","SAHMOUNE","AP4","MEC DES FLUIDES© SAHMOUNE AP4","MEC DES FLUIDES©","SAHMOUNE","AP4","MEC DES FLUIDES© SAHMOUNE AP4","MEC DES FLUIDES©","SAHMOUNE","AP4","MEC DES FLUIDES© SAHMOUNE AP4","MEC DES FLUIDES©","SAHMOUNE","AP4","MEC DES FLUIDES© SAHMOUNE AP4"]
[null,"9h 40                  11h 10",null,null,null,null,"DESSIN(TP)","CHERIFATI","AT24","DESSIN(TP) CHERIFATI AT24",null,null,null,null,"MATHEMATIQUE(TD)","X","B49","MATHEMATIQUE(TD) X B49"]
[null,"11h20                12h 50","PROBAT ET STAT(TD)","X","A21","PROBAT ET STAT(TD) X A21","DESSIN(TP)","CHERIFATI","AT24","DESSIN(TP) CHERIFATI AT24","MATHEMATIQUE(TD)","X","B47","MATHEMATIQUE(TD) X B47"]
[null,"13h 00              14h 30",null,null,null,null,null,null,null,null,"DESSIN(TP)","CHERIFATI","AT22","DESSIN(TP) CHERIFATI AT22","INFORMATIQUE(TP)","CHELAOUAOU","RC9/A","INFORMATIQUE(TP) CHELAOUAOU RC9/A"]
[null,"14h 40              16h 10",null,null,null,null,null,null,null,null,"DESSIN(TP)","CHERIFATI","AT22","DESSIN(TP) CHERIFATI AT22"]
[null,"16h 20              17h 50"]
["Mardi","8h 00                    9h 30","HSI-INSTAL-INDUST©","KORSO","AP4","HSI-INSTAL-INDUST© KORSO AP4","HSI-INSTAL-INDUST©","KORSO","AP4","HSI-INSTAL-INDUST© KORSO AP4","HSI-INSTAL-INDUST©","KORSO","AP4","HSI-INSTAL-INDUST© KORSO AP4","HSI-INSTAL-INDUST©","KORSO","AP4","HSI-INSTAL-INDUST© KORSO AP4"]
[null,"9h 40                 11h 10","INFORMATIQUE(TP)","CHELAOUAOU","A26","INFORMATIQUE(TP) CHELAOUAOU A26","INFORMATIQUE(TP)","CHERABI","A27","INFORMATIQUE(TP) CHERABI A27","INFORMATIQUE(TP)","CHERABI","A27","INFORMATIQUE(TP) CHERABI A27","ONDES ET VIBR(TD)","LADDADA","C310","ONDES ET VIBR(TD) LADDADA C310"]
[null,"11h20                12h 50","VIB OND(TP)","YAMANI","C412","VIB OND(TP) YAMANI C412","ANGLAIS©","HAMICI","A11","ANGLAIS© HAMICI A11","VIB OND(TD)","LADDADA","A13","VIB OND(TD) LADDADA A13"]
[null,"13h 00              14h 30","ANGLAIS©","HAMICI","C412","ANGLAIS© HAMICI C412","VIB OND(TP)","KHOUMRI","A13","VIB OND(TP) KHOUMRI A13",null,null,null,null,"DESSIN(TP)","CHERIFATI","AT22","DESSIN(TP) CHERIFATI AT22"]
[null,"14h 40              16h 10",null,null,null,null,null,null,null,null,"INFORMATIQUE(TP)","CHERABI","B210","INFORMATIQUE(TP) CHERABI B210","DESSIN(TP)","CHERIFATI","AT22","DESSIN(TP) CHERIFATI AT22"]
[null,"16h 20              17h 50"]
["Mercredi","8h 00                    9h 30","ONDES ET VIBR©","RAHMOUNE","AP1","ONDES ET VIBR© RAHMOUNE AP1","ONDES ET VIBR©","RAHMOUNE","AP1","ONDES ET VIBR© RAHMOUNE AP1","ONDES ET VIBR©","RAHMOUNE","AP1","ONDES ET VIBR© RAHMOUNE AP1","ONDES ET VIBR©","RAHMOUNE","AP1","ONDES ET VIBR© RAHMOUNE AP1"]
[null,"9h 40                 11h 10","MATHEMATIQUE©","X","AP5","MATHEMATIQUE© X AP5","PROBAT ET STAT©","X","AP5","PROBAT ET STAT© X AP5","PROBAT ET STAT©","X","AP5","PROBAT ET STAT© X AP5","PROBAT ET STAT©","X","AP5","PROBAT ET STAT© X AP5"]
[null,"11h20                12h 50"]
[null,"13h 00              14h 30"]
[null,"14h 40              16h 10"]
[null,"16h 20              17h 50"]
["Jeudi","8h 00                     9h 30","REGLEMENT ET NORMES©","KORSO","AP2","REGLEMENT ET NORMES© KORSO AP2","REGLEMENT ET NORMES©","KORSO","AP2","REGLEMENT ET NORMES© KORSO AP2","REGLEMENT ET NORMES©","KORSO","AP2","REGLEMENT ET NORMES© KORSO AP2","REGLEMENT ET NORMES©","KORSO","AP2","REGLEMENT ET NORMES© KORSO AP2"]
[null,"9h 40                  11h 10","CHIMIE MINERALE©","BENBOUABDALLAH","AP3","CHIMIE MINERALE© BENBOUABDALLAH AP3","CHIMIE MINERALE©","BENBOUABDALLAH","AP3","CHIMIE MINERALE© BENBOUABDALLAH AP3","CHIMIE MINERALE©","BENBOUABDALLAH","AP3","CHIMIE MINERALE© BENBOUABDALLAH AP3","CHIMIE MINERALE©","BENBOUABDALLAH","AP3","CHIMIE MINERALE© BENBOUABDALLAH AP3"]
[null,"11h20                 12h 50","M-D-F(TD)","X","A23","M-D-F(TD) X A23"]
[null,"13h 00              14h 30",null,null,null,null,"PROBAT ET STAT(TD)","X","X","PROBAT ET STAT(TD) X X","M-D-F(TD)","X","B44","M-D-F(TD) X B44"]
[null,"14h 40              16h 10",null,null,null,null,null,null,null,null,null,null,null,null,"M-D-F(TD)","X","B46","M-D-F(TD) X B46"]
[null,"16h 20              17h 50"]
["Samedi","8h 00                     9h 30","ONDES ET VIBR(TP)","YAMANI","B36","ONDES ET VIBR(TP) YAMANI B36","MATHEMATIQUE(TD)","X","B38","MATHEMATIQUE(TD) X B38","CHIMIE MINERALE(TD)","BOUAZIZ","B310","CHIMIE MINERALE(TD) BOUAZIZ B310"]
[null,"9h 40                  11h 10","MATHEMATIQUE(TD)","X","B36","MATHEMATIQUE(TD) X B36","ONDES ET VIBR(TD)","YAMANI","B38","ONDES ET VIBR(TD) YAMANI B38","PROBAT ET STAT(TD)","X","B310","PROBAT ET STAT(TD) X B310","ANGLAIS©","HAMICI","B313","ANGLAIS© HAMICI B313"]
[null,"11h20                 12h 50","CHIMIE MINERALE(TD)","BOUAZIZ","B36","CHIMIE MINERALE(TD) BOUAZIZ B36","M-D-F(TD)","X","B38","M-D-F(TD) X B38","ANGLAIS©","HAMICI","B310","ANGLAIS© HAMICI B310","PROBAT ET STAT(TD)","X","B313","PROBAT ET STAT(TD) X B313"]

{"sheet":"TC S36","index":29,"n_rows":36,"n_cols":22,"rows_kept":36,"cut":false,"hidden":false,"merged":[[27,0,32,0],[33,0,35,0],[0,0,0,1],[1,0,1,1],[3,0,8,0],[9,0,14,0],[15,0,20,0],[21,0,26,0]]}
["Filière:",null,null,null,null,"ELECTROMECANIQUE",null,null,null,"G INDUSTRIELLE"]
["Section:",null,null,null,null,"Licence 2ème année",null,null,null,null,null,null,null,{"$f":"NOW()","v":"2017-10-19T13:25:47.140"}]
["Jour","SEANCES","LEMEC-16/A","Enseignant","Salle","LEMEC-16/A","LEMEC-16/B","Enseignant","Salle","LEMEC-16/B","LEMEC-16/C","Enseignant","Salle","LEMEC-16/C","LGI-16","Enseignant","Salle","LGI-16","X","Enseignant","Salle","X"]
["Dimanche","8h 00                     9h 30","ENNERGIES ET ENVIRONNEMENT©","BAHLOUL","AP2","ENNERGIES ET ENVIRONNEMENT© BAHLOUL AP2","ENNERGIES ET ENVIRONNEMENT©","BAHLOUL","AP2","ENNERGIES ET ENVIRONNEMENT© BAHLOUL AP2","ENNERGIES ET ENVIRONNEMENT©","BAHLOUL","AP2","ENNERGIES ET ENVIRONNEMENT© BAHLOUL AP2","ENNERGIES ET ENVIRONNEMENT©","BAHLOUL","AP2","ENNERGIES ET ENVIRONNEMENT© BAHLOUL AP2"]
[null,"9h 40                 11h 10",null,null,null,null,"PROBAT-STAT(TD)","ADICHE","B38","PROBAT-STAT(TD) ADICHE B38","ELECTRONIQUEI FOND(TD)","DOUDAH","A15","ELECTRONIQUEI FOND(TD) DOUDAH A15"]
[null,"11h20                 12h 50","ELECTRONIQUE-FOND(TD)","X","C32","ELECTRONIQUE-FOND(TD) X C32",null,null,null,null,null,null,null,null,"PROBAT-STAT(TD)","ADICHE","B38","PROBAT-STAT(TD) ADICHE B38"]
[null,"13h 00              14h 30","MATHEMATIQUE©","KHALFAOUI","AP4","MATHEMATIQUE© KHALFAOUI AP4","MATHEMATIQUE©","KHALFAOUI","AP4","MATHEMATIQUE© KHALFAOUI AP4","MATHEMATIQUE©","KHALFAOUI","AP4","MATHEMATIQUE© KHALFAOUI AP4","MATHEMATIQUE©","KHALFAOUI","AP4","MATHEMATIQUE© KHALFAOUI AP4"]
[null,"14h 40              16h 10"]
[null,"16h 20              17h 50"]
["Lundi","8h 00                    9h 30",null,null,null,null,null,null,null,null,"ONDES ET VIBR(TD)","MELLOUSSI","C32","ONDES ET VIBR(TD) MELLOUSSI C32"]
[null,"9h 40                  11h 10","ONDES ET VIBR©","RAHMOUNE","AP6","ONDES ET VIBR© RAHMOUNE AP6","ONDES ET VIBR©","RAHMOUNE","AP6","ONDES ET VIBR© RAHMOUNE AP6","ONDES ET VIBR©","RAHMOUNE","AP6","ONDES ET VIBR© RAHMOUNE AP6","ONDES ET VIBR©","RAHMOUNE","AP6","ONDES ET VIBR© RAHMOUNE AP6"]
[null,"11h20                12h 50","ELEC-TECH-FOND©","RAHMOUNE","AP6","ELEC-TECH-FOND© RAHMOUNE AP6","ELEC-TECH-FOND©","RAHMOUNE","AP6","ELEC-TECH-FOND© RAHMOUNE AP6","ELEC-TECH-FOND©","RAHMOUNE","AP6","ELEC-TECH-FOND© RAHMOUNE AP6","ELEC-TECH-FOND©","RAHMOUNE","AP6","ELEC-TECH-FOND© RAHMOUNE AP6"]
[null,"13h 00              14h 30","ONDES ET VIBR(TD)","MELLOUSSI","A13","ONDES ET VIBR(TD) MELLOUSSI A13",null,null,null,null,"ANGLAIS©","DAOUALI","A15","ANGLAIS© DAOUALI A15"]
[null,"14h 40              16h 10",null,null,null,null,"ONDES ET VIBR(TD)","MELLOUSSI","A15","ONDES ET VIBR(TD) MELLOUSSI A15",null,null,null,null,"ANGLAIS©","DAOUALI","A13","ANGLAIS© DAOUALI A13"]
[null,"16h 20              17h 50"]
["Mardi","8h 00                    9h 30","ELECTRONIQUE-FOND©","MELLAL","AP5","ELECTRONIQUE-FOND© MELLAL AP5","ELECTRONIQUE-FOND©","MELLAL","AP5","ELECTRONIQUE-FOND© MELLAL AP5","ELECTRONIQUE-FOND©","MELLAL","AP5","ELECTRONIQUE-FOND© MELLAL AP5","ELECTRONIQUE-FOND©","MELLAL","AP5","ELECTRONIQUE-FOND© MELLAL AP5"]
[null,"9h 40                 11h 10","PROBAT ET STAT©","ADICHE","AP5","PROBAT ET STAT© ADICHE AP5","PROBAT ET STAT©","ADICHE","AP5","PROBAT ET STAT© ADICHE AP5","PROBAT ET STAT©","ADICHE","AP5","PROBAT ET STAT© ADICHE AP5","PROBAT ET STAT©","ADICHE","AP5","PROBAT ET STAT© ADICHE AP5"]
[null,"11h20                12h 50","MATHEMATIQUE(TD)","AZZAL","B31","MATHEMATIQUE(TD) AZZAL B31","INFORMATIQUE(TP)","CHERABI","B210","INFORMATIQUE(TP) CHERABI B210"]
[null,"13h 00              14h 30",null,null,null,null,null,null,null,null,"ELECTRONIQUE(TP);ELECTROTECH(TP)","AGGAD;KANTAS","AT11;EEA","ELECTRONIQUE(TP) AGGAD AT11\nELECTROTECH(TP) KANTAS EEA","INFORMATIQUE(TP)","CHERABI","RC9/A","INFORMATIQUE(TP) CHERABI RC9/A"]
[null,"14h 40              16h 10",null,null,null,null,"ELECTRONIQUE(TP);ELECTROTECH(TP)","AGGAD;KANTAS","AT11;EEA","ELECTRONIQUE(TP) AGGAD AT11\nELECTROTECH(TP) KANTAS EEA",null,null,null,null,"MATHEMATIQUE(TD)","AZZAL","A16","MATHEMATIQUE(TD) AZZAL A16"]
[null,"16h 20              17h 50"]
["Mercredi","8h 00                    9h 30",null,null,null,null,null,null,null,null,null,null,null,null,"ELECTRONIQUE(TP);ELECTROTECH(TP)","AGGAD;KANTAS","AT11;EEA","ELECTRONIQUE(TP) AGGAD AT11\nELECTROTECH(TP) KANTAS EEA"]
[null,"9h 40                 11h 10","ELECTRONIQUE(TP);ELECTROTECH(TP)","AGGAD;KANTAS","AT11;EEA","ELECTRONIQUE(TP) AGGAD AT11\nELECTROTECH(TP) KANTAS EEA"]
[null,"11h20                12h 50"]
[null,"13h 00              14h 30","ETAT DE  L'ART  DE G-ELECT©","ALEM","AP5","ETAT DE  L'ART  DE G-ELECT© ALEM AP5","ETAT DE  L'ART  DE G-ELECT©","ALEM","AP5","ETAT DE  L'ART  DE G-ELECT© ALEM AP5","ETAT DE  L'ART  DE G-ELECT©","ALEM","AP5","ETAT DE  L'ART  DE G-ELECT© ALEM AP5","ETAT DE  L'ART  DE G-ELECT©","ALEM","AP5","ETAT DE  L'ART  DE G-ELECT© ALEM AP5"]
[null,"14h 40              16h 10"]
[null,"16h 20              17h 50"]
["Jeudi","8h 00                     9h 30","ELECTECHNIQUE-FOND(TD)","HIRECHE","RC13","ELECTECHNIQUE-FOND(TD) HIRECHE RC13","ELECTRONIQUE-FOND(TD)","MELLAL","B32","ELECTRONIQUE-FOND(TD) MELLAL B32","INFORMATIQUE(TP)","CHERABI","RC9/A","INFORMATIQUE(TP) CHERABI RC9/A"]
[null,"9h 40                  11h 10","INFORMATIQUE(TP)","AGGAD","RC9/A","INFORMATIQUE(TP) AGGAD RC9/A","MATHEMATIQUE(TD)","AZZAL","B32","MATHEMATIQUE(TD) AZZAL B32","PROBAT-STAT(TD)","ADICHE","B35","PROBAT-STAT(TD) ADICHE B35","ELECTECHNIQUE FOND(TD)","HIRECHE","B39","ELECTECHNIQUE FOND(TD) HIRECHE B39"]
[null,"11h20                 12h 50","PROBAT-STAT(TD)","ADICHE","B32","PROBAT-STAT(TD) ADICHE B32",null,null,null,null,null,null,null,null,"ELECTRONIQUE-FOND(TD)","MELLAL","B39","ELECTRONIQUE-FOND(TD) MELLAL B39"]
[null,"13h 00              14h 30","OND ET VIB(TP)","CHELLIL-S","AT13","OND ET VIB(TP) CHELLIL-S AT13","ELECTECHNIQUE-FOND(TD)","HIRECHE","C32","ELECTECHNIQUE-FOND(TD) HIRECHE C32","MATHEMATIQUE(TD)","AZZAL","B31","MATHEMATIQUE(TD) AZZAL B31"]
[null,"14h 40              16h 10",null,null,null,null,null,null,null,null,null,null,null,null,"OND ET VIB(TP)","CHELLIL-S","B39","OND ET VIB(TP) CHELLIL-S B39"]
[null,"16h 20              17h 50"]
["Samedi","8h 00                     9h 30","MATHEMATIQUE©","KHALFAOUI","AP3","MATHEMATIQUE© KHALFAOUI AP3","MATHEMATIQUE©","KHALFAOUI","AP3","MATHEMATIQUE© KHALFAOUI AP3","MATHEMATIQUE©","KHALFAOUI","AP3","MATHEMATIQUE© KHALFAOUI AP3","MATHEMATIQUE©","KHALFAOUI","AP3","MATHEMATIQUE© KHALFAOUI AP3"]
[null,"9h 40                  11h 10","ANGLAIS©","DAOUALI","B39","ANGLAIS© DAOUALI B39","OND ET VIB(TP)","CHELLIL-S","AT13","OND ET VIB(TP) CHELLIL-S AT13","ELECTECHNIQUE-FOND(TD)","HIRECHE","C48","ELECTECHNIQUE-FOND(TD) HIRECHE C48","ONDES ET VIBR(TD)","MELLOUSSI","B32","ONDES ET VIBR(TD) MELLOUSSI B32"]
[null,"11h20                 12h 50",null,null,null,null,"ANGLAIS©","DAOUALI","B311","ANGLAIS© DAOUALI B311","OND ET VIB(TP)","CHELLIL-S","AT13","OND ET VIB(TP) CHELLIL-S AT13"]

{"sheet":"TC S38","index":30,"n_rows":36,"n_cols":18,"rows_kept":36,"cut":false,"hidden":false,"merged":[[27,0,32,0],[33,0,35,0],[0,0,0,1],[1,0,1,1],[3,0,8,0],[9,0,14,0],[15,0,20,0],[21,0,26,0]]}
["Filière:",null,null,null,null,"G.Mécanique"]
["Section:",null,null,null,null,"Licence 2ème année",null,null,null,null,null,null,null,{"$f":"NOW()","v":"2017-10-19T13:25:47.140"}]
["Jour","SEANCES","LGM-16/A","Enseignant","Salle","LGM-16/A","LGM-16/B","Enseignant","Salle","LGM-16/B","LGM-16/C","Enseignant","Salle","LGM-16/C","LGM-16/D","Enseignant","Salle","LGM-16/D"]
["Dimanche","8h 00                     9h 30","MATHEMATIQUE©","KHALFAOUI","AP4","MATHEMATIQUE© KHALFAOUI AP4","MATHEMATIQUE©","KHALFAOUI","AP4","MATHEMATIQUE© KHALFAOUI AP4","MATHEMATIQUE©","KHALFAOUI","AP4","MATHEMATIQUE© KHALFAOUI AP4","MATHEMATIQUE©","KHALFAOUI","AP4","MATHEMATIQUE© KHALFAOUI AP4"]
[null,"9h 40                 11h 10","PROBAT-STAT(TD)","X","X","PROBAT-STAT(TD) X X",null,null,null,null,"INFORMATIQUE(TP)","BENZAID","RC9/B","INFORMATIQUE(TP) BENZAID RC9/B","MATHEMATIQUE(TD)","MESSAOUDI-H","C45","MATHEMATIQUE(TD) MESSAOUDI-H C45"]
[null,"11h20                 12h 50","MEC DES FLUIDES(TD)","MERAH","C42","MEC DES FLUIDES(TD) MERAH C42",null,null,null,null,"PROBAT-STAT(TD)","BOUKABCHA","C412","PROBAT-STAT(TD) BOUKABCHA C412","OND ET VIB(TP)","FERHAT","B311","OND ET VIB(TP) FERHAT B311"]
[null,"13h 00              14h 30","OND ET VIB(TP)","FERHAT","C412","OND ET VIB(TP) FERHAT C412","DESSIN(TP)","SEMMOUD","AT22","DESSIN(TP) SEMMOUD AT22"]
[null,"14h 40              16h 10",null,null,null,null,"DESSIN(TP)","SEMMOUD","AT22","DESSIN(TP) SEMMOUD AT22",null,null,null,null,"PROBAT-STAT(TD)","X","B311","PROBAT-STAT(TD) X B311"]
[null,"16h 20              17h 50"]
["Lundi","8h 00                    9h 30",null,null,null,null,null,null,"AP6",null,"ONDES ET VIBR(TD)","REGUEB","B41","ONDES ET VIBR(TD) REGUEB B41"]
[null,"9h 40                  11h 10",null,null,null,null,"ONDES ET VIBR(TD)","REGUEB","B41","ONDES ET VIBR(TD) REGUEB B41","M-D-F(TD)","BOUARAB","B414","M-D-F(TD) BOUARAB B414"]
[null,"11h20                12h 50",null,null,null,null,"MEC DES FLUIDES(TD)","BOUARAB","B41","MEC DES FLUIDES(TD) BOUARAB B41"]
[null,"13h 00              14h 30","METROLOGIE©","TALHI","AP05","METROLOGIE© TALHI AP05","METROLOGIE©","TALHI","AP05","METROLOGIE© TALHI AP05","METROLOGIE©","TALHI","AP05","METROLOGIE© TALHI AP05","METROLOGIE©","TALHI","AP05","METROLOGIE© TALHI AP05"]
[null,"14h 40              16h 10","ANGLAIS©","SMAIL","B41","ANGLAIS© SMAIL B41",null,null,null,null,null,null,null,null,"ONDES ET VIBR(TD)","GUERRACHE","B311","ONDES ET VIBR(TD) GUERRACHE B311"]
[null,"16h 20              17h 50"]
["Mardi","8h 00                    9h 30","MEC DES FLUIDES©","MANSOURI-K","AP6","MEC DES FLUIDES© MANSOURI-K AP6","MEC DES FLUIDES©","MANSOURI-K","AP6","MEC DES FLUIDES© MANSOURI-K AP6","MEC DES FLUIDES©","MANSOURI-K","AP6","MEC DES FLUIDES© MANSOURI-K AP6","MEC DES FLUIDES©","MANSOURI-K","AP6","MEC DES FLUIDES© MANSOURI-K AP6"]
[null,"9h 40                 11h 10","ONDES ET VIBR©","MAAMIR","AP6","ONDES ET VIBR© MAAMIR AP6","ONDES ET VIBR©","MAAMIR","AP6","ONDES ET VIBR© MAAMIR AP6","ONDES ET VIBR©","MAAMIR","AP6","ONDES ET VIBR© MAAMIR AP6","ONDES ET VIBR©","MAAMIR","AP6","ONDES ET VIBR© MAAMIR AP6"]
[null,"11h20                12h 50"]
[null,"13h 00              14h 30","ONDES ET VIBR(TD)","REGUEB","RC13","ONDES ET VIBR(TD) REGUEB RC13","OND ET VIB(TP)","FERHAT","B312","OND ET VIB(TP) FERHAT B312","ANGLAIS©","HAMADI","B311","ANGLAIS© HAMADI B311"]
[null,"14h 40              16h 10","INFORMATIQUE(TP)","BENZAID","RC9/A","INFORMATIQUE(TP) BENZAID RC9/A","ANGLAIS©","HAMADI","B312","ANGLAIS© HAMADI B312","OND ET VIB(TP)","FERHAT","B38","OND ET VIB(TP) FERHAT B38"]
[null,"16h 20              17h 50"]
["Mercredi","8h 00                    9h 30",null,null,null,null,null,null,null,null,"DESSIN(TP)","TALHI","AT23","DESSIN(TP) TALHI AT23"]
[null,"9h 40                 11h 10",null,null,null,null,null,null,null,null,"DESSIN(TP)","TALHI","AT23","DESSIN(TP) TALHI AT23"]
[null,"11h20                12h 50","MECANIQUE RATIONNEL©","HACHEMANE","AP5","MECANIQUE RATIONNEL© HACHEMANE AP5","MECANIQUE RATIONNEL©","HACHEMANE","AP5","MECANIQUE RATIONNEL© HACHEMANE AP5","MECANIQUE RATIONNEL©","HACHEMANE","AP5","MECANIQUE RATIONNEL© HACHEMANE AP5","MECANIQUE RATIONNEL©","HACHEMANE","AP5","MECANIQUE RATIONNEL© HACHEMANE AP5"]
[null,"13h 00              14h 30","DESSIN(TP)","BENDERADJI","AT23","DESSIN(TP) BENDERADJI AT23","MECANIQUE RATIONNEL(TD)","BENDJEDDOU","B38","MECANIQUE RATIONNEL(TD) BENDJEDDOU B38",null,null,null,null,"ANGLAIS©","SMAIL","A22","ANGLAIS© SMAIL A22"]
[null,"14h 40              16h 10","DESSIN(TP)","BENDERADJI","AT23","DESSIN(TP) BENDERADJI AT23",null,null,null,null,null,null,null,null,"INFORMATIQUE(TP)","RACHEDI","RC9/A","INFORMATIQUE(TP) RACHEDI RC9/A"]
[null,"16h 20              17h 50"]
["Jeudi","8h 00                     9h 30"]
[null,"9h 40                  11h 10","MATHEMATIQUE(TD)","MESSAOUDI-H","A11","MATHEMATIQUE(TD) MESSAOUDI-H A11","INFORMATIQUE(TP)","RACHEDI","A26","INFORMATIQUE(TP) RACHEDI A26",null,null,null,null,"MECANIQUE RATIONNEL(TD)","BENDJEDDOU","B415","MECANIQUE RATIONNEL(TD) BENDJEDDOU B415"]
[null,"11h20                 12h 50","MECANIQUE RATIONNEL(TD)","BENDJEDDOU","A24","MECANIQUE RATIONNEL(TD) BENDJEDDOU A24","PROBAT-STAT(TD)","X","C45","PROBAT-STAT(TD) X C45","MATHEMATIQUE(TD)","MESSAOUDI-H","B415","MATHEMATIQUE(TD) MESSAOUDI-H B415","MDF(TD) ","BOUARAB","B312","MDF(TD)  BOUARAB B312"]
[null,"13h 00              14h 30",null,null,null,null,"MATHEMATIQUE(TD)","MESSAOUDI-H","C45","MATHEMATIQUE(TD) MESSAOUDI-H C45","MECANIQUE RATIONNEL(TD)","BENDJEDDOU","B415","MECANIQUE RATIONNEL(TD) BENDJEDDOU B415","DESSIN(TP)","BELLAL","AT22","DESSIN(TP) BELLAL AT22"]
[null,"14h 40              16h 10",null,null,null,null,null,null,null,null,null,null,null,null,"DESSIN(TP)","BELLAL","AT22","DESSIN(TP) BELLAL AT22"]
[null,"16h 20              17h 50"]
["Samedi","8h 00                     9h 30","PROBAT ET STAT©","BOUKABCHA","AP6","PROBAT ET STAT© BOUKABCHA AP6","PROBAT ET STAT©","BOUKABCHA","AP6","PROBAT ET STAT© BOUKABCHA AP6","PROBAT ET STAT©","BOUKABCHA","AP6","PROBAT ET STAT© BOUKABCHA AP6","PROBAT ET STAT©","BOUKABCHA","AP6","PROBAT ET STAT© BOUKABCHA AP6"]
[null,"9h 40                  11h 10","TECHNOLOGIE DE BASE©","TOURAB","AP6","TECHNOLOGIE DE BASE© TOURAB AP6","TECHNOLOGIE DE BASE©","TOURAB","AP6","TECHNOLOGIE DE BASE© TOURAB AP6","TECHNOLOGIE DE BASE©","TOURAB","AP6","TECHNOLOGIE DE BASE© TOURAB AP6","TECHNOLOGIE DE BASE©","TOURAB","AP6","TECHNOLOGIE DE BASE© TOURAB AP6"]
[null,"11h20                 12h 50","MATHEMATIQUE©","KHALFAOUI","AP6","MATHEMATIQUE© KHALFAOUI AP6","MATHEMATIQUE©","KHALFAOUI","AP6","MATHEMATIQUE© KHALFAOUI AP6","MATHEMATIQUE©","KHALFAOUI","AP6","MATHEMATIQUE© KHALFAOUI AP6","MATHEMATIQUE©","KHALFAOUI","AP6","MATHEMATIQUE© KHALFAOUI AP6"]

{"sheet":"TC S39","index":31,"n_rows":36,"n_cols":18,"rows_kept":36,"cut":false,"hidden":false,"merged":[[27,0,32,0],[33,0,35,0],[1,0,1,1],[3,0,8,0],[9,0,14,0],[15,0,20,0],[21,0,26,0]]}
["Dep:G-Mécanique",null,null,null,null,"Filière:G.Mécanique"]
["Section:",null,null,null,null,"Licence 2ème année",null,null,null,null,null,null,null,{"$f":"NOW()","v":"2017-10-19T13:25:47.140"}]
["Jour","SEANCES","LGM-16/E","Enseignant","Salle","LGM-16/E","LGM-16/F","Enseignant","Salle","LGM-16/F","LGM-16/G","Enseignant","Salle","LGM-16/G","LGM-16/H","Enseignant","Salle","LGM-16/H"]
["Dimanche","8h 00                     9h 30","DESSIN(TP)","SEMMOUD","AT22","DESSIN(TP) SEMMOUD AT22",null,null,null,null,"INFORMATIQUE(TP)","BENZAID","RC9/B","INFORMATIQUE(TP) BENZAID RC9/B","DESSIN(TP)","BELHADEF","AT24","DESSIN(TP) BELHADEF AT24"]
[null,"9h 40                 11h 10","DESSIN(TP)","SEMMOUD","AT22","DESSIN(TP) SEMMOUD AT22",null,null,null,null,null,null,null,null,"DESSIN(TP)","BELHADEF","AT24","DESSIN(TP) BELHADEF AT24"]
[null,"11h20                 12h 50",null,null,null,null,null,null,null,null,"MECANIQUE RATIONNEL(TD)","AGUIB","A21","MECANIQUE RATIONNEL(TD) AGUIB A21"]
[null,"13h 00              14h 30","PROBAT ET STAT©","BOUKABCHA","AP6","PROBAT ET STAT© BOUKABCHA AP6","PROBAT ET STAT©","BOUKABCHA","AP6","PROBAT ET STAT© BOUKABCHA AP6","PROBAT ET STAT©","BOUKABCHA","AP6","PROBAT ET STAT© BOUKABCHA AP6","PROBAT ET STAT©","BOUKABCHA","AP6","PROBAT ET STAT© BOUKABCHA AP6"]
[null,"14h 40              16h 10","MATHEMATIQUE©","KHALFAOUI","AP6","MATHEMATIQUE© KHALFAOUI AP6","MATHEMATIQUE©","KHALFAOUI","AP6","MATHEMATIQUE© KHALFAOUI AP6","MATHEMATIQUE©","KHALFAOUI","AP6","MATHEMATIQUE© KHALFAOUI AP6","MATHEMATIQUE©","KHALFAOUI","AP6","MATHEMATIQUE© KHALFAOUI AP6"]
[null,"16h 20              17h 50"]
["Lundi","8h 00                    9h 30","MATHEMATIQUE©","KHALFAOUI","AP5","MATHEMATIQUE© KHALFAOUI AP5","MATHEMATIQUE©","KHALFAOUI","AP5","MATHEMATIQUE© KHALFAOUI AP5","MATHEMATIQUE©","KHALFAOUI","AP5","MATHEMATIQUE© KHALFAOUI AP5","MATHEMATIQUE©","KHALFAOUI","AP5","MATHEMATIQUE© KHALFAOUI AP5"]
[null,"9h 40                  11h 10","ONDES ET VIBR©","MAAMIR","AP5","ONDES ET VIBR© MAAMIR AP5","ONDES ET VIBR©","MAAMIR","AP5","ONDES ET VIBR© MAAMIR AP5","ONDES ET VIBR©","MAAMIR","AP5","ONDES ET VIBR© MAAMIR AP5","ONDES ET VIBR©","MAAMIR","AP5","ONDES ET VIBR© MAAMIR AP5"]
[null,"11h20                12h 50",null,null,null,null,"ONDES ET VIBR(TD)","IRINISLIMANE","C42","ONDES ET VIBR(TD) IRINISLIMANE C42","MEC DES FLUIDES(TD)","DAIMALLAH","B37","MEC DES FLUIDES(TD) DAIMALLAH B37","MATHEMATIQUE(TD)","MESSAOUDI-H","B415","MATHEMATIQUE(TD) MESSAOUDI-H B415"]
[null,"13h 00              14h 30","MEC DES FLUIDES(TD)","BOUARAB","C32","MEC DES FLUIDES(TD) BOUARAB C32","MATHEMATIQUE(TD)","MESSAOUDI-H","C45","MATHEMATIQUE(TD) MESSAOUDI-H C45"]
[null,"14h 40              16h 10",null,null,null,null,null,null,null,null,"MATHEMATIQUE(TD)","MESSAOUDI-H","C48","MATHEMATIQUE(TD) MESSAOUDI-H C48"]
[null,"16h 20              17h 50"]
["Mardi","8h 00                    9h 30","ANGLAIS©","HAMADI","B413","ANGLAIS© HAMADI B413","DESSIN(TP)","BELHADEF","AT22","DESSIN(TP) BELHADEF AT22","ONDES ET VIBR(TP)","IRINISLIMANE","C45","ONDES ET VIBR(TP) IRINISLIMANE C45"]
[null,"9h 40                 11h 10","ONDES ET VIBR(TD)","IRINISLIMANE","A21","ONDES ET VIBR(TD) IRINISLIMANE A21","DESSIN(TP)","BELHADEF","AT22","DESSIN(TP) BELHADEF AT22","ANGLAIS©","HAMADI","C32","ANGLAIS© HAMADI C32","MECANIQUE RATIONNEL(TD)","AGUIB","C45","MECANIQUE RATIONNEL(TD) AGUIB C45"]
[null,"11h20                12h 50",null,null,null,null,null,null,null,null,null,null,null,null,"ONDES ET VIBR(TP)","CHEBBOUBA","C45","ONDES ET VIBR(TP) CHEBBOUBA C45"]
[null,"13h 00              14h 30","MECANIQUE RATIONNEL©","HACHEMANE","AP6","MECANIQUE RATIONNEL© HACHEMANE AP6","MECANIQUE RATIONNEL©","HACHEMANE","AP6","MECANIQUE RATIONNEL© HACHEMANE AP6","MECANIQUE RATIONNEL©","HACHEMANE","AP6","MECANIQUE RATIONNEL© HACHEMANE AP6","MECANIQUE RATIONNEL©","HACHEMANE","AP6","MECANIQUE RATIONNEL© HACHEMANE AP6"]
[null,"14h 40              16h 10",null,null,null,null,"ONDES ET VIBR(TP)","CHEBBOUBA","B311","ONDES ET VIBR(TP) CHEBBOUBA B311"]
[null,"16h 20              17h 50"]
["Mercredi","8h 00                    9h 30","MECANIQUE DES FLUIDES©","MANSOURI-K","AP6","MECANIQUE DES FLUIDES© MANSOURI-K AP6","MECANIQUE DES FLUIDES©","MANSOURI-K","AP6","MECANIQUE DES FLUIDES© MANSOURI-K AP6","MECANIQUE DES FLUIDES©","MANSOURI-K","AP6","MECANIQUE DES FLUIDES© MANSOURI-K AP6","MECANIQUE DES FLUIDES©","MANSOURI-K","AP6","MECANIQUE DES FLUIDES© MANSOURI-K AP6"]
[null,"9h 40                 11h 10",null,null,null,null,"MECANIQUE RATIONNEL(TD)","BENDJEDDOU","B35","MECANIQUE RATIONNEL(TD) BENDJEDDOU B35","DESSIN(TP)","BELLAL","AT22","DESSIN(TP) BELLAL AT22","INFORMATIQUE(TP)","RACHEDI","RC9/A","INFORMATIQUE(TP) RACHEDI RC9/A"]
[null,"11h20                12h 50","MECANIQUE RATIONNEL(TD)","BENDJEDDOU","C49","MECANIQUE RATIONNEL(TD) BENDJEDDOU C49",null,null,null,null,"DESSIN(TP)","BELLAL","AT22","DESSIN(TP) BELLAL AT22"]
[null,"13h 00              14h 30","METROLOGIE©","TALHI","AP6","METROLOGIE© TALHI AP6","METROLOGIE©","TALHI","AP6","METROLOGIE© TALHI AP6","METROLOGIE©","TALHI","AP6","METROLOGIE© TALHI AP6","METROLOGIE©","TALHI","AP6","METROLOGIE© TALHI AP6"]
[null,"14h 40              16h 10",null,null,null,null,"ANGLAIS©","SMAIL ","C42","ANGLAIS© SMAIL  C42"]
[null,"16h 20              17h 50"]
["Jeudi","8h 00                     9h 30","MATHEMATIQUE(TD)","MESSAOUDI-H","C32","MATHEMATIQUE(TD) MESSAOUDI-H C32","PROBAT-STAT(TD)","X","C45","PROBAT-STAT(TD) X C45"]
[null,"9h 40                  11h 10","PROBAT-STAT(TD)","X","C32","PROBAT-STAT(TD) X C32","MEC DES FLUIDES(TD)","BOUARAB","C45","MEC DES FLUIDES(TD) BOUARAB C45"]
[null,"11h20                 12h 50","INFORMATIQUE(TP)","RACHEDI","RC9/A","INFORMATIQUE(TP) RACHEDI RC9/A",null,null,null,null,null,null,null,null,"ONDES ET VIBR(TD)","ZENZEN","A25","ONDES ET VIBR(TD) ZENZEN A25"]
[null,"13h 00              14h 30",null,null,null,null,"INFORMATIQUE(TP)","RACHEDI","A27","INFORMATIQUE(TP) RACHEDI A27",null,null,null,null,"M-D-F(TD)","BOUARAB","A25","M-D-F(TD) BOUARAB A25"]
[null,"14h 40              16h 10"]
[null,"16h 20              17h 50"]
["Samedi","8h 00                     9h 30","TECHNOLOGIE DE BASE©","TOURAB","AP5","TECHNOLOGIE DE BASE© TOURAB AP5","TECHNOLOGIE DE BASE©","TOURAB","AP5","TECHNOLOGIE DE BASE© TOURAB AP5","TECHNOLOGIE DE BASE©","TOURAB","AP5","TECHNOLOGIE DE BASE© TOURAB AP5","TECHNOLOGIE DE BASE©","TOURAB","AP5","TECHNOLOGIE DE BASE© TOURAB AP5"]
[null,"9h 40                  11h 10","ONDES ET VIBR(TP)","IRINISLIMANE","B414","ONDES ET VIBR(TP) IRINISLIMANE B414",null,null,null,null,"PROBAT-STAT(TD)","X","B31","PROBAT-STAT(TD) X B31","PROBAT ET STAT(TD)","BOUKABCHA","B41","PROBAT ET STAT(TD) BOUKABCHA B41"]
[null,"11h20                 12h 50",null,null,null,null,null,null,null,null,"ONDES ET VIBR(TD)","IRINISLIMANE","B31","ONDES ET VIBR(TD) IRINISLIMANE B31","ANGLAIS©","HAMADI","B32","ANGLAIS© HAMADI B32"]

{"sheet":"TC S310","index":32,"n_rows":36,"n_cols":17,"rows_kept":36,"cut":false,"hidden":false,"merged":[[27,0,32,0],[33,0,35,0],[0,0,0,1],[1,0,1,1],[3,0,8,0],[9,0,14,0],[15,0,20,0],[21,0,26,0]]}
["Filière:",null,null,null,null,"G.Mécanique",null,null,null,null,null,null,null,{"$f":"TODAY()","v":"2017-10-19"}]
["Section:",null,null,null,null,"Licence 2ème année",null,null,null,{"$f":"#REF!","v":{"$error":"#REF!"}}]
["Jour","SEANCES","LGM-16/I","Enseignant","Salle","LGM-16/I","LGM-16/J","Enseignant","Salle","LGM-16/J","LGM-15/","Enseignant","Salle","LGM-15/","ST32","Enseignant","Salle"]
["Dimanche","8h 00                     9h 30","MATHEMATIQUE©","KHALFAOUI","AP4","MATHEMATIQUE© KHALFAOUI AP4"]
[null,"9h 40                 11h 10"]
[null,"11h20                 12h 50","INFORMATIQUE(TP)","BENZAID","RC9/B","INFORMATIQUE(TP) BENZAID RC9/B","MATHEMATIQUE(TD)","MESSAOUDI-H","B32","MATHEMATIQUE(TD) MESSAOUDI-H B32"]
[null,"13h 00              14h 30","MATHEMATIQUE(TD)","MESSAOUDI-H","C49","MATHEMATIQUE(TD) MESSAOUDI-H C49","PROBAT ET STAT©","BOUKABCHA","AP6","PROBAT ET STAT© BOUKABCHA AP6"]
[null,"14h 40              16h 10","PROBAT-STAT(TD)","BOUKABCHA","C49","PROBAT-STAT(TD) BOUKABCHA C49","MATHEMATIQUE©","KHALFAOUI","AP6","MATHEMATIQUE© KHALFAOUI AP6"]
[null,"16h 20              17h 50"]
["Lundi","8h 00                    9h 30",null,null,null,null,"MATHEMATIQUE©","KHALFAOUI","AP5","MATHEMATIQUE© KHALFAOUI AP5"]
[null,"9h 40                  11h 10","ONDES ET VIBR(TD)","IRINISLIMANE","B46","ONDES ET VIBR(TD) IRINISLIMANE B46","ONDES ET VIBR©","MAAMIR","AP5","ONDES ET VIBR© MAAMIR AP5"]
[null,"11h20                12h 50","ANGLAIS©","SMAIL","B46","ANGLAIS© SMAIL B46"]
[null,"13h 00              14h 30","METROLOGIE©","TALHI","AP05","METROLOGIE© TALHI AP05","MDF(TD) ","DAIMALLAH","B311","MDF(TD)  DAIMALLAH B311"]
[null,"14h 40              16h 10"]
[null,"16h 20              17h 50"]
["Mardi","8h 00                    9h 30","MEC DES FLUIDES©","MANSOURI-K","AP6","MEC DES FLUIDES© MANSOURI-K AP6","DESSIN(TP)","MANSER","AT24","DESSIN(TP) MANSER AT24"]
[null,"9h 40                 11h 10","ONDES ET VIBR©","MAAMIR","AP6","ONDES ET VIBR© MAAMIR AP6","DESSIN(TP)","MANSER","AT24","DESSIN(TP) MANSER AT24"]
[null,"11h20                12h 50"]
[null,"13h 00              14h 30","MDF(TD) ","MERAH","C43","MDF(TD)  MERAH C43","MECANIQUE RATIONNEL©","HACHEMANE","AP6","MECANIQUE RATIONNEL© HACHEMANE AP6"]
[null,"14h 40              16h 10"]
[null,"16h 20              17h 50"]
["Mercredi","8h 00                    9h 30","MECANIQUE RATIONNEL(TD)","BENDERADJI","B310","MECANIQUE RATIONNEL(TD) BENDERADJI B310","MECANIQUE DES FLUIDES©","MANSOURI-K","AP6","MECANIQUE DES FLUIDES© MANSOURI-K AP6"]
[null,"9h 40                 11h 10",null,null,null,null,"MECANIQUE RATIONNEL(TD)","BENDERADJI","B310","MECANIQUE RATIONNEL(TD) BENDERADJI B310"]
[null,"11h20                12h 50","MECANIQUE RATIONNEL©","HACHEMANE","AP5","MECANIQUE RATIONNEL© HACHEMANE AP5","INFORMATIQUE(TP)","RACHEDI","A27","INFORMATIQUE(TP) RACHEDI A27"]
[null,null,null,null,null,null,"METROLOGIE©","TALHI","AP6","METROLOGIE© TALHI AP6"]
[null,"14h 40              16h 10"]
[null,"16h 20              17h 50"]
["Jeudi","8h 00                     9h 30",null,null,null,null,"ONDES ET VIBR(TD)","ZENZEN","B310","ONDES ET VIBR(TD) ZENZEN B310"]
[null,"9h 40                  11h 10","DESSIN(TP)","HACHEMANE","AT24","DESSIN(TP) HACHEMANE AT24","ONDES ET VIBR(TP)","ZENZEN","B310","ONDES ET VIBR(TP) ZENZEN B310"]
[null,"11h20                 12h 50","DESSIN(TP)","HACHEMANE","AT24","DESSIN(TP) HACHEMANE AT24"]
[null,"13h 00              14h 30","OND ET VIB(TP)","CHEBBOUBA","B47","OND ET VIB(TP) CHEBBOUBA B47"]
[null,"14h 40              16h 10"]
[null,"16h 20              17h 50"]
["Samedi","8h 00                     9h 30","PROBAT ET STAT©","BOUKABCHA","AP6","PROBAT ET STAT© BOUKABCHA AP6","TECHNOLOGIE DE BASE©","TOURAB","AP5","TECHNOLOGIE DE BASE© TOURAB AP5"]
[null,"9h 40                  11h 10","TECHNOLOGIE DE BASE©","TOURAB","AP6","TECHNOLOGIE DE BASE© TOURAB AP6","ANGLAIS©","HAMADI","B312","ANGLAIS© HAMADI B312"]
[null,"11h20                 12h 50","MATHEMATIQUE©","KHALFAOUI","AP6","MATHEMATIQUE© KHALFAOUI AP6","PROBAT ET STAT(TD)","BOUKABCHA","B312","PROBAT ET STAT(TD) BOUKABCHA B312"]